Workbook

Sheet y=e^x_5DVLeast (6)
A1: Synthesize | I1: =PI()/180 -> 0.01745329252
A2: y=e^x | C2: 0<x<1
B4: qin | C4: 258.800424 | D4: =C4*D_R -> 4.516919504 | E4: =C4+180 -> 438.800424
B5: fin | C5: 206.3966632 | D5: =C5*D_R -> 3.602301339 | E5: =C5+180 -> 386.3966632 | H5: qin | K5: qin | N5: qin
H6: fin | K6: fin | N6: fin
B7: Dq | C7: 120 | D7: =C7/9 -> 13.33333333 | E7: =D7*D_R -> 0.2327105669 | H7: qin | K7: qin | N7: qin
B8: Df | C8: 100 | D8: =C8/(EXP(1)-1) -> 58.19767069 | E8: =D8*D_R -> 1.01574097 | H8: fin | K8: fin | N8: fin
B11: x | C11: y(required) | D11: q | E11: f | G11: q | H11: f | J11: cosf | K11: cosq | L11: cos(f-q) | M11: cos2f | N11: cos2q | O11: cosfcosq | P11: cosq*cos(f-q) | Q11: cosf*cos(f-q) | S11: EQ4 | T11: EQ5
B12: 0 | C12: =EXP(B12) -> 1 | D12: =$C$4+$C$7*B12 -> 258.800424 | E12: =$C$5+$D$8*(C12-1) -> 206.3966632 | G12: =D12*D_R -> 4.516919504 | H12: 3.602301339 | J12: =COS(H12) -> -0.8957376531 | K12: =COS(G12) -> -0.194227092 | L12: =COS(H12-G12) -> 0.6100931587 | M12: =J12^2 -> 0.8023459431 | N12: =K12^2 -> 0.03772416327 | O12: =J12*K12 -> 0.1739765196 | P12: =L12*K12 -> -0.1184966201 | Q12: =J12*L12 -> -0.5464834142 | S12: =(SIN(G12)*$C$31-SIN(H12-G12))*($C$30*J12-$C$31*K12+$C$32-L12) -> -0.0005209728647 | T12: =(-SIN(H12)*$C$30+SIN(H12-G12))*($C$30*J12-$C$31*K12+$C$32-L12) -> 0.001018826589
B13: 0.1 | C13: =EXP(B13) -> 1.105170918 | D13: =$C$4+$C$7*B13 -> 270.800424 | E13: =$C$5+$D$8*(C13-1) -> 212.5173657 | G13: 4.726359015 | H13: 3.709127749 | J13: =COS(H13) -> -0.8432285576 | K13: =COS(G13) -> 0.01396957975 | L13: =COS(H13-G13) -> 0.5257232033 | M13: =J13^2 -> 0.7110344004 | N13: 0.0001951491583 | O13: =J13*K13 -> -0.01177954858 | P13: =L13*K13 -> 0.007344132213 | Q13: =J13*L13 -> -0.4433048184 | S13: =(SIN(G13)*$C$31-SIN(H13-G13))*($C$30*J13-$C$31*K13+$C$32-L13) -> 0.0005635545639 | T13: =(-SIN(H13)*$C$30+SIN(H13-G13))*($C$30*J13-$C$31*K13+$C$32-L13) -> -0.00103535886
B14: 0.2 | C14: 1.221402758 | D14: 282.800424 | E14: 219.2817881 | G14: 4.935798525 | H14: 3.827189191 | J14: -0.774041496 | K14: 0.2215557138 | L14: 0.4459067045 | M14: 0.5991402376 | N14: 0.04908693434 | O14: -0.1714933162 | P14: 0.09879317823 | Q14: -0.3451502927 | S14: 0.0007874799822 | T14: -0.001337168224
B15: 0.3 | C15: 1.349858808 | D15: 294.800424 | E15: 226.7576309 | G15: 5.145238035 | H15: 3.957667264 | J15: -0.6850859764 | K15: 0.4194588001 | L15: 0.3739139938 | M15: 0.4693427951 | N15: 0.175945685 | O15: -0.2873653416 | P15: 0.1568415152 | Q15: -0.2561632336 | S15: 0.0002591891044 | T15: -0.0004012030986
B16: 0.4 | C16: 1.491824698 | D16: 306.800424 | E16: 235.019715 | G16: 5.354677545 | H16: 4.101867835 | J16: -0.5732945385 | K16: 0.599029524 | L16: 0.312654749 | M16: 0.3286666278 | N16: 0.3588363706 | O16: -0.3434203545 | P16: 0.1872894255 | Q16: -0.17924326 | S16: -0.0006437588509 | T16: 0.0008991718123
B17: 0.5 | C17: 1.648721271 | D17: 318.800424 | E17: 244.1507301 | G17: 5.564117055 | H17: 4.261234112 | J17: -0.4360051418 | K17: 0.7524197833 | L17: 0.2647198369 | M17: 0.1901004837 | N17: 0.5661355302 | O17: -0.3280588943 | P17: 0.1991804423 | Q17: -0.11541921 | S17: -0.001325864952 | T17: 0.001661482407
B18: 0.6 | C18: 1.8221188 | D18: 330.800424 | E18: 254.2420625 | G18: 5.773556566 | H18: 4.437361087 | J18: -0.2715737822 | K18: 0.8729256875 | L18: 0.232454786 | M18: 0.07375231915 | N18: 0.7619992558 | O18: -0.2370637305 | P18: 0.2029157539 | Q18: -0.06312862541 | S18: -0.00114577464 | T18: 0.00128715996
B19: 0.7 | C19: 2.013752707 | D19: 342.800424 | E19: 265.3947095 | G19: 5.982996076 | H19: 4.632011498 | J19: -0.0802909636 | K19: 0.9552805504 | L19: 0.2180459051 | M19: 0.006446638836 | N19: 0.9125609299 | O19: -0.0767003959 | P19: 0.2082950123 | Q19: -0.01750711583 | S19: 0.0002204713098 | T19: -0.0002229872063
B20: 0.8 | C20: 2.225540928 | D20: 354.800424 | E20: 277.7202906 | G20: 6.192435586 | H20: 4.847133471 | J20: 0.1343371219 | K20: 0.9958850693 | L20: 0.2235880893 | M20: 0.01804646233 | N20: 0.9917870712 | O20: 0.133784334 | P20: 0.2226680398 | Q20: 0.03003618042 | S20: 0.002196442342 | T20: -0.002018117122
B21: 0.9 | C21: 2.459603111 | D21: 366.800424 | E21: 291.3421644 | G21: 6.401875096 | H21: 5.084880019 | J21: 0.3639367715 | K21: 0.9929646319 | L21: 0.2510852411 | M21: 0.1324499736 | N21: 0.9859787602 | O21: 0.3613763423 | P21: 0.249318764 | Q21: 0.09137915202 | S21: 0.002589619221 | T21: -0.002189519479
B22: 1 | C22: 2.718281828 | D22: 378.800424 | E22: 306.3966632 | G22: 6.611314607 | H22: 5.347630591 | J22: 0.5933720108 | K22: 0.9466468753 | L22: 0.3023073251 | M22: 0.3520903432 | N22: 0.8961403065 | O22: 0.5617137599 | P22: 0.2861782847 | Q22: 0.1793807054 | S22: -0.002954626911 | T22: 0.002334440015
J24: =SUM(J12:J22) -> -3.467612205 | K24: =SUM(K12:K22) -> 6.575909123 | L24: 3.760492993 | M24: 3.683416225 | N24: 5.736390156 | O24: -0.2250306258 | P24: 1.700327928 | Q24: -1.665603932 | S24: =SUM(S12:S22) -> 2.575830473e-05 | T24: =SUM(T12:T22) -> -3.273205566e-06
C26: =M24 -> 3.683416225 | D26: =-O24 -> 0.2250306258 | E26: =J24 -> -3.467612205 | G26: =Q24 -> -1.665603932
C27: =O24 -> -0.2250306258 | D27: =-N24 -> -5.736390156 | E27: =K24 -> 6.575909123 | G27: =P24 -> 1.700327928
C28: =J24 -> -3.467612205 | D28: =-K24 -> -6.575909123 | E28: 11 | G28: =L24 -> 3.760492993
K29: 5 Design Parameter
B30: K1 | C30: =MMULT(MINVERSE(C26:E28),G26:G28) -> 0.1152669351 | E30: a1 | F30: 1 | I30: d1 | J30: =S24 -> 2.575830473e-05
B31: K2 | C31: 0.4214043686 | E31: a2 | F31: =F30/C30 -> 8.675514786 | G31: =-F31 -> -8.675514786 | I31: d2 | J31: =T24 -> -3.273205566e-06
B32: K3 | C32: 0.6301191687 | E32: a3 | F32: =SQRT(F30^2+F31^2+F33^2-2*C32*F31*F33) -> 7.480043737 | I32: d | J32: =SQRT(J30^2+J31^2) -> 2.596544121e-05
E33: a4 | F33: =F30/C31 -> 2.373017639 | G33: =-F33 -> -2.373017639
E37: x | F37: yreq | G37: ygen
A38: =C4 -> 258.800424 | B38: =A38*D_R -> 4.516919504 | C38: =fourbar($F$31,$F$32,$F$33,1,1,B38) -> 3.600447899 | D38: =C38/D_R -> 206.290469 | E38: =1/$C$7*(A38-$C$4) -> 0 | F38: =EXP(E38) -> 1 | G38: =1/$D$8*(D38-$C$5)+1 -> 0.9981752832 | H38: =G38-F38 -> -0.001824716846
A39: =A38+1 -> 259.800424 | B39: =A39*D_R -> 4.534372797 | C39: =fourbar($F$31,$F$32,$F$33,1,1,B39) -> 3.609402017 | D39: =C39/D_R -> 206.8035021 | E39: =1/$C$7*(A39-$C$4) -> 0.008333333333 | F39: =EXP(E39) -> 1.008368152 | G39: =1/$D$8*(D39-$C$5)+1 -> 1.006990639 | H39: =G39-F39 -> -0.001377513447
A40: =A39+1 -> 260.800424 | B40: =A40*D_R -> 4.551826089 | C40: 3.618394753 | D40: =C40/D_R -> 207.318748 | E40: 0.01666666667 | F40: 1.01680633 | G40: 1.015844014 | H40: -0.0009623161473
A41: =A40+1 -> 261.800424 | B41: =A41*D_R -> 4.569279382 | C41: 3.627427705 | D41: =C41/D_R -> 207.836298 | E41: 0.025 | F41: 1.025315121 | G41: 1.024736982 | H41: -0.0005781388622
A42: =A40+1 -> 261.800424 | B42: =A42*D_R -> 4.569279382 | C42: 3.627427705 | D42: =C42/D_R -> 207.836298 | E42: 0.025 | F42: 1.025315121 | G42: 1.024736982 | H42: -0.0005781388622
A43: =A42+1 -> 262.800424 | B43: =A43*D_R -> 4.586732674 | C43: 3.636502458 | D43: =C43/D_R -> 208.356243 | E43: 0.03333333333 | F43: 1.033895114 | G43: 1.033671103 | H43: -0.0002240101046
A44: 263.800424 | B44: =A44*D_R -> 4.604185967 | C44: 3.645620592 | D44: =C44/D_R -> 208.8786736 | E44: 0.04166666667 | F44: 1.042546905 | G44: 1.042647933 | H44: 0.0001010279861
A45: 264.800424 | B45: =A45*D_R -> 4.621639259 | C45: 3.654783676 | D45: =C45/D_R -> 209.4036797 | E45: 0.05 | F45: 1.051271096 | G45: 1.051669017 | H45: 0.0003979205533
A46: 265.800424 | B46: =A46*D_R -> 4.639092552 | C46: 3.663993275 | D46: =C46/D_R -> 209.9313508 | E46: 0.05833333333 | F46: 1.060068293 | G46: 1.060735894 | H46: 0.0006676008776
A47: 266.800424 | B47: =A47*D_R -> 4.656545844 | C47: 3.673250944 | D47: =C47/D_R -> 210.4617762 | E47: 0.06666666667 | F47: 1.068939106 | G47: 1.069850097 | H47: 0.0009109911755
A48: 267.800424 | B48: =A48*D_R -> 4.673999137 | C48: 3.682558237 | D48: =C48/D_R -> 210.9950448 | E48: 0.075 | F48: 1.077884151 | G48: 1.079013154 | H48: 0.001129003346
A49: 268.800424 | B49: =A49*D_R -> 4.691452429 | C49: 3.6919167 | D49: =C49/D_R -> 211.5312452 | E49: 0.08333333333 | F49: 1.08690405 | G49: 1.088226589 | H49: 0.001322539663
A50: 269.800424 | B50: =A50*D_R -> 4.708905722 | C50: 3.701327878 | D50: =C50/D_R -> 212.070466 | E50: 0.09166666667 | F50: 1.095999428 | G50: 1.097491921 | H50: 0.001492493424
A51: 270.800424 | B51: =A51*D_R -> 4.726359015 | C51: 3.71079331 | D51: =C51/D_R -> 212.6127953 | E51: 0.1 | F51: 1.105170918 | G51: 1.106810668 | H51: 0.001639749542
A52: 271.800424 | B52: =A52*D_R -> 4.743812307 | C52: 3.720314535 | D52: =C52/D_R -> 213.1583213 | E52: 0.1083333333 | F52: 1.114419157 | G52: 1.116184342 | H52: 0.001765185093
A53: 272.800424 | B53: =A53*D_R -> 4.7612656 | C53: 3.729893088 | D53: =C53/D_R -> 213.707132 | E53: 0.1166666667 | F53: 1.123744786 | G53: 1.125614455 | H53: 0.001869669821
A54: 273.800424 | B54: =A54*D_R -> 4.778718892 | C54: 3.739530503 | D54: =C54/D_R -> 214.2593152 | E54: 0.125 | F54: 1.133148453 | G54: 1.13510252 | H54: 0.001954066591
A55: 274.800424 | B55: =A55*D_R -> 4.796172185 | C55: 3.749228314 | D55: =C55/D_R -> 214.8149589 | E55: 0.1333333333 | F55: 1.142630812 | G55: 1.144650044 | H55: 0.002019231798
A56: 275.800424 | B56: =A56*D_R -> 4.813625477 | C56: 3.758988054 | D56: =C56/D_R -> 215.3741507 | E56: 0.1416666667 | F56: 1.15219252 | G56: 1.154258536 | H56: 0.002066015735
A57: 276.800424 | B57: =A57*D_R -> 4.83107877 | C57: 3.768811254 | D57: =C57/D_R -> 215.9369786 | E57: 0.15 | F57: 1.161834243 | G57: 1.163929506 | H57: 0.002095262915
A58: 277.800424 | B58: =A58*D_R -> 4.848532062 | C58: 3.778699447 | D58: =C58/D_R -> 216.5035304 | E58: 0.1583333333 | F58: 1.171556649 | G58: 1.173664461 | H58: 0.002107812349
A59: 278.800424 | B59: =A59*D_R -> 4.865985355 | C59: 3.788654165 | D59: =C59/D_R -> 217.0738937 | E59: 0.1666666667 | F59: 1.181360413 | G59: 1.183464911 | H59: 0.002104497783
A60: 279.800424 | B60: =A60*D_R -> 4.883438647 | C60: 3.798676942 | D60: =C60/D_R -> 217.6481565 | E60: 0.175 | F60: 1.191246217 | G60: 1.193332365 | H60: 0.00208614789
A61: 280.800424 | B61: =A61*D_R -> 4.90089194 | C61: 3.808769312 | D61: =C61/D_R -> 218.2264067 | E61: 0.1833333333 | F61: 1.201214746 | G61: 1.203268333 | H61: 0.00205358642
A62: 281.800424 | B62: =A62*D_R -> 4.918345232 | C62: 3.81893281 | D62: =C62/D_R -> 218.8087323 | E62: 0.1916666667 | F62: 1.211266694 | G62: 1.213274326 | H62: 0.002007632313
A63: 282.800424 | B63: =A63*D_R -> 4.935798525 | C63: 3.829168972 | D63: =C63/D_R -> 219.3952211 | E63: 0.2 | F63: 1.221402758 | G63: 1.223351858 | H63: 0.001949099757
A64: 283.800424 | B64: =A64*D_R -> 4.953251817 | C64: 3.839479334 | D64: =C64/D_R -> 219.9859614 | E64: 0.2083333333 | F64: 1.231623642 | G64: 1.233502441 | H64: 0.001878798223
A65: 284.800424 | B65: =A65*D_R -> 4.97070511 | C65: 3.849865437 | D65: =C65/D_R -> 220.5810412 | E65: 0.2166666667 | F65: 1.241930056 | G65: 1.243727589 | H65: 0.001797532435
A66: 285.800424 | B66: =A66*D_R -> 4.988158402 | C66: 3.860328817 | D66: =C66/D_R -> 221.1805488 | E66: 0.225 | F66: 1.252322716 | G66: 1.254028819 | H66: 0.001706102319
A67: 286.800424 | B67: =A67*D_R -> 5.005611695 | C67: 3.870871018 | D67: =C67/D_R -> 221.7845724 | E67: 0.2333333333 | F67: 1.262802343 | G67: 1.264407646 | H67: 0.001605302895
A68: 287.800424 | B68: =A68*D_R -> 5.023064987 | C68: 3.88149358 | D68: =C68/D_R -> 222.3932003 | E68: 0.2416666667 | F68: 1.273369666 | G68: 1.27486559 | H68: 0.001495924132
A69: 288.800424 | B69: =A69*D_R -> 5.04051828 | C69: 3.892198045 | D69: =C69/D_R -> 223.006521 | E69: 0.25 | F69: 1.284025417 | G69: 1.285404167 | H69: 0.001378750758
A70: 289.800424 | B70: =A70*D_R -> 5.057971572 | C70: 3.902985957 | D70: =C70/D_R -> 223.6246228 | E70: 0.2583333333 | F70: 1.294770337 | G70: 1.296024899 | H70: 0.001254562031
A71: 290.800424 | B71: =A71*D_R -> 5.075424865 | C71: 3.913858859 | D71: =C71/D_R -> 224.2475942 | E71: 0.2666666667 | F71: 1.305605172 | G71: 1.306729304 | H71: 0.001124131462
A72: 291.800424 | B72: =A72*D_R -> 5.092878157 | C72: 3.924818296 | D72: =C72/D_R -> 224.8755237 | E72: 0.275 | F72: 1.316530675 | G72: 1.317518901 | H72: 0.0009882264918
A73: 292.800424 | B73: =A73*D_R -> 5.11033145 | C73: 3.93586581 | D73: =C73/D_R -> 225.5084997 | E73: 0.2833333333 | F73: 1.327547604 | G73: 1.328395212 | H73: 0.0008476081349
A74: 293.800424 | B74: =A74*D_R -> 5.127784742 | C74: 3.947002946 | D74: =C74/D_R -> 226.1466105 | E74: 0.2916666667 | F74: 1.338656724 | G74: 1.339359755 | H74: 0.0007030305654
A75: 294.800424 | B75: =A75*D_R -> 5.145238035 | C75: 3.958231244 | D75: =C75/D_R -> 226.7899446 | E75: 0.3 | F75: 1.349858808 | G75: 1.350414048 | H75: 0.0005552406667
A76: 295.800424 | B76: =A76*D_R -> 5.162691328 | C76: 3.969552247 | D76: =C76/D_R -> 227.4385903 | E76: 0.3083333333 | F76: 1.361154632 | G76: 1.361559609 | H76: 0.0004049775332
A77: 296.800424 | B77: =A77*D_R -> 5.18014462 | C77: 3.980967493 | D77: =C77/D_R -> 228.0926357 | E77: 0.3166666667 | F77: 1.372544981 | G77: 1.372797953 | H77: 0.000252971927
A78: 297.800424 | B78: =A78*D_R -> 5.197597913 | C78: 3.992478519 | D78: =C78/D_R -> 228.7521689 | E78: 0.325 | F78: 1.384030646 | G78: 1.384130592 | H78: 9.994568879e-05
A79: 298.800424 | B79: =A79*D_R -> 5.215051205 | C79: 4.004086858 | D79: =C79/D_R -> 229.4172778 | E79: 0.3333333333 | F79: 1.395612425 | G79: 1.395559036 | H79: -5.338889673e-05
A80: 299.800424 | B80: =A80*D_R -> 5.232504498 | C80: 4.015794041 | D80: =C80/D_R -> 230.0880499 | E80: 0.3416666667 | F80: 1.407291122 | G80: 1.407084792 | H80: -0.0002063297824
A81: 300.800424 | B81: =A81*D_R -> 5.24995779 | C81: 4.027601593 | D81: =C81/D_R -> 230.7645729 | E81: 0.35 | F81: 1.419067549 | G81: 1.418709363 | H81: -0.0003581858856
A82: 301.800424 | B82: =A82*D_R -> 5.267411083 | C82: 4.039511036 | D82: =C82/D_R -> 231.4469336 | E82: 0.3583333333 | F82: 1.430942522 | G82: 1.430434244 | H82: -0.0005082778626
A83: 302.800424 | B83: =A83*D_R -> 5.284864375 | C83: 4.051523883 | D83: =C83/D_R -> 232.1352191 | E83: 0.3666666667 | F83: 1.442916867 | G83: 1.442260928 | H83: -0.0006559389282
A84: 303.800424 | B84: =A84*D_R -> 5.302317668 | C84: 4.063641643 | D84: =C84/D_R -> 232.8295156 | E84: 0.375 | F84: 1.454991415 | G84: 1.454190899 | H84: -0.0008005157233
A85: 304.800424 | B85: =A85*D_R -> 5.31977096 | C85: 4.075865818 | D85: =C85/D_R -> 233.5299092 | E85: 0.3833333333 | F85: 1.467167004 | G85: 1.466225635 | H85: -0.0009413692275
A86: 305.800424 | B86: =A86*D_R -> 5.337224253 | C86: 4.088197899 | D86: =C86/D_R -> 234.2364854 | E86: 0.3916666667 | F86: 1.479444481 | G86: 1.478366605 | H86: -0.001077875719
A87: 306.800424 | B87: =A87*D_R -> 5.354677545 | C87: 4.100639369 | D87: =C87/D_R -> 234.9493292 | E87: 0.4 | F87: 1.491824698 | G87: 1.49061527 | H87: -0.001209427779
A88: 307.800424 | B88: =A88*D_R -> 5.372130838 | C88: 4.113191702 | D88: =C88/D_R -> 235.6685248 | E88: 0.4083333333 | F88: 1.504308514 | G88: 1.502973078 | H88: -0.001335435345
A89: 308.800424 | B89: =A89*D_R -> 5.38958413 | C89: 4.125856357 | D89: =C89/D_R -> 236.3941562 | E89: 0.4166666667 | F89: 1.516896796 | G89: 1.51544147 | H89: -0.001455326802
A90: 309.800424 | B90: =A90*D_R -> 5.407037423 | C90: 4.138634785 | D90: =C90/D_R -> 237.1263061 | E90: 0.425 | F90: 1.52959042 | G90: 1.52802187 | H90: -0.001568550131
A91: 310.800424 | B91: =A91*D_R -> 5.424490715 | C91: 4.15152842 | D91: =C91/D_R -> 237.865057 | E91: 0.4333333333 | F91: 1.542390265 | G91: 1.540715691 | H91: -0.001674574082
A92: 311.800424 | B92: =A92*D_R -> 5.441944008 | C92: 4.164538681 | D92: =C92/D_R -> 238.6104901 | E92: 0.4416666667 | F92: 1.555297222 | G92: 1.553524332 | H92: -0.001772889412
A93: 312.800424 | B93: =A93*D_R -> 5.4593973 | C93: 4.177666974 | D93: =C93/D_R -> 239.3626858 | E93: 0.45 | F93: 1.568312185 | G93: 1.566449175 | H93: -0.001863010147
A94: 313.800424 | B94: =A94*D_R -> 5.476850593 | C94: 4.190914684 | D94: =C94/D_R -> 240.1217237 | E94: 0.4583333333 | F94: 1.581436061 | G94: 1.579491586 | H94: -0.001944474894
A95: 314.800424 | B95: =A95*D_R -> 5.494303885 | C95: 4.204283181 | D95: =C95/D_R -> 240.8876821 | E95: 0.4666666667 | F95: 1.594669758 | G95: 1.59265291 | H95: -0.002016848189
A96: 315.800424 | B96: =A96*D_R -> 5.511757178 | C96: 4.217773811 | D96: =C96/D_R -> 241.6606383 | E96: 0.475 | F96: 1.608014197 | G96: 1.605934476 | H96: -0.002079721884
A97: 316.800424 | B97: =A97*D_R -> 5.52921047 | C97: 4.231387902 | D97: =C97/D_R -> 242.4406683 | E97: 0.4833333333 | F97: 1.621470305 | G97: 1.619337588 | H97: -0.002132716568
A98: 317.800424 | B98: =A98*D_R -> 5.546663763 | C98: 4.245126757 | D98: =C98/D_R -> 243.2278467 | E98: 0.4916666667 | F98: 1.635039015 | G98: 1.632863532 | H98: -0.00217548303
A99: 318.800424 | B99: =A99*D_R -> 5.564117055 | C99: 4.258991657 | D99: =C99/D_R -> 244.0222469 | E99: 0.5 | F99: 1.648721271 | G99: 1.646513567 | H99: -0.00220770374
A100: 319.800424 | B100: =A100*D_R -> 5.581570348 | C100: 4.272983854 | D100: =C100/D_R -> 244.8239408 | E100: 0.5083333333 | F100: 1.662518021 | G100: 1.660288927 | H100: -0.002229094374
A101: 320.800424 | B101: =A101*D_R -> 5.599023641 | C101: 4.287104576 | D101: =C101/D_R -> 245.6329986 | E101: 0.5166666667 | F101: 1.676430225 | G101: 1.67419082 | H101: -0.002239405362
A102: 321.800424 | B102: =A102*D_R -> 5.616476933 | C102: 4.301355021 | D102: =C102/D_R -> 246.4494889 | E102: 0.525 | F102: 1.690458848 | G102: 1.688220425 | H102: -0.002238423454
A103: 322.800424 | B103: =A103*D_R -> 5.633930226 | C103: =fourbar($F$31,$F$32,$F$33,1,1,B103) -> 4.315736356 | D103: =C103/D_R -> 247.2734787 | E103: =1/$C$7*(A103-$C$4) -> 0.5333333333 | F103: =EXP(E103) -> 1.704604865 | G103: =1/$D$8*(D103-$C$5)+1 -> 1.702378892 | H103: =G103-F103 -> -0.002225973323
A104: 323.800424 | B104: =A104*D_R -> 5.651383518 | C104: 4.330249717 | D104: =C104/D_R -> 248.105033 | E104: 0.5416666667 | F104: 1.718869258 | G104: 1.716667339 | H104: -0.002201919171
A105: 324.800424 | B105: =A105*D_R -> 5.668836811 | C105: 4.344896207 | D105: =C105/D_R -> 248.9442151 | E105: 0.55 | F105: 1.733253018 | G105: 1.731086852 | H105: -0.002166166365
A106: 325.800424 | B106: =A106*D_R -> 5.686290103 | C106: 4.359676892 | D106: =C106/D_R -> 249.791086 | E106: 0.5583333333 | F106: 1.747757143 | G106: 1.74563848 | H106: -0.002118663075
A107: =A106+1 -> 326.800424 | B107: =A107*D_R -> 5.703743396 | C107: 4.374592803 | D107: =C107/D_R -> 250.6457047 | E107: 0.5666666667 | F107: 1.762382641 | G107: 1.760323239 | H107: -0.002059401929
A108: 327.800424 | B108: =A108*D_R -> 5.721196688 | C108: 4.389644933 | D108: =C108/D_R -> 251.5081282 | E108: 0.575 | F108: 1.777130527 | G108: 1.775142105 | H108: -0.00198842167
A109: 328.800424 | B109: =A109*D_R -> 5.738649981 | C109: 4.404834234 | D109: =C109/D_R -> 252.378411 | E109: 0.5833333333 | F109: 1.792001826 | G109: 1.790096017 | H109: -0.001905808814
A110: 329.800424 | B110: =A110*D_R -> 5.756103273 | C110: 4.420161616 | D110: =C110/D_R -> 253.2566054 | E110: 0.5916666667 | F110: 1.80699757 | G110: 1.80518587 | H110: -0.001811699309
A111: 330.800424 | B111: =A111*D_R -> 5.773556566 | C111: 4.435627948 | D111: =C111/D_R -> 254.1427609 | E111: 0.6 | F111: 1.8221188 | G111: 1.82041252 | H111: -0.001706280182
A112: 331.800424 | B112: =A112*D_R -> 5.791009858 | C112: 4.451234053 | D112: =C112/D_R -> 255.0369249 | E112: 0.6083333333 | F112: 1.837366568 | G112: 1.835776777 | H112: -0.001589791179
A113: 332.800424 | B113: =A113*D_R -> 5.808463151 | C113: 4.466980707 | D113: =C113/D_R -> 255.9391417 | E113: 0.6166666667 | F113: 1.852741931 | G113: 1.851279405 | H113: -0.001462526389
A114: 333.800424 | B114: =A114*D_R -> 5.825916443 | C114: 4.48286864 | D114: =C114/D_R -> 256.8494532 | E114: 0.625 | F114: 1.868245957 | G114: 1.866921122 | H114: -0.001324835846
A115: 334.800424 | B115: =A115*D_R -> 5.843369736 | C115: 4.498898531 | D115: =C115/D_R -> 257.7678983 | E115: 0.6333333333 | F115: 1.883879724 | G115: 1.882702597 | H115: -0.00117712711
A116: 335.800424 | B116: =A116*D_R -> 5.860823028 | C116: 4.515071009 | D116: =C116/D_R -> 258.694513 | E116: 0.6416666667 | F116: 1.899644316 | G116: 1.898624449 | H116: -0.001019866809
A117: 336.800424 | B117: =A117*D_R -> 5.878276321 | C117: 4.531386651 | D117: =C117/D_R -> 259.6293304 | E117: 0.65 | F117: 1.915540829 | G117: 1.914687247 | H117: -0.0008535821623
A118: 337.800424 | B118: =A118*D_R -> 5.895729613 | C118: 4.547845978 | D118: =C118/D_R -> 260.5723804 | E118: 0.6583333333 | F118: 1.931570366 | G118: 1.930891504 | H118: -0.000678862447
A119: 338.800424 | B119: =A119*D_R -> 5.913182906 | C119: 4.56444946 | D119: =C119/D_R -> 261.5236898 | E119: 0.6666666667 | F119: 1.947734041 | G119: 1.947237681 | H119: -0.0004963604319
A120: 339.800424 | B120: =A120*D_R -> 5.930636198 | C120: 4.581197506 | D120: =C120/D_R -> 262.4832822 | E120: 0.675 | F120: 1.964032976 | G120: 1.963726182 | H120: -0.0003067937569
A121: 340.800424 | B121: =A121*D_R -> 5.948089491 | C121: 4.598090472 | D121: =C121/D_R -> 263.4511778 | E121: 0.6833333333 | F121: 1.980468303 | G121: 1.980357357 | H121: -0.0001109462597
A122: 341.800424 | B122: =A122*D_R -> 5.965542783 | C122: 4.61512865 | D122: =C122/D_R -> 264.4273936 | E122: 0.6916666667 | F122: 1.997041163 | G122: 1.997131494 | H122: 9.033075721e-05
A123: 342.800424 | B123: =A123*D_R -> 5.982996076 | C123: 4.632312276 | D123: =C123/D_R -> 265.4119428 | E123: 0.7 | F123: 2.013752707 | G123: 2.014048825 | H123: 0.0002961173237
A124: 343.800424 | B124: =A124*D_R -> 6.000449368 | C124: 4.649641524 | D124: =C124/D_R -> 266.4048356 | E124: 0.7083333333 | F124: 2.030604097 | G124: 2.03110952 | H124: 0.0005054236675
A125: 344.800424 | B125: =A125*D_R -> 6.017902661 | C125: 4.667116504 | D125: =C125/D_R -> 267.4060782 | E125: 0.7166666667 | F125: 2.047596501 | G125: 2.04831369 | H125: 0.0007171891532
A126: 345.800424 | B126: =A126*D_R -> 6.035355954 | C126: 4.684737264 | D126: =C126/D_R -> 268.4156734 | E126: 0.725 | F126: 2.0647311 | G126: 2.065661381 | H126: 0.0009302812991
A127: 346.800424 | B127: =A127*D_R -> 6.052809246 | C127: 4.702503791 | D127: =C127/D_R -> 269.4336203 | E127: 0.7333333333 | F127: 2.082009084 | G127: 2.083152579 | H127: 0.001143494876
A128: 347.800424 | B128: =A128*D_R -> 6.070262539 | C128: 4.720416002 | D128: =C128/D_R -> 270.4599144 | E128: 0.7416666667 | F128: 2.099431653 | G128: 2.100787204 | H128: 0.001355551092
A129: 348.800424 | B129: =A129*D_R -> 6.087715831 | C129: 4.738473753 | D129: =C129/D_R -> 271.4945474 | E129: 0.75 | F129: 2.117000017 | G129: 2.118565113 | H129: 0.001565096867
A130: 349.800424 | B130: =A130*D_R -> 6.105169124 | C130: 4.756676832 | D130: =C130/D_R -> 272.537507 | E130: 0.7583333333 | F130: 2.134715395 | G130: 2.136486099 | H130: 0.001770704201
A131: 350.800424 | B131: =A131*D_R -> 6.122622416 | C131: 4.775024963 | D131: =C131/D_R -> 273.5887774 | E131: 0.7666666667 | F131: 2.152579018 | G131: 2.154549888 | H131: 0.001970869642
A132: 351.800424 | B132: =A132*D_R -> 6.140075709 | C132: 4.7935178 | D132: =C132/D_R -> 274.6483389 | E132: 0.775 | F132: 2.170592127 | G132: 2.172756141 | H132: 0.002164013847
A133: 352.800424 | B133: =A133*D_R -> 6.157529001 | C133: 4.812154933 | D133: =C133/D_R -> 275.716168 | E133: 0.7833333333 | F133: 2.188755972 | G133: 2.191104454 | H133: 0.002348481249
A134: 353.800424 | B134: =A134*D_R -> 6.174982294 | C134: 4.830935883 | D134: =C134/D_R -> 276.7922372 | E134: 0.7916666667 | F134: 2.207071816 | G134: 2.209594355 | H134: 0.002522539836
A135: 354.800424 | B135: =A135*D_R -> 6.192435586 | C135: 4.849860107 | D135: =C135/D_R -> 277.8765153 | E135: 0.8 | F135: 2.225540928 | G135: 2.22822531 | H135: 0.002684381022
A136: 355.800424 | B136: =A136*D_R -> 6.209888879 | C136: 4.868926991 | D136: =C136/D_R -> 278.9689673 | E136: 0.8083333333 | F136: 2.244164594 | G136: 2.246996713 | H136: 0.00283211964
A137: 356.800424 | B137: =A137*D_R -> 6.227342171 | C137: 4.888135856 | D137: =C137/D_R -> 280.0695543 | E137: 0.8166666667 | F137: 2.262944105 | G137: 2.265907899 | H137: 0.002963794039
A138: 357.800424 | B138: =A138*D_R -> 6.244795464 | C138: 4.907485958 | D138: =C138/D_R -> 281.1782334 | E138: 0.825 | F138: 2.281880765 | G138: 2.284958132 | H138: 0.003077366286
A139: 358.800424 | B139: =A139*D_R -> 6.262248756 | C139: 4.926976486 | D139: =C139/D_R -> 282.2949584 | E139: 0.8333333333 | F139: 2.300975891 | G139: 2.304146613 | H139: 0.003170722495
A140: 359.800424 | B140: =A140*D_R -> 6.279702049 | C140: 4.946606561 | D140: =C140/D_R -> 283.4196788 | E140: 0.8416666667 | F140: 2.320230807 | G140: 2.323472481 | H140: 0.003241673245
A141: 360.800424 | B141: =A141*D_R -> 6.297155341 | C141: -1.316810065 | D141: =C141/D_R+360 -> 284.5523408 | E141: =1/$C$7*(A141-$C$4) -> 0.85 | F141: =EXP(E141) -> 2.339646852 | G141: =1/$D$8*(D141-$C$5)+1 -> 2.342934806 | H141: =G141-F141 -> 0.00328795413
A142: 361.800424 | B142: =A142*D_R -> 6.314608634 | C142: -1.296903784 | D142: =C142/D_R+360 -> 285.6928868 | E142: 0.8583333333 | F142: 2.359225373 | G142: 2.362532599 | H142: 0.0033072264
A143: 362.800424 | B143: =A143*D_R -> 6.332061926 | C143: -1.276860971 | D143: =C143/D_R+360 -> 286.8412553 | E143: 0.8666666667 | F143: 2.37896773 | G143: 2.382264808 | H143: 0.003297077726
A144: 363.800424 | B144: =A144*D_R -> 6.349515219 | C144: -1.256682759 | D144: =C144/D_R+360 -> 287.9973817 | E144: 0.875 | F144: 2.398875294 | G144: 2.402130317 | H144: 0.003255023058
A145: 364.800424 | B145: =A145*D_R -> 6.366968511 | C145: -1.236370341 | D145: =C145/D_R+360 -> 289.1611975 | E145: 0.8833333333 | F145: 2.418949448 | G145: 2.422127953 | H145: 0.003178505597
A146: 365.800424 | B146: =A146*D_R -> 6.384421804 | C146: -1.215924969 | D146: =C146/D_R+360 -> 290.3326311 | E146: 0.8916666667 | F146: 2.439191585 | G146: 2.442256483 | H146: 0.003064897864
A147: 366.800424 | B147: =A147*D_R -> 6.401875096 | C147: -1.195347955 | D147: =C147/D_R+360 -> 291.5116071 | E147: 0.9 | F147: 2.459603111 | G147: 2.462514614 | H147: 0.002911502868
A148: 367.800424 | B148: =A148*D_R -> 6.419328389 | C148: -1.174640668 | D148: =C148/D_R+360 -> 292.6980473 | E148: 0.9083333333 | F148: 2.480185444 | G148: 2.482901 | H148: 0.002715555375
A149: 368.800424 | B149: =A149*D_R -> 6.436781681 | C149: -1.153804532 | D149: =C149/D_R+360 -> 293.8918699 | E149: 0.9166666667 | F149: 2.500940014 | G149: 2.503414237 | H149: 0.002474223261
A150: 369.800424 | B150: =A150*D_R -> 6.454234974 | C150: -1.132841028 | D150: =C150/D_R+360 -> 295.0929902 | E150: 0.925 | F150: 2.52186826 | G150: 2.524052869 | H150: 0.002184608954
A151: 370.800424 | B151: =A151*D_R -> 6.471688267 | C151: -1.111751686 | D151: =C151/D_R+360 -> 296.3013205 | E151: 0.9333333333 | F151: 2.542971638 | G151: 2.544815389 | H151: 0.00184375097
A152: 371.800424 | B152: =A152*D_R -> 6.489141559 | C152: -1.09053809 | D152: =C152/D_R+360 -> 297.51677 | E152: 0.9416666667 | F152: 2.564251612 | G152: 2.565700237 | H152: 0.001448625512
A153: 372.800424 | B153: =A153*D_R -> 6.506594852 | C153: -1.069201872 | D153: =C153/D_R+360 -> 298.7392453 | E153: 0.95 | F153: 2.585709659 | G153: 2.586705807 | H153: 0.0009961481545
A154: 373.800424 | B154: =A154*D_R -> 6.524048144 | C154: -1.04774471 | D154: =C154/D_R+360 -> 299.9686501 | E154: 0.9583333333 | F154: 2.607347271 | G154: 2.607830447 | H154: 0.0004831755942
A155: 374.800424 | B155: =A155*D_R -> 6.541501437 | C155: -1.026168329 | D155: =C155/D_R+360 -> 301.2048857 | E155: 0.9666666667 | F155: 2.62916595 | G155: 2.629072458 | H155: -9.349253925e-05
A156: 375.800424 | B156: =A156*D_R -> 6.558954729 | C156: -1.004474498 | D156: =C156/D_R+360 -> 302.4478507 | E156: 0.975 | F156: 2.651167211 | G156: 2.650430099 | H156: -0.0007371118108
A157: 376.800424 | B157: =A157*D_R -> 6.576408022 | C157: -0.9826650241 | D157: =C157/D_R+360 -> 303.6974414 | E157: 0.9833333333 | F157: 2.673352582 | G157: 2.671901591 | H157: -0.001450991057
A158: 377.800424 | B158: =A158*D_R -> 6.593861314 | C158: -0.9607417566 | D158: =C158/D_R+360 -> 304.9535521 | E158: 0.9916666667 | F158: 2.695723603 | G158: 2.693485113 | H158: -0.002238490416
A159: 378.800424 | B159: =A159*D_R -> 6.611314607 | C159: -0.9387065802 | D159: =C159/D_R+360 -> 306.2160748 | E159: 1 | F159: 2.718281828 | G159: 2.715178809 | H159: -0.003103019319

Sheet y=e^x_4DVLeast (5)
A1: Synthesize | I1: =PI()/180 -> 0.01745329252
A2: y=e^x | C2: 0<x<1
B4: qin | C4: 105.2519507 | D4: =C4*D_R -> 1.836993084
B5: fin | C5: 45 | D5: =C5*D_R -> 0.7853981634 | H5: qin | K5: qin | N5: qin
H6: fin | K6: fin | N6: fin
B7: Dq | C7: 120 | D7: =C7/9 -> 13.33333333 | E7: =D7*D_R -> 0.2327105669 | H7: qin | K7: qin | N7: qin
B8: Df | C8: 100 | D8: =C8/(EXP(1)-1) -> 58.19767069 | E8: =D8*D_R -> 1.01574097 | H8: fin | K8: fin | N8: fin
B11: x | C11: y(required) | D11: q | E11: f | G11: q | H11: f | J11: cosf | K11: cosq | L11: cos(f-q) | M11: cos2f | N11: cos2q | O11: cosfcosq | P11: cosq*cos(f-q) | Q11: cosf*cos(f-q) | S11: EQ4 | T11: EQ5
B12: 0 | C12: =EXP(B12) -> 1 | D12: =$C$4+$C$7*B12 -> 105.2519507 | E12: =$C$5+$D$8*(C12-1) -> 45 | G12: =D12*D_R -> 1.836993084 | H12: =E12*D_R -> 0.7853981634 | J12: =COS(H12) -> 0.7071067812 | K12: =COS(G12) -> -0.2630640613 | L12: =COS(H12-G12) -> 0.4961869448 | M12: =J12^2 -> 0.5 | N12: =K12^2 -> 0.06920270034 | O12: =J12*K12 -> -0.1860143816 | P12: =L12*K12 -> -0.1305289529 | Q12: =J12*L12 -> 0.3508571534 | S12: =(SIN(G12)*$C$31-SIN(H12-G12))*($C$30*J12-$C$31*K12+$C$32-L12) -> 0.001797566325 | T12: =(-SIN(H12)*$C$30+SIN(H12-G12))*($C$30*J12-$C$31*K12+$C$32-L12) -> -0.003882998267
B13: 0.1 | C13: =EXP(B13) -> 1.105170918 | D13: =$C$4+$C$7*B13 -> 117.2519507 | E13: =$C$5+$D$8*(C13-1) -> 51.12070246 | G13: 2.046432594 | H13: 0.8922245738 | J13: =COS(H13) -> 0.6276818172 | K13: =COS(G13) -> -0.4579041822 | L13: =COS(H13-G13) -> 0.4046429067 | M13: =J13^2 -> 0.3939844636 | N13: 0.2096762401 | O13: =J13*K13 -> -0.2874181292 | P13: =L13*K13 -> -0.1852876793 | Q13: =J13*L13 -> 0.253986995 | S13: =(SIN(G13)*$C$31-SIN(H13-G13))*($C$30*J13-$C$31*K13+$C$32-L13) -> 0.0001717765682 | T13: =(-SIN(H13)*$C$30+SIN(H13-G13))*($C$30*J13-$C$31*K13+$C$32-L13) -> -0.0003303751578
B14: 0.2 | C14: 1.221402758 | D14: 129.2519507 | E14: 57.88512481 | G14: 2.255872104 | H14: 1.010286016 | J14: 0.5316184923 | K14: -0.632731693 | L14: 0.3195080116 | M14: 0.2826182214 | N14: 0.4003493954 | O14: -0.3363718687 | P14: -0.2021628451 | Q14: 0.1698563674 | S14: -0.00140406182 | T14: 0.002408464163
B15: 0.3 | C15: 1.349858808 | D15: 141.2519507 | E15: 65.36096767 | G15: 2.465311614 | H15: 1.140764088 | J15: 0.4169001061 | K15: -0.7799057927 | L15: 0.2437676435 | M15: 0.1738056984 | N15: 0.6082530455 | O15: -0.3251428077 | P15: -0.1901157972 | Q15: 0.1016267564 | S15: -0.00247496941 | T15: 0.003792733863
B16: 0.4 | C16: 1.491824698 | D16: 153.2519507 | E16: 73.62305179 | G16: 2.674751125 | H16: 1.284964659 | J16: 0.2819554736 | K16: -0.8929942669 | L16: 0.1800230277 | M16: 0.07949888908 | N16: 0.7974387607 | O16: -0.2517846214 | P16: -0.1607595316 | Q16: 0.05075847803 | S16: -0.002540406209 | T16: 0.003486690455
B17: 0.5 | C17: 1.648721271 | D17: 165.2519507 | E17: 82.75406688 | G17: 2.884190635 | H17: 1.444330936 | J17: 0.1261285559 | K17: -0.9670546065 | L17: 0.1305628108 | M17: 0.01590841261 | N17: 0.9351946119 | O17: -0.121973201 | P17: -0.1262613676 | Q17: 0.01646769877 | S17: -0.001243306661 | T17: 0.001534180652
B18: 0.6 | C18: 1.8221188 | D18: 177.2519507 | E18: 92.84539921 | G18: 3.093630145 | H18: 1.620457912 | J18: -0.04964117411 | K18: -0.9988500194 | L18: 0.09746910009 | M18: 0.002464246167 | N18: 0.9977013612 | O18: 0.04958408772 | P18: -0.09735701251 | Q18: -0.004838480567 | S18: 0.00134100361 | T18: -0.001495394317
B19: 0.7 | C19: 2.013752707 | D19: 189.2519507 | E19: 103.9980462 | G19: 3.303069655 | H19: 1.815108322 | J19: -0.2418888086 | K19: -0.9869908934 | L19: 0.08274029577 | M19: 0.05851019573 | N19: 0.9741510236 | O19: 0.2387420513 | P19: -0.08166391844 | Q19: -0.02001395157 | S19: 0.00435883494 | T19: -0.00442013986
B20: 0.8 | C20: 2.225540928 | D20: 201.2519507 | E20: 116.3236274 | G20: 3.512509165 | H20: 2.030230295 | J20: -0.4434408421 | K20: -0.9319955292 | L20: 0.088401908 | M20: 0.1966397804 | N20: 0.8686156665 | O20: 0.4132848823 | P20: -0.08239018304 | Q20: -0.03920101653 | S20: 0.005877684042 | T20: -0.00545745429
B21: 0.9 | C21: 2.459603111 | D21: 213.2519507 | E21: 129.9455012 | G21: 3.721948676 | H21: 2.267976844 | J21: -0.6420586701 | K21: -0.8362674883 | L21: 0.1165589403 | M21: 0.4122393359 | N21: 0.6993433119 | O21: 0.5369327914 | P21: -0.09747445228 | Q21: -0.07483767823 | S21: 0.002808685953 | T21: -0.002404143709
B22: 1 | C22: 2.718281828 | D22: 225.2519507 | E22: 145 | G22: 3.931388186 | H22: 2.530727415 | J22: -0.8191520443 | K22: -0.7039905452 | L22: 0.1693159497 | M22: 0.6710100717 | N22: 0.4956026877 | O22: 0.5766752943 | P22: -0.1191968277 | Q22: -0.1386955063 | S22: -0.008692807386 | T22: 0.006900114185
J24: =SUM(J12:J22) -> 0.4952096869 | K24: =SUM(K12:K22) -> -8.451749078 | L24: 2.329177539 | M24: 2.786679315 | N24: 7.055528805 | O24: 0.3065140974 | P24: -1.473198568 | Q24: 0.6659668158 | S24: =SUM(S12:S22) -> -4.814495677e-11 | T24: =SUM(T12:T22) -> 0.000131677718
C26: =M24 -> 2.786679315 | D26: =-O24 -> -0.3065140974 | E26: =J24 -> 0.4952096869 | G26: =Q24 -> 0.6659668158 | M26: =M27/D_R -> 365.3763864
C27: =O24 -> 0.3065140974 | D27: =-N24 -> -7.055528805 | E27: =K24 -> -8.451749078 | G27: =P24 -> -1.473198568 | K27: 75 | L27: =K27*D_R -> 1.308996939 | M27: =fourbar(ABS(F31),F32,ABS(F33),F30,-1,L27+PI()) -> 6.377020951
C28: =J24 -> 0.4952096869 | D28: =-K24 -> 8.451749078 | E28: 11 | G28: =L24 -> 2.329177539
K29: 4 Design Parameter
B30: K1 | C30: =MMULT(MINVERSE(C26:E28),G26:G28) -> 0.09049583569 | E30: a1 | F30: 1 | I30: d1 | J30: =S24 -> -4.814495677e-11 | L30: qin,
B31: K2 | C31: -0.452608855 | E31: a2 | F31: =F30/C30 -> 11.05023223 | G31: =-F31 -> -11.05023223 | I31: d2 | J31: =T24 -> 0.000131677718
B32: K3 | C32: 0.5554272361 | E32: a3 | F32: =SQRT(F30^2+F31^2+F33^2-2*C32*F31*F33) -> 12.45432168 | I32: d | J32: =SQRT(J30^2+J31^2) -> 0.000131677718
E33: a4 | F33: =F30/C31 -> -2.209413247 | G33: =-F33 -> 2.209413247
E37: x | F37: yreq | G37: ygen
A38: =C4 -> 105.2519507 | B38: =A38*D_R -> 1.836993084 | C38: =fourbar($F$31,$F$32,$G$33,1,-1,B38) -> 3.931463782 | D38: =C38/D_R-180 -> 45.256282 | E38: =1/$C$7*(A38-$C$4) -> 0 | F38: =EXP(E38) -> 1 | G38: =1/$D$8*(D38-$C$5)+1 -> 1.004403647 | H38: =G38-F38 -> 0.00440364709
A39: =A38+1 -> 106.2519507 | B39: 1.854446376 | C39: =fourbar($F$31,$F$32,$G$33,1,-1,B39) -> 3.939559626 | D39: 45.72013974 | E39: =1/$C$7*(A39-$C$4) -> 0.008333333333 | F39: =EXP(E39) -> 1.008368152 | G39: =1/$D$8*(D39-$C$5)+1 -> 1.01237403 | H39: =G39-F39 -> 0.004005878034
A40: =A39+1 -> 107.2519507 | B40: 1.871899669 | C40: 3.947737896 | D40: 46.18872004 | E40: 0.01666666667 | F40: 1.01680633 | G40: 1.02042556 | H40: 0.003619230056
A41: =A40+1 -> 108.2519507 | B41: 1.889352961 | C41: 3.955999009 | D41: 46.66204697 | E41: 0.025 | F41: 1.025315121 | G41: 1.028558651 | H41: 0.003243530576
A42: =A40+1 -> 108.2519507 | B42: 1.889352961 | C42: 3.955999009 | D42: 46.66204697 | E42: 0.025 | F42: 1.025315121 | G42: 1.028558651 | H42: 0.003243530576
A43: =A42+1 -> 109.2519507 | B43: 1.906806254 | C43: 3.964343412 | D43: 47.14014603 | E43: 0.03333333333 | F43: 1.033895114 | G43: 1.03677374 | H43: 0.002878626869
A44: 110.2519507 | B44: 1.924259546 | C44: 3.972771573 | D44: 47.62304409 | E44: 0.04166666667 | F44: 1.042546905 | G44: 1.04507129 | H44: 0.002524384789
A45: 111.2519507 | B45: 1.941712839 | C45: 3.981283984 | D45: 48.11076932 | E45: 0.05 | F45: 1.051271096 | G45: 1.053451784 | H45: 0.002180687549
A46: 112.2519507 | B46: 1.959166131 | C46: 3.989881158 | D46: 48.60335112 | E46: 0.05833333333 | F46: 1.060068293 | G46: 1.061915727 | H46: 0.001847434558
A47: 113.2519507 | B47: 1.976619424 | C47: 3.998563629 | D47: 49.10082007 | E47: 0.06666666667 | F47: 1.068939106 | G47: 1.070463646 | H47: 0.001524540309
A48: 114.2519507 | B48: 1.994072716 | C48: 4.00733195 | D48: 49.60320786 | E48: 0.075 | F48: 1.077884151 | G48: 1.079096084 | H48: 0.001211933304
A49: 115.2519507 | B49: 2.011526009 | C49: 4.016186693 | D49: 50.11054724 | E49: 0.08333333333 | F49: 1.08690405 | G49: 1.087813605 | H49: 0.0009095550248
A50: 116.2519507 | B50: 2.028979301 | C50: 4.025128446 | D50: 50.62287195 | E50: 0.09166666667 | F50: 1.095999428 | G50: 1.096616787 | H50: 0.0006173589415
A51: 117.2519507 | B51: 2.046432594 | C51: 4.034157815 | D51: 51.14021669 | E51: 0.1 | F51: 1.105170918 | G51: 1.105506228 | H51: 0.0003353095489
A52: 118.2519507 | B52: 2.063885886 | C52: 4.043275421 | D52: 51.66261704 | E52: 0.1083333333 | F52: 1.114419157 | G52: 1.114482538 | H52: 6.338143775e-05
A53: 119.2519507 | B53: 2.081339179 | C53: 4.0524819 | D53: 52.19010945 | E53: 0.1166666667 | F53: 1.123744786 | G53: 1.123546344 | H53: -0.0001984416083
A54: 120.2519507 | B54: 2.098792471 | C54: 4.061777902 | D54: 52.72273112 | E54: 0.125 | F54: 1.133148453 | G54: 1.132698286 | H54: -0.000450167491
A55: 121.2519507 | B55: 2.116245764 | C55: 4.07116409 | D55: 53.26052006 | E55: 0.1333333333 | F55: 1.142630812 | G55: 1.141939015 | H55: -0.0006917966531
A56: 122.2519507 | B56: 2.133699056 | C56: 4.080641138 | D56: 53.80351494 | E56: 0.1416666667 | F56: 1.15219252 | G56: 1.151269197 | H56: -0.0009233229137
A57: 123.2519507 | B57: 2.151152349 | C57: 4.090209734 | D57: 54.3517551 | E57: 0.15 | F57: 1.161834243 | G57: 1.160689508 | H57: -0.001144734285
A58: 124.2519507 | B58: 2.168605641 | C58: 4.099870575 | D58: 54.90528049 | E58: 0.1583333333 | F58: 1.171556649 | G58: 1.170200635 | H58: -0.001356013773
A59: 125.2519507 | B59: 2.186058934 | C59: 4.109624368 | D59: 55.46413165 | E59: 0.1666666667 | F59: 1.181360413 | G59: 1.179803273 | H59: -0.001557140163
A60: 126.2519507 | B60: 2.203512226 | C60: 4.119471829 | D60: 56.02834964 | E60: 0.175 | F60: 1.191246217 | G60: 1.189498128 | H60: -0.001748088791
A61: 127.2519507 | B61: 2.220965519 | C61: 4.129413685 | D61: 56.59797599 | E61: 0.1833333333 | F61: 1.201214746 | G61: 1.199285914 | H61: -0.001928832303
A62: 128.2519507 | B62: 2.238418812 | C62: 4.139450667 | D62: 57.17305271 | E62: 0.1916666667 | F62: 1.211266694 | G62: 1.209167353 | H62: -0.002099341405
A63: 129.2519507 | B63: 2.255872104 | C63: 4.149583516 | D63: 57.75362219 | E63: 0.2 | F63: 1.221402758 | G63: 1.219143173 | H63: -0.002259585602
A64: 130.2519507 | B64: 2.273325397 | C64: 4.159812978 | D64: 58.3397272 | E64: 0.2083333333 | F64: 1.231623642 | G64: 1.229214108 | H64: -0.002409533926
A65: 131.2519507 | B65: 2.290778689 | C65: 4.170139805 | D65: 58.93141083 | E65: 0.2166666667 | F65: 1.241930056 | G65: 1.239380901 | H65: -0.00254915566
A66: 132.2519507 | B66: 2.308231982 | C66: 4.180564756 | D66: 59.52871648 | E66: 0.225 | F66: 1.252322716 | G66: 1.249644295 | H66: -0.00267842105
A67: 133.2519507 | B67: 2.325685274 | C67: 4.19108859 | D67: 60.13168777 | E67: 0.2333333333 | F67: 1.262802343 | G67: 1.260005041 | H67: -0.002797302013
A68: 134.2519507 | B68: 2.343138567 | C68: 4.201712074 | D68: 60.74036856 | E68: 0.2416666667 | F68: 1.273369666 | G68: 1.270463893 | H68: -0.002905772839
A69: 135.2519507 | B69: 2.360591859 | C69: 4.212435976 | D69: 61.35480287 | E69: 0.25 | F69: 1.284025417 | G69: 1.281021606 | H69: -0.003003810888
A70: 136.2519507 | B70: =A70*D_R -> 2.378045152 | C70: 4.223261066 | D70: 61.97503487 | E70: 0.2583333333 | F70: 1.294770337 | G70: 1.29167894 | H70: -0.003091397275
A71: 137.2519507 | B71: 2.395498444 | C71: 4.234188118 | D71: 62.60110882 | E71: 0.2666666667 | F71: 1.305605172 | G71: 1.302436655 | H71: -0.003168517561
A72: 138.2519507 | B72: 2.412951737 | C72: 4.245217905 | D72: 63.23306906 | E72: 0.275 | F72: 1.316530675 | G72: 1.313295512 | H72: -0.003235162425
A73: 139.2519507 | B73: 2.430405029 | C73: 4.256351201 | D73: 63.87095995 | E73: 0.2833333333 | F73: 1.327547604 | G73: 1.324256276 | H73: -0.003291328348
A74: 140.2519507 | B74: 2.447858322 | C74: 4.267588781 | D74: 64.51482583 | E74: 0.2916666667 | F74: 1.338656724 | G74: 1.335319706 | H74: -0.003337018276
A75: 141.2519507 | B75: 2.465311614 | C75: 4.278931417 | D75: 65.16471102 | E75: 0.3 | F75: 1.349858808 | G75: 1.346486565 | H75: -0.003372242289
A76: 142.2519507 | B76: 2.482764907 | C76: 4.290379882 | D76: 65.82065976 | E76: 0.3083333333 | F76: 1.361154632 | G76: 1.357757613 | H76: -0.003397018262
A77: 143.2519507 | B77: 2.500218199 | C77: 4.301934946 | D77: 66.48271617 | E77: 0.3166666667 | F77: 1.372544981 | G77: 1.369133608 | H77: -0.003411372515
A78: 144.2519507 | B78: 2.517671492 | C78: 4.313597377 | D78: 67.15092421 | E78: 0.325 | F78: 1.384030646 | G78: 1.380615306 | H78: -0.003415340473
A79: 145.2519507 | B79: 2.535124784 | C79: 4.325367938 | D79: 67.82532768 | E79: 0.3333333333 | F79: 1.395612425 | G79: 1.392203458 | H79: -0.003408967303
A80: 146.2519507 | B80: 2.552578077 | C80: 4.33724739 | D80: 68.50597015 | E80: 0.3416666667 | F80: 1.407291122 | G80: 1.403898814 | H80: -0.003392308556
A81: 147.2519507 | B81: 2.570031369 | C81: 4.34923649 | D81: 69.19289496 | E81: 0.35 | F81: 1.419067549 | G81: 1.415702118 | H81: -0.003365430801
A82: 148.2519507 | B82: 2.587484662 | C82: 4.361335988 | D82: 69.88614513 | E82: 0.3583333333 | F82: 1.430942522 | G82: 1.42761411 | H82: -0.003328412252
A83: 149.2519507 | B83: 2.604937954 | C83: 4.37354663 | D83: 70.58576341 | E83: 0.3666666667 | F83: 1.442916867 | G83: 1.439635523 | H83: -0.003281343389
A84: 150.2519507 | B84: 2.622391247 | C84: 4.385869156 | D84: 71.29179216 | E84: 0.375 | F84: 1.454991415 | G84: 1.451767087 | H84: -0.003224327569
A85: 151.2519507 | B85: 2.639844539 | C85: 4.3983043 | D85: 72.00427339 | E85: 0.3833333333 | F85: 1.467167004 | G85: 1.464009523 | H85: -0.003157481633
A86: 152.2519507 | B86: 2.657297832 | C86: 4.410852786 | D86: 72.72324869 | E86: 0.3916666667 | F86: 1.479444481 | G86: 1.476363545 | H86: -0.0030809365
A87: 153.2519507 | B87: 2.674751125 | C87: 4.423515333 | D87: 73.44875921 | E87: 0.4 | F87: 1.491824698 | G87: 1.48882986 | H87: -0.002994837763
A88: 154.2519507 | B88: 2.692204417 | C88: 4.436292651 | D88: 74.18084561 | E88: 0.4083333333 | F88: 1.504308514 | G88: 1.501409168 | H88: -0.002899346258
A89: 155.2519507 | B89: 2.70965771 | C89: 4.449185442 | D89: 74.91954808 | E89: 0.4166666667 | F89: 1.516896796 | G89: 1.514102158 | H89: -0.002794638641
A90: 156.2519507 | B90: 2.727111002 | C90: 4.462194396 | D90: 75.66490624 | E90: 0.425 | F90: 1.52959042 | G90: 1.526909512 | H90: -0.002680907942
A91: 157.2519507 | B91: 2.744564295 | C91: 4.475320196 | D91: 76.4169592 | E91: 0.4333333333 | F91: 1.542390265 | G91: 1.539831901 | H91: -0.002558364113
A92: 158.2519507 | B92: 2.762017587 | C92: 4.488563514 | D92: 77.17574544 | E92: 0.4416666667 | F92: 1.555297222 | G92: 1.552869987 | H92: -0.002427234567
A93: 159.2519507 | B93: 2.77947088 | C93: 4.501925011 | D93: 77.94130284 | E93: 0.45 | F93: 1.568312185 | G93: 1.566024421 | H93: -0.002287764697
A94: 160.2519507 | B94: 2.796924172 | C94: 4.515405338 | D94: 78.71366865 | E94: 0.4583333333 | F94: 1.581436061 | G94: 1.579295842 | H94: -0.002140218385
A95: 161.2519507 | B95: 2.814377465 | C95: 4.529005132 | D95: 79.49287945 | E95: 0.4666666667 | F95: 1.594669758 | G95: 1.59268488 | H95: -0.001984878505
A96: 162.2519507 | B96: 2.831830757 | C96: 4.54272502 | D96: 80.27897112 | E96: 0.475 | F96: 1.608014197 | G96: 1.60619215 | H96: -0.001822047396
A97: 163.2519507 | B97: 2.84928405 | C97: 4.556565616 | D97: 81.07197885 | E97: 0.4833333333 | F97: 1.621470305 | G97: 1.619818258 | H97: -0.001652047336
A98: 164.2519507 | B98: 2.866737342 | C98: 4.57052752 | D98: 81.87193706 | E98: 0.4916666667 | F98: 1.635039015 | G98: 1.633563794 | H98: -0.00147522099
A99: 165.2519507 | B99: 2.884190635 | C99: 4.584611322 | D99: 82.67887946 | E99: 0.5 | F99: 1.648721271 | G99: 1.647429339 | H99: -0.001291931844
A100: 166.2519507 | B100: 2.901643927 | C100: 4.598817595 | D100: 83.49283893 | E100: =1/$C$7*(A100-$C$4) -> 0.5083333333 | F100: 1.662518021 | G100: =1/$D$8*(D100-$C$5)+1 -> 1.661415457 | H100: =G100-F100 -> -0.001102564625
A101: 167.2519507 | B101: 2.91909722 | C101: 4.613146899 | D101: 84.3138476 | E101: 0.5166666667 | F101: 1.676430225 | G101: 1.675522699 | H101: -0.0009075256999
A102: 168.2519507 | B102: =A102*D_R -> 2.936550512 | C102: 4.627599782 | D102: =C102/D_R-180 -> 85.14193676 | E102: 0.525 | F102: 1.690458848 | G102: 1.689751605 | H102: -0.000707243459
A103: 169.2519507 | B103: 2.954003805 | C103: =fourbar($F$31,$F$32,$G$33,1,-1,B103) -> 4.642176773 | D103: 85.97713687 | E103: 0.5333333333 | F103: =EXP(E103) -> 1.704604865 | G103: 1.704102697 | H103: -0.0005021686791
A104: 170.2519507 | B104: 2.971457097 | C104: 4.656878392 | D104: 86.81947755 | E104: 0.5416666667 | F104: 1.718869258 | G104: 1.718576483 | H104: -0.0002927748688
A105: 171.2519507 | B105: 2.98891039 | C105: 4.671705138 | D105: 87.66898754 | E105: 0.55 | F105: 1.733253018 | G105: 1.733173459 | H105: -7.955859341e-05
A106: 172.2519507 | B106: 3.006363682 | C106: 4.686657499 | D106: 88.52569472 | E106: 0.5583333333 | F106: 1.747757143 | G106: 1.747894103 | H106: 0.00013696022
A107: =A106+1 -> 173.2519507 | B107: 3.023816975 | C107: 4.701735946 | D107: 89.38962608 | E107: 0.5666666667 | F107: 1.762382641 | G107: 1.762738879 | H107: 0.0003562379977
A108: 174.2519507 | B108: 3.041270267 | C108: 4.716940934 | D108: 90.2608077 | E108: 0.575 | F108: 1.777130527 | G108: 1.777708234 | H108: 0.0005777072554
A109: 175.2519507 | B109: 3.05872356 | C109: 4.732272901 | D109: 91.13926475 | E109: 0.5833333333 | F109: 1.792001826 | G109: 1.792802602 | H109: 0.0008007763555
A110: 176.2519507 | B110: 3.076176852 | C110: 4.747732273 | D110: 92.02502148 | E110: 0.5916666667 | F110: 1.80699757 | G110: 1.808022399 | H110: 0.001024829286
A111: 177.2519507 | B111: 3.093630145 | C111: 4.763319455 | D111: 92.91810122 | E111: 0.6 | F111: 1.8221188 | G111: 1.823368026 | H111: 0.001249225459
A112: 178.2519507 | B112: 3.111083438 | C112: 4.779034838 | D112: 93.81852636 | E112: 0.6083333333 | F112: 1.837366568 | G112: 1.838839867 | H112: 0.001473299536
A113: 179.2519507 | B113: 3.12853673 | C113: 4.794878797 | D113: 94.72631835 | E113: 0.6166666667 | F113: 1.852741931 | G113: 1.854438292 | H113: 0.001696361272
A114: 180.2519507 | B114: 3.145990023 | C114: 4.81085169 | D114: 95.64149771 | E114: 0.625 | F114: 1.868245957 | G114: 1.870163653 | H114: 0.001917695375
A115: 181.2519507 | B115: 3.163443315 | C115: 4.826953859 | D115: 96.564084 | E115: 0.6333333333 | F115: 1.883879724 | G115: 1.886016285 | H115: 0.002136561406
A116: 182.2519507 | B116: 3.180896608 | C116: 4.843185627 | D116: 97.49409584 | E116: 0.6416666667 | F116: 1.899644316 | G116: 1.90199651 | H116: 0.002352193681
A117: 183.2519507 | B117: 3.1983499 | C117: 4.859547305 | D117: 98.43155093 | E117: 0.65 | F117: 1.915540829 | G117: 1.91810463 | H117: 0.002563801205
A118: 184.2519507 | B118: 3.215803193 | C118: 4.876039184 | D118: 99.37646598 | E118: 0.6583333333 | F118: 1.931570366 | G118: 1.934340934 | H118: 0.002770567633
A119: 185.2519507 | B119: 3.233256485 | C119: 4.89266154 | D119: 100.3288568 | E119: 0.6666666667 | F119: 1.947734041 | G119: 1.950705692 | H119: 0.002971651238
A120: 186.2519507 | B120: 3.250709778 | C120: 4.909414631 | D120: 101.2887383 | E120: 0.675 | F120: 1.964032976 | G120: 1.967199161 | H120: 0.003166184917
A121: 187.2519507 | B121: 3.26816307 | C121: 4.926298702 | D121: 102.2561243 | E121: 0.6833333333 | F121: 1.980468303 | G121: 1.983821579 | H121: 0.003353276209
A122: 188.2519507 | B122: 3.285616363 | C122: 4.94331398 | D122: 103.2310279 | E122: 0.6916666667 | F122: 1.997041163 | G122: 2.00057317 | H122: 0.003532007335
A123: 189.2519507 | B123: 3.303069655 | C123: 4.960460675 | D123: 104.2134611 | E123: 0.7 | F123: 2.013752707 | G123: 2.017454143 | H123: 0.003701435262
A124: 190.2519507 | B124: 3.320522948 | C124: 4.977738984 | D124: 105.2034353 | E124: 0.7083333333 | F124: 2.030604097 | G124: 2.034464688 | H124: 0.003860591787
A125: 191.2519507 | B125: 3.33797624 | C125: 4.995149084 | D125: 106.2009606 | E125: 0.7166666667 | F125: 2.047596501 | G125: 2.051604984 | H125: 0.004008483636
A126: 192.2519507 | B126: 3.355429533 | C126: 5.012691142 | D126: 107.2060465 | E126: 0.725 | F126: 2.0647311 | G126: 2.068875193 | H126: 0.004144092592
A127: 193.2519507 | B127: 3.372882825 | C127: 5.030365307 | D127: 108.2187015 | E127: 0.7333333333 | F127: 2.082009084 | G127: 2.08627546 | H127: 0.004266375634
A128: 194.2519507 | B128: 3.390336118 | C128: 5.048171711 | D128: 109.2389333 | E128: 0.7416666667 | F128: 2.099431653 | G128: 2.103805918 | H128: 0.004374265096
A129: 195.2519507 | B129: 3.40778941 | C129: 5.066110476 | D129: 110.2667488 | E129: 0.75 | F129: 2.117000017 | G129: 2.121466685 | H129: 0.004466668851
A130: 196.2519507 | B130: 3.425242703 | C130: 5.084181707 | D130: 111.3021541 | E130: 0.7583333333 | F130: 2.134715395 | G130: 2.139257865 | H130: 0.004542470502
A131: 197.2519507 | B131: 3.442695995 | C131: 5.102385494 | D131: 112.3451543 | E131: 0.7666666667 | F131: 2.152579018 | G131: 2.157179548 | H131: 0.004600529597
A132: 198.2519507 | B132: 3.460149288 | C132: 5.120721915 | D132: 113.3957538 | E132: 0.775 | F132: 2.170592127 | G132: 2.175231809 | H132: 0.004639681859
A133: 199.2519507 | B133: 3.47760258 | C133: 5.139191035 | D133: 114.4539564 | E133: 0.7833333333 | F133: 2.188755972 | G133: 2.193414712 | H133: 0.004658739428
A134: 200.2519507 | B134: =A134*D_R -> 3.495055873 | C134: 5.157792903 | D134: 115.519765 | E134: 0.7916666667 | F134: 2.207071816 | G134: 2.211728307 | H134: 0.004656491126
A135: 201.2519507 | B135: 3.512509165 | C135: 5.176527559 | D135: 116.5931817 | E135: 0.8 | F135: 2.225540928 | G135: 2.230172631 | H135: 0.004631702722
A136: 202.2519507 | B136: 3.529962458 | C136: 5.195395029 | D136: 117.6742081 | E136: 0.8083333333 | F136: 2.244164594 | G136: 2.248747711 | H136: 0.004583117227
A137: 203.2519507 | B137: 3.547415751 | C137: 5.214395326 | D137: 118.7628449 | E137: 0.8166666667 | F137: 2.262944105 | G137: 2.26745356 | H137: 0.00450945519
A138: 204.2519507 | B138: 3.564869043 | C138: 5.233528453 | D138: 119.8590923 | E138: 0.825 | F138: 2.281880765 | G138: 2.28629018 | H138: 0.004409415009
A139: 205.2519507 | B139: 3.582322336 | C139: 5.252794402 | D139: 120.9629499 | E139: 0.8333333333 | F139: 2.300975891 | G139: 2.305257564 | H139: 0.004281673255
A140: 206.2519507 | B140: 3.599775628 | C140: 5.272193153 | D140: 122.0744165 | E140: =1/$C$7*(A140-$C$4) -> 0.8416666667 | F140: =EXP(E140) -> 2.320230807 | G140: =1/$D$8*(D140-$C$5)+1 -> 2.324355692 | H140: =G140-F140 -> 0.004124885002
A141: 207.2519507 | B141: 3.617228921 | C141: 5.291724678 | D141: 123.1934904 | E141: 0.85 | F141: 2.339646852 | G141: 2.343584536 | H141: 0.003937684173
A142: 208.2519507 | B142: 3.634682213 | C142: 5.311388936 | D142: 124.3201694 | E142: 0.8583333333 | F142: 2.359225373 | G142: 2.362944057 | H142: 0.00371868389
A143: 209.2519507 | B143: 3.652135506 | C143: 5.33118588 | D143: 125.4544507 | E143: 0.8666666667 | F143: 2.37896773 | G143: 2.382434207 | H143: 0.003466476831
A144: 210.2519507 | B144: 3.669588798 | C144: 5.351115452 | D144: 126.5963311 | E144: 0.875 | F144: 2.398875294 | G144: 2.40205493 | H144: 0.0031796356
A145: 211.2519507 | B145: 3.687042091 | C145: 5.371177586 | D145: 127.7458067 | E145: 0.8833333333 | F145: 2.418949448 | G145: 2.421806161 | H145: 0.002856713096
A146: 212.2519507 | B146: 3.704495383 | C146: 5.39137221 | D146: 128.9028734 | E146: 0.8916666667 | F146: 2.439191585 | G146: 2.441687828 | H146: 0.002496242898
A147: 213.2519507 | B147: 3.721948676 | C147: 5.411699242 | D147: 130.0675266 | E147: 0.9 | F147: 2.459603111 | G147: 2.461699851 | H147: 0.002096739644
A148: 214.2519507 | B148: 3.739401968 | C148: 5.432158594 | D148: 131.2397611 | E148: 0.9083333333 | F148: 2.480185444 | G148: 2.481842144 | H148: 0.001656699424
A149: 215.2519507 | B149: 3.756855261 | C149: 5.452750173 | D149: 132.4195716 | E149: 0.9166666667 | F149: 2.500940014 | G149: 2.502114614 | H149: 0.001174600169
A150: 216.2519507 | B150: 3.774308553 | C150: 5.473473877 | D150: 133.6069524 | E150: 0.925 | F150: 2.52186826 | G150: 2.522517162 | H150: 0.0006489020517
A151: 217.2519507 | B151: 3.791761846 | C151: 5.494329602 | D151: 134.8018975 | E151: 0.9333333333 | F151: 2.542971638 | G151: 2.543049686 | H151: 7.804788349e-05
A152: 218.2519507 | B152: 3.809215138 | C152: 5.515317238 | D152: 136.0044004 | E152: 0.9416666667 | F152: 2.564251612 | G152: 2.563712075 | H152: -0.0005395364835
A153: 219.2519507 | B153: 3.826668431 | C153: 5.536436669 | D153: 137.2144547 | E153: 0.95 | F153: 2.585709659 | G153: 2.584504218 | H153: -0.001205441753
A154: 220.2519507 | B154: 3.844121723 | C154: 5.557687777 | D154: 138.4320535 | E154: 0.9583333333 | F154: 2.607347271 | G154: 2.605425997 | H154: -0.001921274778
A155: 221.2519507 | B155: 3.861575016 | C155: 5.57907044 | D155: 139.6571898 | E155: 0.9666666667 | F155: 2.62916595 | G155: 2.626477292 | H155: -0.002688658158
A156: 222.2519507 | B156: 3.879028308 | C156: 5.600584534 | D156: 140.8898566 | E156: 0.975 | F156: 2.651167211 | G156: 2.647657981 | H156: -0.003509229827
A157: 223.2519507 | B157: 3.896481601 | C157: 5.622229931 | D157: 142.1300465 | E157: 0.9833333333 | F157: 2.673352582 | G157: 2.668967939 | H157: -0.004384642652
A158: 224.2519507 | B158: 3.913934893 | C158: 5.644006503 | D158: 143.3777522 | E158: 0.9916666667 | F158: 2.695723603 | G158: 2.690407039 | H158: -0.005316564021
A159: 225.2519507 | B159: 3.931388186 | C159: 5.66591412 | D159: 144.6329662 | E159: =1/$C$7*(A159-$C$4) -> 1 | F159: =EXP(E159) -> 2.718281828 | G159: =1/$D$8*(D159-$C$5)+1 -> 2.711975153 | H159: =G159-F159 -> -0.006306675436

Sheet y=e^x_4DVLeast (4)
A1: Synthesize | I1: =PI()/180 -> 0.01745329252
A2: y=e^x | C2: 0<x<1
B4: qin | C4: 80 | D4: =C4*D_R -> 1.396263402 | E4: =C4+180 -> 260
B5: fin | C5: 26.38187307 | D5: =C5*D_R -> 0.460450548 | E5: =C5+180 -> 206.3818731 | H5: qin | K5: qin | N5: qin
H6: fin | K6: fin | N6: fin
B7: Dq | C7: 120 | D7: =C7/9 -> 13.33333333 | E7: =D7*D_R -> 0.2327105669 | H7: qin | K7: qin | N7: qin
B8: Df | C8: 100 | D8: =C8/(EXP(1)-1) -> 58.19767069 | E8: =D8*D_R -> 1.01574097 | H8: fin | K8: fin | N8: fin
B11: x | C11: y(required) | D11: q | E11: f | G11: q | H11: f | J11: cosf | K11: cosq | L11: cos(f-q) | M11: cos2f | N11: cos2q | O11: cosfcosq | P11: cosq*cos(f-q) | Q11: cosf*cos(f-q) | S11: EQ4 | T11: EQ5
B12: 0 | C12: =EXP(B12) -> 1 | D12: =$C$4+$C$7*B12 -> 80 | E12: =$C$5+$D$8*(C12-1) -> 26.38187307 | G12: =D12*D_R -> 1.396263402 | H12: 0.460450548 | J12: =COS(H12) -> 0.8958523867 | K12: =COS(G12) -> 0.1736481777 | L12: =COS(H12-G12) -> 0.593164209 | M12: =J12^2 -> 0.8025514987 | N12: =K12^2 -> 0.03015368961 | O12: =J12*K12 -> 0.1555631344 | P12: =L12*K12 -> 0.1030018839 | Q12: =J12*L12 -> 0.5313875723 | S12: =(SIN(G12)*$C$31-SIN(H12-G12))*($C$30*J12-$C$31*K12+$C$32-L12) -> -0.0005196865254 | T12: =(-SIN(H12)*$C$30+SIN(H12-G12))*($C$30*J12-$C$31*K12+$C$32-L12) -> 0.001017116294
B13: 0.1 | C13: =EXP(B13) -> 1.105170918 | D13: =$C$4+$C$7*B13 -> 92 | E13: =$C$5+$D$8*(C13-1) -> 32.50257553 | G13: 1.605702912 | H13: 0.5672769583 | J13: =COS(H13) -> 0.8433672926 | K13: =COS(G13) -> -0.0348994967 | L13: =COS(H13-G13) -> 0.5075770939 | M13: =J13^2 -> 0.7112683902 | N13: 0.00121797487 | O13: =J13*K13 -> -0.02943309405 | P13: =L13*K13 -> -0.01771418512 | Q13: =J13*L13 -> 0.4280739195 | S13: =(SIN(G13)*$C$31-SIN(H13-G13))*($C$30*J13-$C$31*K13+$C$32-L13) -> 0.0005856250382 | T13: =(-SIN(H13)*$C$30+SIN(H13-G13))*($C$30*J13-$C$31*K13+$C$32-L13) -> -0.001076544323
B14: 0.2 | C14: 1.221402758 | D14: 104 | E14: 39.26699788 | G14: 1.815142422 | H14: 0.6853384004 | J14: 0.774204906 | K14: -0.2419218956 | L14: 0.4268370449 | M14: 0.5993932364 | N14: 0.05852620357 | O14: -0.1872971184 | P14: -0.103261227 | Q14: 0.3304593342 | S14: 0.0007956112817 | T14: -0.00135137062
B15: 0.3 | C15: 1.349858808 | D15: 116 | E15: 46.74284074 | G15: 2.024581932 | H15: 0.8158164727 | J15: 0.6852739968 | K15: -0.4383711468 | L15: 0.3541741876 | M15: 0.4696004507 | N15: 0.1921692623 | O15: -0.3004043479 | P15: -0.1552597448 | Q15: 0.2427063611 | S15: 0.0002386069582 | T15: -0.0003693436918
B16: 0.4 | C16: 1.491824698 | D16: 128 | E16: 55.00492486 | G16: 2.234021443 | H16: 0.9600170436 | J16: 0.573506024 | K16: -0.6156614753 | L16: 0.2924539029 | M16: 0.3289091595 | N16: 0.3790390522 | O16: -0.3530855648 | P16: -0.1800526013 | Q16: 0.167724075 | S16: -0.0006871603895 | T16: 0.0009595999998
B17: 0.5 | C17: 1.648721271 | D17: 140 | E17: 64.13593995 | G17: 2.443460953 | H17: 1.119383321 | J17: 0.4362374364 | K17: -0.7660444431 | L17: 0.2442233359 | M17: 0.1903031009 | N17: 0.5868240888 | O17: -0.334177264 | P17: -0.1870859294 | Q17: 0.106539362 | S17: -0.001368334802 | T17: 0.001714248365
B18: 0.6 | C18: 1.8221188 | D18: 152 | E18: 74.22727228 | G18: 2.652900463 | H18: 1.295510296 | J18: 0.271822209 | K18: -0.8829475929 | L18: 0.2117900138 | M18: 0.07388731329 | N18: 0.7795964517 | O18: -0.2400047651 | P18: -0.1869994829 | Q18: 0.05756922939 | S18: -0.001154620014 | T18: 0.001296849755
B19: 0.7 | C19: 2.013752707 | D19: 164 | E19: 85.3799193 | G19: 2.862339973 | H19: 1.490160707 | J19: 0.08054826481 | K19: -0.9612616959 | L19: 0.1973137684 | M19: 0.006488022964 | N19: 0.9240240481 | O19: -0.07742796164 | P19: -0.1896701676 | Q19: 0.01589328166 | S19: 0.0002695120865 | T19: -0.0002725812063
B20: 0.8 | C20: 2.225540928 | D20: 176 | E20: 97.70550044 | G20: 3.071779484 | H20: 1.70528268 | J20: -0.13408132 | K20: -0.9975640503 | L20: 0.2028813006 | M20: 0.01797780037 | N20: 0.9951340344 | O20: 0.1337547046 | P20: -0.202387092 | Q20: -0.02720259259 | S20: 0.00229324657 | T20: -0.002107376943
B21: 0.9 | C21: 2.459603111 | D21: 188 | E21: 111.3273743 | G21: 3.281218994 | H21: 1.943029229 | J21: -0.3636963242 | K21: -0.9902680687 | L21: 0.2305146677 | M21: 0.1322750162 | N21: 0.980630848 | O21: 0.3601568565 | P21: -0.2282713148 | Q21: -0.0838373373 | S21: 0.002658500925 | T21: -0.002248243934
B22: 1 | C22: 2.718281828 | D22: 200 | E22: 126.3818731 | G22: 3.490658504 | H22: 2.2057798 | J22: -0.593164209 | K22: -0.9396926208 | L22: 0.2820379402 | M22: 0.3518437788 | N22: 0.8830222216 | O22: 0.5573920301 | P22: -0.2650289712 | Q22: -0.1672948117 | S22: -0.003085066933 | T22: 0.002437646397
J24: =SUM(J12:J22) -> 3.469870663 | K24: =SUM(K12:K22) -> -6.694984308 | L24: 3.542967465 | M24: 3.684497768 | N24: 5.810337875 | O24: -0.3149633903 | P24: -1.612728832 | Q24: 1.602018394 | S24: =SUM(S12:S22) -> 2.623419574e-05 | T24: =SUM(T12:T22) -> 9.342961994e-11
C26: =M24 -> 3.684497768 | D26: =-O24 -> 0.3149633903 | E26: =J24 -> 3.469870663 | G26: =Q24 -> 1.602018394
C27: =O24 -> -0.3149633903 | D27: =-N24 -> -5.810337875 | E27: =K24 -> -6.694984308 | G27: =P24 -> -1.612728832
C28: =J24 -> 3.469870663 | D28: =-K24 -> 6.694984308 | E28: 11 | G28: =L24 -> 3.542967465
K29: 4 Design Parameter
B30: K1 | C30: =MMULT(MINVERSE(C26:E28),G26:G28) -> -0.1075545677 | E30: a1 | F30: 1 | I30: d1 | J30: =S24 -> 2.623419574e-05 | L30: qin,
B31: K2 | C31: -0.4246018529 | E31: a2 | F31: =F30/C30 -> -9.297606053 | G31: =-F31 -> 9.297606053 | I31: d2 | J31: =T24 -> 9.342961994e-11
B32: K3 | C32: 0.6144427861 | E32: a3 | F32: =SQRT(F30^2+F31^2+F33^2-2*C32*F31*F33) -> 8.129145308 | I32: d | J32: =SQRT(J30^2+J31^2) -> 2.623419574e-05
E33: a4 | F33: =F30/C31 -> -2.355147518 | G33: =-F33 -> 2.355147518
E37: x | F37: yreq | G37: ygen
A38: =C4 -> 80 | B38: =A38*D_R+PI() -> 4.537856055 | C38: =fourbar($G$31,$F$32,$G$33,1,1,B38) -> 3.600271067 | D38: =C38/D_R-180 -> 26.28033722 | E38: =1/$C$7*(A38-$C$4) -> 0 | F38: =EXP(E38) -> 1 | G38: =1/$D$8*(D38-$C$5)+1 -> 0.9982553278 | H38: =G38-F38 -> -0.001744672181
A39: =A38+1 -> 81 | B39: =A39*D_R+PI() -> 4.555309348 | C39: =fourbar($G$31,$F$32,$G$33,1,1,B39) -> 3.609217361 | D39: =C39/D_R-180 -> 26.79292213 | E39: =1/$C$7*(A39-$C$4) -> 0.008333333333 | F39: =EXP(E39) -> 1.008368152 | G39: =1/$D$8*(D39-$C$5)+1 -> 1.007062981 | H39: =G39-F39 -> -0.001305170937
A40: =A39+1 -> 82 | B40: =A40*D_R+PI() -> 4.57276264 | C40: 3.618202491 | D40: =C40/D_R-180 -> 27.30773216 | E40: 0.01666666667 | F40: 1.01680633 | G40: 1.015908869 | H40: -0.0008974618639
A41: =A40+1 -> 83 | B41: =A41*D_R+PI() -> 4.590215933 | C41: 3.627228052 | D41: =C41/D_R-180 -> 27.82485873 | E41: 0.025 | F41: 1.025315121 | G41: 1.02479456 | H41: -0.0005205601699
A42: =A40+1 -> 83 | B42: =A42*D_R+PI() -> 4.590215933 | C42: 3.627228052 | D42: =C42/D_R-180 -> 27.82485873 | E42: 0.025 | F42: 1.025315121 | G42: 1.02479456 | H42: -0.0005205601699
A43: =A42+1 -> 84 | B43: =A43*D_R+PI() -> 4.607669225 | C43: 3.636295631 | D43: =C43/D_R-180 -> 28.34439271 | E43: 0.03333333333 | F43: 1.033895114 | G43: 1.033721618 | H43: -0.0001734952444
A44: 85 | B44: =A44*D_R+PI() -> 4.625122518 | C44: 3.645406804 | D44: =C44/D_R-180 -> 28.86642449 | E44: 0.04166666667 | F44: 1.042546905 | G44: 1.042691595 | H44: 0.0001446902687
A45: 86 | B45: =A45*D_R+PI() -> 4.64257581 | C45: 3.654563142 | D45: =C45/D_R-180 -> 29.39104403 | E45: 0.05 | F45: 1.051271096 | G45: 1.051706038 | H45: 0.0004349413412
A46: 87 | B46: =A46*D_R+PI() -> 4.660029103 | C46: 3.663766209 | D46: =C46/D_R-180 -> 29.91834091 | E46: 0.05833333333 | F46: 1.060068293 | G46: 1.060766484 | H46: 0.0006981913761
A47: 88 | B47: =A47*D_R+PI() -> 4.677482395 | C47: 3.673017562 | D47: =C47/D_R-180 -> 30.44840439 | E47: 0.06666666667 | F47: 1.068939106 | G47: 1.069874469 | H47: 0.0009353629701
A48: 89 | B48: =A48*D_R+PI() -> 4.694935688 | C48: 3.682318754 | D48: =C48/D_R-180 -> 30.98132342 | E48: 0.075 | F48: 1.077884151 | G48: 1.07903152 | H48: 0.001147368626
A49: 90 | B49: =A49*D_R+PI() -> 4.71238898 | C49: 3.691671333 | D49: =C49/D_R-180 -> 31.5171867 | E49: 0.08333333333 | F49: 1.08690405 | G49: 1.088239161 | H49: 0.001335111414
A50: 91 | B50: =A50*D_R+PI() -> 4.729842273 | C50: 3.701076843 | D50: =C50/D_R-180 -> 32.05608274 | E50: 0.09166666667 | F50: 1.095999428 | G50: 1.097498914 | H50: 0.001499485586
A51: 92 | B51: =A51*D_R+PI() -> 4.747295565 | C51: 3.710536826 | D51: =C51/D_R-180 -> 32.59809985 | E51: 0.1 | F51: 1.105170918 | G51: 1.106812295 | H51: 0.001641377142
A52: 93 | B52: =A52*D_R+PI() -> 4.764748858 | C52: 3.720052821 | D52: =C52/D_R-180 -> 33.14332623 | E52: 0.1083333333 | F52: 1.114419157 | G52: 1.116180821 | H52: 0.001761664348
A53: 94 | B53: =A53*D_R+PI() -> 4.78220215 | C53: 3.729626366 | D53: =C53/D_R-180 -> 33.69184992 | E53: 0.1166666667 | F53: 1.123744786 | G53: 1.125606004 | H53: 0.001861218211
A54: 95 | B54: =A54*D_R+PI() -> 4.799655443 | C54: 3.739258995 | D54: =C54/D_R-180 -> 34.24375892 | E54: 0.125 | F54: 1.133148453 | G54: 1.135089356 | H54: 0.001940902911
A55: 96 | B55: =A55*D_R+PI() -> 4.817108736 | C55: 3.748952244 | D55: =C55/D_R-180 -> 34.79914116 | E55: 0.1333333333 | F55: 1.142630812 | G55: 1.144632388 | H55: 0.002001576182
A56: 97 | B56: =A56*D_R+PI() -> 4.834562028 | C56: 3.758707645 | D56: =C56/D_R-180 -> 35.35808451 | E56: 0.1416666667 | F56: 1.15219252 | G56: 1.15423661 | H56: 0.002044089657
A57: 98 | B57: =A57*D_R+PI() -> 4.852015321 | C57: 3.768526734 | D57: =C57/D_R-180 -> 35.92067685 | E57: 0.15 | F57: 1.161834243 | G57: 1.163903532 | H57: 0.002069289167
A58: 99 | B58: =A58*D_R+PI() -> 4.869468613 | C58: 3.778411043 | D58: =C58/D_R-180 -> 36.48700604 | E58: 0.1583333333 | F58: 1.171556649 | G58: 1.173634664 | H58: 0.002078014996
A59: 100 | B59: =A59*D_R+PI() -> 4.886921906 | C59: 3.788362107 | D59: =C59/D_R-180 -> 37.05715997 | E59: 0.1666666667 | F59: 1.181360413 | G59: 1.183431515 | H59: 0.002071102096
A60: 101 | B60: =A60*D_R+PI() -> 4.904375198 | C60: 3.798381459 | D60: =C60/D_R-180 -> 37.63122656 | E60: 0.175 | F60: 1.191246217 | G60: 1.193295597 | H60: 0.002049380258
A61: 102 | B61: =A61*D_R+PI() -> 4.921828491 | C61: 3.808470635 | D61: =C61/D_R-180 -> 38.20929376 | E61: 0.1833333333 | F61: 1.201214746 | G61: 1.203228421 | H61: 0.002013674244
A62: 103 | B62: =A62*D_R+PI() -> 4.939281783 | C62: 3.81863117 | D62: =C62/D_R-180 -> 38.79144957 | E62: 0.1916666667 | F62: 1.211266694 | G62: 1.213231498 | H62: 0.001964803875
A63: 104 | B63: =A63*D_R+PI() -> 4.956735076 | C63: 3.828864602 | D63: =C63/D_R-180 -> 39.37778204 | E63: 0.2 | F63: 1.221402758 | G63: 1.223306342 | H63: 0.001903584078
A64: 105 | B64: =A64*D_R+PI() -> 4.974188368 | C64: 3.839172469 | D64: =C64/D_R-180 -> 39.96837928 | E64: 0.2083333333 | F64: 1.231623642 | G64: 1.233454467 | H64: 0.001830824889
A65: 106 | B65: =A65*D_R+PI() -> 4.991641661 | C65: 3.849556308 | D65: =C65/D_R-180 -> 40.56332945 | E65: 0.2166666667 | F65: 1.241930056 | G65: 1.243677388 | H65: 0.001747331419
A66: 107 | B66: =A66*D_R+PI() -> 5.009094953 | C66: 3.86001766 | D66: =C66/D_R-180 -> 41.16272076 | E66: 0.225 | F66: 1.252322716 | G66: 1.25397662 | H66: 0.001653903774
A67: 108 | B67: =A67*D_R+PI() -> 5.026548246 | C67: 3.870558065 | D67: =C67/D_R-180 -> 41.7666415 | E67: 0.2333333333 | F67: 1.262802343 | G67: 1.26435368 | H67: 0.001551336936
A68: 109 | B68: =A68*D_R+PI() -> 5.044001538 | C68: 3.881179065 | D68: =C68/D_R-180 -> 42.37517997 | E68: 0.2416666667 | F68: 1.273369666 | G68: 1.274810086 | H68: 0.001440420596
A69: 110 | B69: =A69*D_R+PI() -> 5.061454831 | C69: 3.891882201 | D69: =C69/D_R-180 -> 42.98842451 | E69: 0.25 | F69: 1.284025417 | G69: 1.285347356 | H69: 0.001321938952
A70: 111 | B70: =A70*D_R+PI() -> 5.078908123 | C70: 3.902669017 | D70: =C70/D_R-180 -> 43.6064635 | E70: 0.2583333333 | F70: 1.294770337 | G70: 1.295967007 | H70: 0.001196670461
A71: 112 | B71: =A71*D_R+PI() -> 5.096361416 | C71: 3.913541053 | D71: =C71/D_R-180 -> 44.22938531 | E71: 0.2666666667 | F71: 1.305605172 | G71: 1.30667056 | H71: 0.001065387543
A72: 113 | B72: =A72*D_R+PI() -> 5.113814708 | C72: 3.924499854 | D72: =C72/D_R-180 -> 44.85727832 | E72: 0.275 | F72: 1.316530675 | G72: 1.317459531 | H72: 0.000928856251
A73: 114 | B73: =A73*D_R+PI() -> 5.131268001 | C73: 3.93554696 | D73: =C73/D_R-180 -> 45.49023087 | E73: 0.2833333333 | F73: 1.327547604 | G73: 1.32833544 | H73: 0.0007878358917
A74: 115 | B74: =A74*D_R+PI() -> 5.148721293 | C74: 3.946683913 | D74: =C74/D_R-180 -> 46.12833127 | E74: 0.2916666667 | F74: 1.338656724 | G74: 1.339299803 | H74: 0.0006430786008
A75: 116 | B75: =A75*D_R+PI() -> 5.166174586 | C75: 3.957912252 | D75: =C75/D_R-180 -> 46.77166773 | E75: 0.3 | F75: 1.349858808 | G75: 1.350354136 | H75: 0.0004953288783
A76: 117 | B76: =A76*D_R+PI() -> 5.183627878 | C76: 3.969233516 | D76: =C76/D_R-180 -> 47.42032838 | E76: 0.3083333333 | F76: 1.361154632 | G76: 1.361499955 | H76: 0.0003453230771
A77: 118 | B77: =A77*D_R+PI() -> 5.201081171 | C77: 3.980649241 | D77: =C77/D_R-180 -> 48.07440123 | E77: 0.3166666667 | F77: 1.372544981 | G77: 1.37273877 | H77: 0.0001937888465
A78: 119 | B78: =A78*D_R+PI() -> 5.218534463 | C78: 3.992160959 | D78: =C78/D_R-180 -> 48.73397412 | E78: 0.325 | F78: 1.384030646 | G78: 1.384072091 | H78: 4.144453225e-05
A79: 120 | B79: =A79*D_R+PI() -> 5.235987756 | C79: 4.003770201 | D79: =C79/D_R-180 -> 49.39913468 | E79: 0.3333333333 | F79: 1.395612425 | G79: 1.395501424 | H79: -0.0001110014704
A80: 121 | B80: =A80*D_R+PI() -> 5.253441049 | C80: 4.015478492 | D80: =C80/D_R-180 -> 50.06997034 | E80: 0.3416666667 | F80: 1.407291122 | G80: 1.407028271 | H80: -0.0002628514076
A81: 122 | B81: =A81*D_R+PI() -> 5.270894341 | C81: 4.027287354 | D81: =C81/D_R-180 -> 50.74656824 | E81: 0.35 | F81: 1.419067549 | G81: 1.41865413 | H81: -0.0004134189039
A82: 123 | B82: =A82*D_R+PI() -> 5.288347634 | C82: 4.0391983 | D82: =C82/D_R-180 -> 51.42901522 | E82: 0.3583333333 | F82: 1.430942522 | G82: 1.430380492 | H82: -0.0005620297448
A83: 124 | B83: =A83*D_R+PI() -> 5.305800926 | C83: 4.051212842 | D83: =C83/D_R-180 -> 52.11739775 | E83: 0.3666666667 | F83: 1.442916867 | G83: 1.442208844 | H83: -0.0007080227041
A84: 125 | B84: =A84*D_R+PI() -> 5.323254219 | C84: 4.063332481 | D84: =C84/D_R-180 -> 52.81180189 | E84: 0.375 | F84: 1.454991415 | G84: 1.454140664 | H84: -0.0008507504178
A85: 126 | B85: =A85*D_R+PI() -> 5.340707511 | C85: 4.075558711 | D85: =C85/D_R-180 -> 53.51231327 | E85: 0.3833333333 | F85: 1.467167004 | G85: 1.466177424 | H85: -0.0009895803018
A86: 127 | B86: =A86*D_R+PI() -> 5.358160804 | C86: 4.087893017 | D86: =C86/D_R-180 -> 54.21901699 | E86: 0.3916666667 | F86: 1.479444481 | G86: 1.478320586 | H86: -0.001123895516
A87: 128 | B87: =A87*D_R+PI() -> 5.375614096 | C87: 4.100336876 | D87: =C87/D_R-180 -> 54.93199759 | E87: 0.4 | F87: 1.491824698 | G87: 1.490571602 | H87: -0.001253095971
A88: 129 | B88: =A88*D_R+PI() -> 5.393067389 | C88: 4.112891752 | D88: =C88/D_R-180 -> 55.651339 | E88: 0.4083333333 | F88: 1.504308514 | G88: 1.502931914 | H88: -0.001376599382
A89: 130 | B89: =A89*D_R+PI() -> 5.410520681 | C89: 4.125559098 | D89: =C89/D_R-180 -> 56.37712446 | E89: 0.4166666667 | F89: 1.516896796 | G89: 1.515402954 | H89: -0.001493842362
A90: 131 | B90: =A90*D_R+PI() -> 5.427973974 | C90: 4.138340354 | D90: =C90/D_R-180 -> 57.10943646 | E90: 0.425 | F90: 1.52959042 | G90: 1.527986138 | H90: -0.001604281564
A91: 132 | B91: =A91*D_R+PI() -> 5.445427266 | C91: 4.151236945 | D91: =C91/D_R-180 -> 57.8483567 | E91: 0.4333333333 | F91: 1.542390265 | G91: 1.54068287 | H91: -0.001707394856
A92: 133 | B92: =A92*D_R+PI() -> 5.462880559 | C92: 4.164250282 | D92: =C92/D_R-180 -> 58.59396598 | E92: 0.4416666667 | F92: 1.555297222 | G92: 1.553494539 | H92: -0.001802682547
A93: 134 | B93: =A93*D_R+PI() -> 5.480333851 | C93: 4.177381759 | D93: =C93/D_R-180 -> 59.34634418 | E93: 0.45 | F93: 1.568312185 | G93: 1.566422517 | H93: -0.001889668647
A94: 135 | B94: =A94*D_R+PI() -> 5.497787144 | C94: 4.190632751 | D94: =C94/D_R-180 -> 60.10557013 | E94: 0.4583333333 | F94: 1.581436061 | G94: 1.579468158 | H94: -0.001967902164
A95: 136 | B95: =A95*D_R+PI() -> 5.515240436 | C95: 4.204004617 | D95: =C95/D_R-180 -> 60.87172159 | E95: 0.4666666667 | F95: 1.594669758 | G95: 1.5926328 | H95: -0.002036958448
A96: 137 | B96: =A96*D_R+PI() -> 5.532693729 | C96: 4.217498692 | D96: =C96/D_R-180 -> 61.64487515 | E96: 0.475 | F96: 1.608014197 | G96: 1.605917757 | H96: -0.002096440555
A97: 138 | B97: =A97*D_R+PI() -> 5.550147021 | C97: 4.231116292 | D97: =C97/D_R-180 -> 62.42510615 | E97: 0.4833333333 | F97: 1.621470305 | G97: 1.619324324 | H97: -0.002145980661
A98: 139 | B98: =A98*D_R+PI() -> 5.567600314 | C98: 4.244858708 | D98: =C98/D_R-180 -> 63.2124886 | E98: 0.4916666667 | F98: 1.635039015 | G98: 1.632853774 | H98: -0.002185241496
A99: 140 | B99: =A99*D_R+PI() -> 5.585053606 | C99: 4.258727208 | D99: =C99/D_R-180 -> 64.00709509 | E99: 0.5 | F99: 1.648721271 | G99: 1.646507353 | H99: -0.002213917817
A100: 141 | B100: =A100*D_R+PI() -> 5.602506899 | C100: 4.272723032 | D100: =C100/D_R-180 -> 64.80899675 | E100: =1/$C$7*(A100-$C$4) -> 0.5083333333 | F100: 1.662518021 | G100: 1.660286283 | H100: =G100-F100 -> -0.002231737899
A101: 142 | B101: =A101*D_R+PI() -> 5.619960191 | C101: 4.286847394 | D101: =C101/D_R-180 -> 65.6182631 | E101: 0.5166666667 | F101: 1.676430225 | G101: 1.67419176 | H101: -0.002238465057
A102: 143 | B102: =A102*D_R+PI() -> 5.637413484 | C102: 4.301101479 | D102: =C102/D_R-180 -> 66.43496202 | E102: 0.525 | F102: 1.690458848 | G102: 1.688224949 | H102: -0.002233899194
A103: 144 | B103: =A103*D_R+PI() -> 5.654866776 | C103: =fourbar($G$31,$F$32,$G$33,1,1,B103) -> 4.315486441 | D103: =C103/D_R-180 -> 67.25915963 | E103: 0.5333333333 | F103: =EXP(E103) -> 1.704604865 | G103: =1/$D$8*(D103-$C$5)+1 -> 1.702386987 | H103: -0.002217878359
A104: 145 | B104: =A104*D_R+PI() -> 5.672320069 | C104: 4.330003402 | D104: =C104/D_R-180 -> 68.09092022 | E104: 0.5416666667 | F104: 1.718869258 | G104: 1.716678978 | H104: -0.002190280328
A105: 146 | B105: =A105*D_R+PI() -> 5.689773362 | C105: 4.34465345 | D105: =C105/D_R-180 -> 68.93030614 | E105: 0.55 | F105: 1.733253018 | G105: 1.731101994 | H105: -0.0021510242
A106: 147 | B106: =A106*D_R+PI() -> 5.707226654 | C106: 4.359437638 | D106: =C106/D_R-180 -> 69.77737773 | E106: 0.5583333333 | F106: 1.747757143 | G106: 1.745657071 | H106: -0.002100071997
A107: =A106+1 -> 148 | B107: =A107*D_R+PI() -> 5.724679947 | C107: 4.374356984 | D107: =C107/D_R-180 -> 70.63219324 | E107: 0.5666666667 | F107: 1.762382641 | G107: 1.76034521 | H107: -0.002037430273
A108: 149 | B108: =A108*D_R+PI() -> 5.742133239 | C108: 4.389412463 | D108: =C108/D_R-180 -> 71.4948087 | E108: 0.575 | F108: 1.777130527 | G108: 1.775167375 | H108: -0.00196315173
A109: 150 | B109: =A109*D_R+PI() -> 5.759586532 | C109: 4.404605017 | D109: =C109/D_R-180 -> 72.36527787 | E109: 0.5833333333 | F109: 1.792001826 | G109: 1.790124489 | H109: -0.001877336826
A110: 151 | B110: =A110*D_R+PI() -> 5.777039824 | C110: 4.41993554 | D110: =C110/D_R-180 -> 73.24365215 | E110: 0.5916666667 | F110: 1.80699757 | G110: 1.805217434 | H110: -0.001780135384
A111: 152 | B111: =A111*D_R+PI() -> 5.794493117 | C111: 4.435404887 | D111: =C111/D_R-180 -> 74.12998043 | E111: 0.6 | F111: 1.8221188 | G111: 1.820447052 | H111: -0.001671748187
A112: 153 | B112: =A112*D_R+PI() -> 5.811946409 | C112: 4.451013867 | D112: =C112/D_R-180 -> 75.02430911 | E112: =1/$C$7*(A112-$C$4) -> 0.6083333333 | F112: 1.837366568 | G112: 1.835814139 | H112: =G112-F112 -> -0.00155242856
A113: 154 | B113: =A113*D_R+PI() -> 5.829399702 | C113: 4.466763243 | D113: =C113/D_R-180 -> 75.9266819 | E113: 0.6166666667 | F113: 1.852741931 | G113: 1.851319447 | H113: -0.001422483939
A114: 155 | B114: =A114*D_R+PI() -> 5.846852994 | C114: 4.482653731 | D114: =C114/D_R-180 -> 76.83713982 | E114: 0.625 | F114: 1.868245957 | G114: 1.86696368 | H114: -0.001282277413
A115: 156 | B115: =A115*D_R+PI() -> 5.864306287 | C115: 4.498685999 | D115: =C115/D_R-180 -> 77.75572107 | E115: 0.6333333333 | F115: 1.883879724 | G115: 1.882747495 | H115: -0.001132229239
A116: 157 | B116: =A116*D_R+PI() -> 5.881759579 | C116: 4.514860661 | D116: =C116/D_R-180 -> 78.68246096 | E116: 0.6416666667 | F116: 1.899644316 | G116: 1.898671498 | H116: -0.0009728183269
A117: 158 | B117: =A117*D_R+PI() -> 5.899212872 | C117: 4.531178283 | D117: =C117/D_R-180 -> 79.61739184 | E117: 0.65 | F117: 1.915540829 | G117: 1.914736245 | H117: -0.000804583687
A118: 159 | B118: =A118*D_R+PI() -> 5.916666164 | C118: 4.547639376 | D118: =C118/D_R-180 -> 80.56054301 | E118: 0.6583333333 | F118: 1.931570366 | G118: 1.93094224 | H118: -0.0006281258386
A119: 160 | B119: =A119*D_R+PI() -> 5.934119457 | C119: 4.564244397 | D119: =C119/D_R-180 -> 81.51194063 | E119: 0.6666666667 | F119: 1.947734041 | G119: 1.947289933 | H119: -0.0004441081701
A120: 161 | B120: =A120*D_R+PI() -> 5.951572749 | C120: 4.580993747 | D120: =C120/D_R-180 -> 82.4716077 | E120: 0.675 | F120: 1.964032976 | G120: 1.963779718 | H120: -0.0002532582502
A121: 162 | B121: =A121*D_R+PI() -> 5.969026042 | C121: 4.597887771 | D121: =C121/D_R-180 -> 83.43956393 | E121: 0.6833333333 | F121: 1.980468303 | G121: 1.980411934 | H121: -5.636908372e-05
A122: 163 | B122: =A122*D_R+PI() -> 5.986479334 | C122: 4.614926753 | D122: =C122/D_R-180 -> 84.41582572 | E122: 0.6916666667 | F122: 1.997041163 | G122: 1.997186863 | H122: 0.0001456996926
A123: 164 | B123: =A123*D_R+PI() -> 6.003932627 | C123: 4.632110922 | D123: =C123/D_R-180 -> 85.40040608 | E123: 0.7 | F123: 2.013752707 | G123: 2.014104728 | H123: 0.000352020678
A124: 165 | B124: =A124*D_R+PI() -> 6.021385919 | C124: 4.649440445 | D124: =C124/D_R-180 -> 86.39331457 | E124: =1/$C$7*(A124-$C$4) -> 0.7083333333 | F124: 2.030604097 | G124: 2.031165694 | H124: =G124-F124 -> 0.000561597645
A125: 166 | B125: =A125*D_R+PI() -> 6.038839212 | C125: 4.666915426 | D125: =C125/D_R-180 -> 87.39455725 | E125: 0.7166666667 | F125: 2.047596501 | G125: 2.048369865 | H125: 0.0007733645485
A126: 167 | B126: =A126*D_R+PI() -> 6.056292504 | C126: 4.68453591 | D126: =C126/D_R-180 -> 88.40413665 | E126: 0.725 | F126: 2.0647311 | G126: 2.065717285 | H126: 0.0009861846129
A127: 168 | B127: =A127*D_R+PI() -> 6.073745797 | C127: 4.702301879 | D127: =C127/D_R-180 -> 89.42205168 | E127: 0.7333333333 | F127: 2.082009084 | G127: 2.083207934 | H127: 0.0011988495
A128: 169 | B128: =A128*D_R+PI() -> 6.091199089 | C128: 4.72021325 | D128: =C128/D_R-180 -> 90.44829764 | E128: 0.7416666667 | F128: 2.099431653 | G128: 2.100841732 | H128: 0.001410078559
A129: 170 | B129: =A129*D_R+PI() -> 6.108652382 | C129: 4.738269878 | D129: =C129/D_R-180 -> 91.48286618 | E129: 0.75 | F129: 2.117000017 | G129: 2.118618535 | H129: 0.001618518172
A130: 171 | B130: =A130*D_R+PI() -> 6.126105675 | C130: 4.756471551 | D130: =C130/D_R-180 -> 92.52574524 | E130: 0.7583333333 | F130: 2.134715395 | G130: 2.136538136 | H130: 0.001822741178
A131: 172 | B131: =A131*D_R+PI() -> 6.143558967 | C131: 4.774817995 | D131: =C131/D_R-180 -> 93.57691905 | E131: 0.7666666667 | F131: 2.152579018 | G131: 2.154600265 | H131: 0.002021246406
A132: 173 | B132: =A132*D_R+PI() -> 6.16101226 | C132: 4.793308869 | D132: =C132/D_R-180 -> 94.63636812 | E132: 0.775 | F132: 2.170592127 | G132: 2.172804585 | H132: 0.002212458292
A133: 174 | B133: =A133*D_R+PI() -> 6.178465552 | C133: 4.811943769 | D133: =C133/D_R-180 -> 95.7040692 | E133: 0.7833333333 | F133: 2.188755972 | G133: 2.191150699 | H133: 0.002394726605
A134: 175 | B134: =A134*D_R+PI() -> 6.195918845 | C134: 4.830722222 | D134: =C134/D_R-180 -> 96.7799953 | E134: 0.7916666667 | F134: 2.207071816 | G134: 2.209638142 | H134: 0.002566326267
A135: 176 | B135: =A135*D_R+PI() -> 6.213372137 | C135: 4.849643692 | D135: =C135/D_R-180 -> 97.86411571 | E135: 0.8 | F135: 2.225540928 | G135: 2.228266386 | H135: 0.002725457279
A136: 177 | B136: =A136*D_R+PI() -> 6.23082543 | C136: 4.868707579 | D136: =C136/D_R-180 -> 98.95639594 | E136: 0.8083333333 | F136: 2.244164594 | G136: 2.247034838 | H136: 0.002870244754
A137: 178 | B137: =A137*D_R+PI() -> 6.248278722 | C137: 4.887913214 | D137: =C137/D_R-180 -> 100.0567978 | E137: =1/$C$7*(A137-$C$4) -> 0.8166666667 | F137: 2.262944105 | G137: 2.265942844 | H137: =G137-F137 -> 0.002998739046
A138: 179 | B138: =A138*D_R+PI() -> 6.265732015 | C138: 4.907259868 | D138: =C138/D_R-180 -> 101.1652794 | E138: 0.825 | F138: 2.281880765 | G138: 2.284989681 | H138: 0.003108915997
A139: 180 | B139: =A139*D_R+PI() -> 6.283185307 | C139: 4.926746743 | D139: =C139/D_R-180 -> 102.2817951 | E139: 0.8333333333 | F139: 2.300975891 | G139: 2.304174568 | H139: 0.003198677276
A140: 181 | B140: =A140*D_R+PI() -> 6.3006386 | C140: -1.336812326 | D140: =C140/D_R+180 -> 103.4062957 | E140: 0.8416666667 | F140: 2.320230807 | G140: 2.323496658 | H140: 0.003265850835
A141: 182 | B141: =A141*D_R+PI() -> 6.318091892 | C141: -1.317047647 | D141: =C141/D_R+180 -> 104.5387284 | E141: =1/$C$7*(A141-$C$4) -> 0.85 | F141: =EXP(E141) -> 2.339646852 | G141: =1/$D$8*(D141-$C$5)+1 -> 2.342955043 | H141: =G141-F141 -> 0.003308191461
A142: 183 | B142: =A142*D_R+PI() -> 6.335545185 | C142: -1.297145512 | D142: =C142/D_R+180 -> 105.6790368 | E142: 0.8583333333 | F142: 2.359225373 | G142: 2.362548754 | H142: 0.003323381439
A143: 184 | B143: =A143*D_R+PI() -> 6.352998477 | C143: -1.277106967 | D143: =C143/D_R+180 -> 106.8271608 | E143: 0.8666666667 | F143: 2.37896773 | G143: 2.382276761 | H143: 0.00330903131
A144: 185 | B144: =A144*D_R+PI() -> 6.37045177 | C144: -1.256933118 | D144: =C144/D_R+180 -> 107.9830372 | E144: 0.875 | F144: 2.398875294 | G144: 2.402137975 | H144: 0.00326268073
A145: 186 | B145: =A145*D_R+PI() -> 6.387905062 | C145: -1.236625133 | D145: =C145/D_R+180 -> 109.1465991 | E145: 0.8833333333 | F145: 2.418949448 | G145: 2.422131247 | H145: 0.003181799438
A146: 187 | B146: =A146*D_R+PI() -> 6.405358355 | C146: -1.216184233 | D146: =C146/D_R+180 -> 110.3177763 | E146: 0.8916666667 | F146: 2.439191585 | G146: 2.442255373 | H146: 0.0030637883
A147: 188 | B147: =A147*D_R+PI() -> 6.422811647 | C147: -1.195611702 | D147: =C147/D_R+180 -> 111.4964956 | E147: 0.9 | F147: 2.459603111 | G147: 2.462509092 | H147: 0.002905980463
A148: 189 | B148: =A148*D_R+PI() -> 6.44026494 | C148: -1.174908874 | D148: =C148/D_R+180 -> 112.6826802 | E148: 0.9083333333 | F148: 2.480185444 | G148: 2.482891087 | H148: 0.002705642587
A149: 190 | B149: =A149*D_R+PI() -> 6.457718232 | C149: -1.154077141 | D149: =C149/D_R+180 -> 113.8762506 | E149: 0.9166666667 | F149: 2.500940014 | G149: 2.50339999 | H149: 0.002459976168
A150: 191 | B150: =A150*D_R+PI() -> 6.475171525 | C150: -1.133117946 | D150: =C150/D_R+180 -> 115.077124 | E150: 0.925 | F150: 2.52186826 | G150: 2.524034379 | H150: 0.002166118941
A151: 192 | B151: =A151*D_R+PI() -> 6.492624817 | C151: -1.112032784 | D151: =C151/D_R+180 -> 116.2852148 | E151: 0.9333333333 | F151: 2.542971638 | G151: 2.544792784 | H151: 0.001821146358
A152: 193 | B152: =A152*D_R+PI() -> 6.51007811 | C152: -1.090823198 | D152: =C152/D_R+180 -> 117.5004346 | E152: 0.9416666667 | F152: 2.564251612 | G152: 2.565673685 | H152: 0.001422073139
A153: 194 | B153: =A153*D_R+PI() -> 6.527531402 | C153: -1.069490779 | D153: =C153/D_R+180 -> 118.7226921 | E153: 0.95 | F153: 2.585709659 | G153: 2.586675514 | H153: 0.0009658548982
A154: 195 | B154: =A154*D_R+PI() -> 6.544984695 | C154: -1.048037165 | D154: =C154/D_R+180 -> 119.9518937 | E154: 0.9583333333 | F154: 2.607347271 | G154: 2.607796661 | H154: 0.0004493898197
A155: 196 | B155: =A155*D_R+PI() -> 6.562437987 | C155: -1.026464036 | D155: =C155/D_R+180 -> 121.1879429 | E155: 0.9666666667 | F155: 2.62916595 | G155: 2.629035471 | H155: -0.000130479596
A156: 197 | B156: =A156*D_R+PI() -> 6.57989128 | C156: -1.004773115 | D156: =C156/D_R+180 -> 122.4307411 | E156: 0.975 | F156: 2.651167211 | G156: 2.650390246 | H156: -0.0007769647405
A157: 198 | B157: =A157*D_R+PI() -> 6.597344573 | C157: -0.9829661658 | D157: =C157/D_R+180 -> 123.6801873 | E157: =1/$C$7*(A157-$C$4) -> 0.9833333333 | F157: =EXP(E157) -> 2.673352582 | G157: =1/$D$8*(D157-$C$5)+1 -> 2.671859253 | H157: =G157-F157 -> -0.001493329057
A158: 199 | B158: =A158*D_R+PI() -> 6.614797865 | C158: -0.9610449884 | D158: =C158/D_R+180 -> 124.9361782 | E158: 0.9916666667 | F158: 2.695723603 | G158: 2.693440717 | H158: -0.002282886156
A159: 200 | B159: =A159*D_R+PI() -> 6.632251158 | C159: -0.9390114198 | D159: =C159/D_R+180 -> 126.1986087 | E159: 1 | F159: 2.718281828 | G159: 2.715132831 | H159: -0.003148997901

Sheet y=x2_4DVLeast (3)
A1: Synthesize | I1: =PI()/180 -> 0.01745329252
A2: y=x^2 | C2: 0<x<1
B4: qin | C4: 92.99411682 | D4: =C4*D_R -> 1.623053523
B5: fin | C5: 60 | D5: =C5*D_R -> 1.047197551 | H5: qin | K5: qin | N5: qin
H6: fin | K6: fin | N6: fin
B7: Dq | C7: 100 | D7: =C7 -> 100 | E7: =D7*D_R -> 1.745329252 | H7: qin | K7: qin | N7: qin
B8: Df | C8: 100 | D8: =C8/LOG(10) -> 100 | E8: =D8*D_R -> 1.745329252 | H8: fin | K8: fin | N8: fin
B11: x | C11: y(required) | D11: q | E11: f | G11: q | H11: f | J11: cosf | K11: cosq | L11: cos(f-q) | M11: cos2f | N11: cos2q | O11: cosfcosq | P11: cosq*cos(f-q) | Q11: cosf*cos(f-q) | S11: EQ4 | T11: EQ5
B12: 0 | C12: =B12^2 -> 0 | D12: =$C$4+$C$7*B12 -> 92.99411682 | E12: =$C$5+$C$8*C12 -> 60 | G12: =D12*D_R -> 1.623053523 | H12: =E12*D_R -> 1.047197551 | J12: =COS(H12) -> 0.5 | K12: =COS(G12) -> -0.05223341579 | L12: =COS(H12-G12) -> 0.8387264875 | M12: =J12^2 -> 0.25 | N12: =K12^2 -> 0.002728329725 | O12: =J12*K12 -> -0.0261167079 | P12: =L12*K12 -> -0.04380954936 | Q12: =J12*L12 -> 0.4193632438 | S12: =(SIN(G12)*$C$31-SIN(H12-G12))*($C$30*J12-$C$31*K12+$C$32-L12) -> -0.0007707939247 | T12: =(-SIN(H12)*$C$30+SIN(H12-G12))*($C$30*J12-$C$31*K12+$C$32-L12) -> -0.001478272685
B13: 0.1 | C13: =B13^2 -> 0.01 | D13: =$C$4+$C$7*B13 -> 102.9941168 | E13: =$C$5+$C$8*C13 -> 61 | G13: =D13*D_R -> 1.797586449 | H13: 1.064650844 | J13: =COS(H13) -> 0.4848096202 | K13: =COS(G13) -> -0.224851004 | L13: =COS(H13-G13) -> 0.7432135285 | M13: =J13^2 -> 0.2350403679 | N13: 0.05055797398 | O13: =J13*K13 -> -0.1090099298 | P13: =L13*K13 -> -0.167112308 | Q13: =J13*L13 -> 0.3603170685 | S13: =(SIN(G13)*$C$31-SIN(H13-G13))*($C$30*J13-$C$31*K13+$C$32-L13) -> -0.0001005399419 | T13: =(-SIN(H13)*$C$30+SIN(H13-G13))*($C$30*J13-$C$31*K13+$C$32-L13) -> 0.0008414326034
B14: 0.2 | C14: 0.04 | D14: =$C$4+$C$7*B14 -> 112.9941168 | E14: 64 | G14: =D14*D_R -> 1.972119374 | H14: 1.117010721 | J14: 0.4383711468 | K14: -0.3906366082 | L14: 0.6561365198 | M14: 0.1921692623 | N14: 0.1525969596 | O14: -0.1712438179 | P14: -0.2563109446 | Q14: 0.2876313186 | S14: -0.0006779288021 | T14: 0.001682702785
B15: 0.3 | C15: 0.09 | D15: 122.9941168 | E15: 69 | G15: =D15*D_R -> 2.146652299 | H15: 1.204277184 | J15: 0.3583679495 | K15: -0.5445529167 | L15: 0.5878683198 | M15: 0.1284275873 | N15: 0.2965378791 | O15: -0.1951503122 | P15: -0.3201254082 | Q15: 0.2106731644 | S15: -0.0009373296672 | T15: 0.001529109034
B16: 0.4 | C16: 0.16 | D16: 132.9941168 | E16: 76 | G16: =D16*D_R -> 2.321185224 | H16: 1.326450232 | J16: 0.2419218956 | K16: -0.6819232604 | L16: 0.5447251476 | M16: 0.05852620357 | N16: 0.4650193331 | O16: -0.1649721678 | P16: -0.3714607487 | Q16: 0.1317809403 | S16: -0.0009208053715 | T16: 0.001131458593
B17: 0.5 | C17: 0.25 | D17: 142.9941168 | E17: 85 | G17: =D17*D_R -> 2.495718149 | H17: 1.483529864 | J17: 0.08715574275 | K17: -0.7985737109 | L17: 0.5300063398 | M17: 0.007596123494 | N17: 0.6377199718 | O17: -0.06960028491 | P17: -0.4232491296 | Q17: 0.0461930962 | S17: -0.0005079226229 | T17: 0.0004958922195
B18: 0.6 | C18: 0.36 | D18: 152.9941168 | E18: 96 | G18: =D18*D_R -> 2.670251075 | H18: 1.675516082 | J18: -0.1045284633 | K18: -0.8909599033 | L18: 0.5447251476 | M18: 0.01092619963 | N18: 0.7938095494 | O18: 0.09313066953 | P18: -0.4853282648 | Q18: -0.05693928258 | S18: 0.0007818624298 | T18: -0.0006297618444
B19: 0.7 | C19: 0.49 | D19: 162.9941168 | E19: 109 | G19: =D19*D_R -> 2.844784 | H19: 1.902408885 | J19: -0.3255681545 | K19: -0.9562747299 | L19: 0.5878683198 | M19: 0.1059946232 | N19: 0.9144613591 | O19: 0.311332599 | P19: -0.5621636187 | Q19: -0.1913912039 | S19: 0.003035372978 | T19: -0.002100071518
B20: 0.8 | C20: 0.64 | D20: 172.9941168 | E20: 124 | G20: =D20*D_R -> 3.019316925 | H20: 2.164208272 | J20: -0.5591929035 | K20: -0.9925336328 | L20: 0.6561365198 | M20: 0.3126967033 | N20: 0.9851230122 | O20: 0.5550177639 | P20: -0.6512375636 | Q20: -0.3669068856 | S20: 0.004811300945 | T20: -0.002999140444
B21: 0.9 | C21: 0.81 | D21: 182.9941168 | E21: 141 | G21: =D21*D_R -> 3.19384985 | H21: 2.460914245 | J21: -0.7771459615 | K21: -0.9986349034 | L21: 0.7432135285 | M21: 0.6039558454 | N21: 0.9972716703 | O21: 0.7760850821 | P21: -0.7421989702 | Q21: -0.5775853922 | S21: 0.00264570137 | T21: -0.001565501421
B22: 1 | C22: 1 | D22: 192.9941168 | E22: 160 | G22: =D22*D_R -> 3.368382775 | H22: 2.792526803 | J22: -0.9396926208 | K22: -0.9743931578 | L22: 0.8387264875 | M22: 0.8830222216 | N22: 0.949442026 | O22: 0.9156300602 | P22: -0.8172493508 | Q22: -0.7881450912 | S22: -0.007358917291 | T22: 0.004339188492
J24: =SUM(J12:J22) -> -0.5955017485 | K24: =SUM(K12:K22) -> -7.505567243 | L24: 7.271346346 | M24: 2.788355138 | N24: 6.245268064 | O24: 1.915102954 | P24: -4.840245857 | Q24: -0.5250090237 | S24: =SUM(S12:S22) -> 1.019999207e-10 | T24: =SUM(T12:T22) -> 0.001247035815
C26: =M24 -> 2.788355138 | D26: =-O24 -> -1.915102954 | E26: =J24 -> -0.5955017485 | G26: =Q24 -> -0.5250090237 | M26: =M27/D_R ->  | O26: -1.239373944
C27: =O24 -> 1.915102954 | D27: =-N24 -> -6.245268064 | E27: =K24 -> -7.505567243 | G27: =P24 -> -4.840245857 | K27: 75 | L27: =K27*D_R -> 1.308996939 | M27: =fourbar(ABS(F31),F32,ABS(F33),F30,-1,L27+PI()) -> 
C28: =J24 -> -0.5955017485 | D28: =-K24 -> 7.505567243 | E28: 11 | G28: =L24 -> 7.271346346
K29: 4 Design Parameter
B30: K1 | C30: =MMULT(MINVERSE(C26:E28),G26:G28) -> -0.4022514339 | E30: a1 | F30: 1 | I30: d1 | J30: =S24 -> 1.019999207e-10 | L30: qin,
B31: K2 | C31: -0.6477351374 | E31: a2 | F31: =F30/C30 -> -2.486007297 | G31: =-F31 -> 2.486007297 | I31: d2 | J31: =T24 -> 0.001247035815
B32: K3 | C32: 1.081220413 | E32: a3 | F32: =SQRT(F30^2+F31^2+F33^2-2*C32*F31*F33) -> 1.124379679 | I32: d | J32: =SQRT(J30^2+J31^2) -> 0.001247035815
E33: a4 | F33: =F30/C31 -> -1.543840904 | G33: =-F33 -> 1.543840904
E37: x | F37: yreq | G37: ygen
A38: =C4 -> 92.99411682 | B38: =A38*D_R+PI() -> 4.764646177 | C38: =fourbar($G$31,$F$32,$G$33,1,1,B38) -> 4.232202443 | D38: =C38/D_R-180 -> 62.48733802 | E38: =1/$C$7*(A38-$C$4) -> 0 | F38: =E38^2 -> 0 | G38: =1/$C$8*(D38-$C$5) -> 0.02487338024 | H38: =G38-F38 -> 0.02487338024
A39: =A38+1 -> 93.99411682 | B39: 4.78209947 | C39: =fourbar($G$31,$F$32,$G$33,1,1,B39) -> 4.218926096 | D39: 61.7266594 | E39: =1/$C$7*(A39-$C$4) -> 0.01 | F39: =E39^2 -> 0.0001 | G39: =1/$C$8*(D39-$C$5) -> 0.01726659402 | H39: =G39-F39 -> 0.01716659402
A40: =A39+1 -> 94.99411682 | B40: 4.799552762 | C40: 4.209759395 | D40: 61.2014461 | E40: 0.02 | F40: =E40^2 -> 0.0004 | G40: 0.01201446097 | H40: 0.01161446097
A41: =A40+1 -> 95.99411682 | B41: 4.817006055 | C41: 4.203346269 | D41: 60.83400106 | E41: 0.03 | F41: =E41^2 -> 0.0009 | G41: 0.008340010561 | H41: 0.007440010561
A42: =A40+1 -> 95.99411682 | B42: 4.817006055 | C42: 4.203346269 | D42: 60.83400106 | E42: 0.03 | F42: =E42^2 -> 0.0009 | G42: 0.008340010561 | H42: 0.007440010561
A43: =A42+1 -> 96.99411682 | B43: 4.834459347 | C43: 4.198957324 | D43: 60.58253303 | E43: 0.04 | F43: 0.0016 | G43: 0.005825330298 | H43: 0.004225330298
A44: 97.99411682 | B44: 4.85191264 | C44: 4.196147711 | D44: 60.42155407 | E44: 0.05 | F44: 0.0025 | G44: 0.004215540675 | H44: 0.001715540675
A45: 98.99411682 | B45: 4.869365932 | C45: 4.194623159 | D45: 60.33420368 | E45: 0.06 | F45: 0.0036 | G45: 0.003342036785 | H45: -0.0002579632146
A46: 99.99411682 | B46: 4.886819225 | C46: 4.194177596 | D46: 60.30867478 | E46: 0.07 | F46: 0.0049 | G46: 0.003086747755 | H46: -0.001813252245
A47: 100.9941168 | B47: 4.904272517 | C47: 4.194660514 | D47: 60.33634395 | E47: 0.08 | F47: 0.0064 | G47: 0.003363439475 | H47: -0.003036560525
A48: 101.9941168 | B48: 4.92172581 | C48: 4.195958396 | D48: 60.41070711 | E48: 0.09 | F48: 0.0081 | G48: 0.004107071142 | H48: -0.003992928858
A49: 102.9941168 | B49: 4.939179102 | C49: 4.197983436 | D49: 60.52673335 | E49: 0.1 | F49: 0.01 | G49: 0.005267333487 | H49: -0.004732666513
A50: 103.9941168 | B50: 4.956632395 | C50: 4.200666335 | D50: 60.68045211 | E50: 0.11 | F50: 0.0121 | G50: 0.006804521143 | H50: -0.005295478857
A51: 104.9941168 | B51: 4.974085687 | C51: 4.203951505 | D51: 60.8686785 | E51: 0.12 | F51: 0.0144 | G51: 0.008686784984 | H51: -0.005713215016
A52: 105.9941168 | B52: 4.99153898 | C52: 4.207793768 | D52: 61.08882395 | E52: 0.13 | F52: 0.0169 | G52: 0.01088823951 | H52: -0.006011760494
A53: 106.9941168 | B53: 5.008992272 | C53: 4.212156011 | D53: 61.33876211 | E53: 0.14 | F53: 0.0196 | G53: 0.01338762109 | H53: -0.006212378908
A54: 107.9941168 | B54: 5.026445565 | C54: 4.217007489 | D54: 61.61673131 | E54: 0.15 | F54: 0.0225 | G54: 0.01616731309 | H54: -0.006332686914
A55: 108.9941168 | B55: 5.043898857 | C55: 4.222322556 | D55: 61.92126221 | E55: 0.16 | F55: 0.0256 | G55: 0.01921262214 | H55: -0.006387377856
A56: 109.9941168 | B56: 5.06135215 | C56: 4.228079715 | D56: 62.2511231 | E56: 0.17 | F56: 0.0289 | G56: 0.02251123096 | H56: -0.006388769036
A57: 110.9941168 | B57: 5.078805442 | C57: 4.23426088 | D57: 62.60527775 | E57: 0.18 | F57: 0.0324 | G57: 0.02605277754 | H57: -0.006347222464
A58: 111.9941168 | B58: 5.096258735 | C58: 4.240850805 | D58: 62.98285268 | E58: 0.19 | F58: 0.0361 | G58: 0.02982852684 | H58: -0.006271473157
A59: 112.9941168 | B59: 5.113712027 | C59: 4.247836633 | D59: 63.38311113 | E59: 0.2 | F59: 0.04 | G59: 0.03383111128 | H59: -0.00616888872
A60: 113.9941168 | B60: 5.13116532 | C60: 4.255207528 | D60: 63.80543229 | E60: 0.21 | F60: 0.0441 | G60: 0.03805432292 | H60: -0.006045677078
A61: 114.9941168 | B61: 5.148618612 | C61: 4.262954385 | D61: 64.24929454 | E61: 0.22 | F61: 0.0484 | G61: 0.04249294541 | H61: -0.005907054588
A62: 115.9941168 | B62: 5.166071905 | C62: 4.271069592 | D62: 64.71426165 | E62: 0.23 | F62: 0.0529 | G62: 0.04714261652 | H62: -0.005757383479
A63: 116.9941168 | B63: 5.183525198 | C63: 4.279546828 | D63: 65.19997147 | E63: 0.24 | F63: 0.0576 | G63: 0.05199971468 | H63: -0.005600285325
A64: 117.9941168 | B64: 5.20097849 | C64: 4.288380899 | D64: 65.70612644 | E64: 0.25 | F64: 0.0625 | G64: 0.05706126441 | H64: -0.005438735587
A65: 118.9941168 | B65: 5.218431783 | C65: 4.297567601 | D65: 66.23248569 | E65: 0.26 | F65: 0.0676 | G65: 0.06232485691 | H65: -0.00527514309
A66: 119.9941168 | B66: 5.235885075 | C66: 4.307103601 | D66: 66.77885826 | E66: 0.27 | F66: 0.0729 | G66: 0.06778858258 | H66: -0.005111417418
A67: 120.9941168 | B67: 5.253338368 | C67: 4.316986337 | D67: 67.34509734 | E67: 0.28 | F67: 0.0784 | G67: 0.07345097345 | H67: -0.004949026553
A68: 121.9941168 | B68: 5.27079166 | C68: 4.327213932 | D68: 67.93109534 | E68: 0.29 | F68: 0.0841 | G68: 0.0793109534 | H68: -0.004789046603
A69: 122.9941168 | B69: 5.288244953 | C69: 4.337785114 | D69: 68.53677949 | E69: 0.3 | F69: 0.09 | G69: 0.08536779492 | H69: -0.004632205081
A70: 123.9941168 | B70: =A70*D_R+PI() -> 5.305698245 | C70: 4.348699158 | D70: 69.16210811 | E70: 0.31 | F70: 0.0961 | G70: 0.09162108108 | H70: -0.004478918916
A71: 124.9941168 | B71: 5.323151538 | C71: 4.359955817 | D71: 69.80706719 | E71: 0.32 | F71: 0.1024 | G71: 0.09807067187 | H71: -0.004329328134
A72: 125.9941168 | B72: 5.34060483 | C72: 4.371555279 | D72: 70.4716674 | E72: 0.33 | F72: 0.1089 | G72: 0.104716674 | H72: -0.004183326018
A73: 126.9941168 | B73: 5.358058123 | C73: 4.383498113 | D73: 71.15594136 | E73: 0.34 | F73: 0.1156 | G73: 0.1115594136 | H73: -0.004040586356
A74: 127.9941168 | B74: 5.375511415 | C74: 4.395785227 | D74: 71.85994117 | E74: 0.35 | F74: 0.1225 | G74: 0.1185994117 | H74: -0.003900588332
A75: 128.9941168 | B75: 5.392964708 | C75: 4.408417831 | D75: 72.58373605 | E75: 0.36 | F75: 0.1296 | G75: 0.1258373605 | H75: -0.003762639494
A76: 129.9941168 | B76: 5.410418 | C76: 4.421397395 | D76: 73.32741028 | E76: 0.37 | F76: 0.1369 | G76: 0.1332741028 | H76: -0.003625897178
A77: 130.9941168 | B77: 5.427871293 | C77: 4.434725617 | D77: 74.09106113 | E77: 0.38 | F77: 0.1444 | G77: 0.1409106113 | H77: -0.0034893887
A78: 131.9941168 | B78: 5.445324585 | C78: 4.448404387 | D78: 74.87479694 | E78: 0.39 | F78: 0.1521 | G78: 0.1487479694 | H78: -0.003352030588
A79: 132.9941168 | B79: 5.462777878 | C79: 4.462435758 | D79: 75.67873529 | E79: 0.4 | F79: 0.16 | G79: 0.1567873529 | H79: -0.003212647078
A80: 133.9941168 | B80: 5.48023117 | C80: 4.476821912 | D80: 76.50300119 | E80: 0.41 | F80: 0.1681 | G80: 0.1650300119 | H80: -0.003069988078
A81: 134.9941168 | B81: 5.497684463 | C81: 4.491565129 | D81: 77.34772532 | E81: 0.42 | F81: 0.1764 | G81: 0.1734772532 | H81: -0.002922746756
A82: 135.9941168 | B82: 5.515137755 | C82: 4.50666776 | D82: 78.21304231 | E82: 0.43 | F82: 0.1849 | G82: 0.1821304231 | H82: -0.002769576909
A83: 136.9941168 | B83: 5.532591048 | C83: 4.522132192 | D83: 79.09908898 | E83: 0.44 | F83: 0.1936 | G83: 0.1909908898 | H83: -0.002609110213
A84: 137.9941168 | B84: 5.55004434 | C84: 4.537960821 | D84: 80.00600265 | E84: 0.45 | F84: 0.2025 | G84: 0.2000600265 | H84: -0.002439973483
A85: 138.9941168 | B85: 5.567497633 | C85: 4.554156024 | D85: 80.9339194 | E85: 0.46 | F85: 0.2116 | G85: 0.209339194 | H85: -0.002260805994
A86: 139.9941168 | B86: 5.584950925 | C86: 4.570720122 | D86: 81.8829723 | E86: 0.47 | F86: 0.2209 | G86: 0.218829723 | H86: -0.002070276958
A87: 140.9941168 | B87: 5.602404218 | C87: 4.587655355 | D87: 82.85328968 | E87: 0.48 | F87: 0.2304 | G87: 0.2285328968 | H87: -0.001867103183
A88: 141.9941168 | B88: 5.619857511 | C88: 4.604963848 | D88: 83.8449933 | E88: 0.49 | F88: 0.2401 | G88: 0.238449933 | H88: -0.001650066961
A89: 142.9941168 | B89: 5.637310803 | C89: 4.622647581 | D89: 84.85819658 | E89: 0.5 | F89: 0.25 | G89: 0.2485819658 | H89: -0.001418034198
A90: 143.9941168 | B90: 5.654764096 | C90: 4.640708355 | D90: 85.89300272 | E90: 0.51 | F90: 0.2601 | G90: 0.2589300272 | H90: -0.00116997279
A91: 144.9941168 | B91: 5.672217388 | C91: 4.659147762 | D91: 86.94950288 | E91: 0.52 | F91: 0.2704 | G91: 0.2694950288 | H91: -0.0009049712181
A92: 145.9941168 | B92: 5.689670681 | C92: 4.677967148 | D92: 88.02777427 | E92: 0.53 | F92: 0.2809 | G92: 0.2802777427 | H92: -0.0006222573486
A93: 146.9941168 | B93: 5.707123973 | C93: 4.697167585 | D93: 89.12787826 | E93: 0.54 | F93: 0.2916 | G93: 0.2912787826 | H93: -0.0003212173757
A94: 147.9941168 | B94: 5.724577266 | C94: 4.716749834 | D94: 90.24985852 | E94: 0.55 | F94: 0.3025 | G94: 0.3024985852 | H94: -1.414846146e-06
A95: 148.9941168 | B95: 5.742030558 | C95: 4.736714315 | D95: 91.39373903 | E95: 0.56 | F95: 0.3136 | G95: 0.3139373903 | H95: 0.0003373903186
A96: 149.9941168 | B96: 5.759483851 | C96: 4.757061072 | D96: 92.55952229 | E96: 0.57 | F96: 0.3249 | G96: 0.3255952229 | H96: 0.000695222905
A97: 150.9941168 | B97: 5.776937143 | C97: 4.777789738 | D97: 93.74718737 | E97: 0.58 | F97: 0.3364 | G97: 0.3374718737 | H97: 0.001071873713
A98: 151.9941168 | B98: 5.794390436 | C98: 4.798899508 | D98: 94.95668812 | E98: 0.59 | F98: 0.3481 | G98: 0.3495668812 | H98: 0.001466881223
A99: 152.9941168 | B99: 5.811843728 | C99: 4.820389106 | D99: 96.18795138 | E99: 0.6 | F99: 0.36 | G99: 0.3618795138 | H99: 0.001879513772
A100: 153.9941168 | B100: 5.829297021 | C100: 4.842256753 | D100: 97.44087524 | E100: =1/$C$7*(A100-$C$4) -> 0.61 | F100: =E100^2 -> 0.3721 | G100: =1/$C$8*(D100-$C$5) -> 0.3744087524 | H100: =G100-F100 -> 0.002308752419
A101: 154.9941168 | B101: 5.846750313 | C101: 4.86450014 | D101: 98.71532747 | E101: 0.62 | F101: 0.3844 | G101: 0.3871532747 | H101: 0.00275327467
A102: 155.9941168 | B102: 5.864203606 | C102: 4.887116404 | D102: =C102/D_R-180 -> 100.0111439 | E102: 0.63 | F102: 0.3969 | G102: 0.4001114393 | H102: 0.003211439268
A103: 156.9941168 | B103: 5.881656898 | C103: =fourbar($G$31,$F$32,$G$33,1,1,B103) -> 4.910102099 | D103: 101.3281272 | E103: 0.64 | F103: 0.4096 | G103: 0.4132812723 | H103: 0.003681272255
A104: 157.9941168 | B104: 5.899110191 | C104: 4.933453177 | D104: 102.6660455 | E104: 0.65 | F104: 0.4225 | G104: 0.4266604545 | H104: 0.00416045451
A105: 158.9941168 | B105: 5.916563483 | C105: 4.957164969 | D105: 104.0246311 | E105: 0.66 | F105: 0.4356 | G105: 0.440246311 | H105: 0.004646310997
A106: 159.9941168 | B106: 5.934016776 | C106: 4.981232171 | D106: 105.4035802 | E106: 0.67 | F106: 0.4489 | G106: 0.4540358019 | H106: 0.005135801922
A107: =A106+1 -> 160.9941168 | B107: 5.951470068 | C107: 5.005648829 | D107: 106.8025516 | E107: 0.68 | F107: 0.4624 | G107: 0.468025516 | H107: 0.005625516039
A108: 161.9941168 | B108: 5.968923361 | C108: 5.030408332 | D108: 108.2211666 | E108: 0.69 | F108: 0.4761 | G108: 0.4822116663 | H108: 0.006111666282
A109: 162.9941168 | B109: 5.986376653 | C109: 5.055503412 | D109: 109.6590088 | E109: 0.7 | F109: 0.49 | G109: 0.4965900879 | H109: 0.006590087935
A110: 163.9941168 | B110: 6.003829946 | C110: 5.080926142 | D110: 111.115624 | E110: 0.71 | F110: 0.5041 | G110: 0.5111562395 | H110: 0.007056239511
A111: 164.9941168 | B111: 6.021283238 | C111: 5.106667945 | D111: 112.5905206 | E111: 0.72 | F111: 0.5184 | G111: 0.5259052065 | H111: 0.007505206477
A112: 165.9941168 | B112: 6.038736531 | C112: 5.132719605 | D112: 114.0831708 | E112: 0.73 | F112: 0.5329 | G112: 0.540831708 | H112: 0.007931707954
A113: 166.9941168 | B113: 6.056189824 | C113: 5.159071282 | D113: 115.5930106 | E113: 0.74 | F113: 0.5476 | G113: 0.5559301065 | H113: 0.008330106473
A114: 167.9941168 | B114: 6.073643116 | C114: 5.185712536 | D114: 117.1194421 | E114: 0.75 | F114: 0.5625 | G114: 0.5711944208 | H114: 0.008694420828
A115: 168.9941168 | B115: 6.091096409 | C115: 5.212632357 | D115: 118.6618342 | E115: 0.76 | F115: 0.5776 | G115: 0.586618342 | H115: 0.00901834203
A116: 169.9941168 | B116: 6.108549701 | C116: 5.239819194 | D116: 120.2195252 | E116: 0.77 | F116: 0.5929 | G116: 0.6021952523 | H116: 0.009295252312
A117: 170.9941168 | B117: 6.126002994 | C117: 5.267260997 | D117: 121.7918247 | E117: 0.78 | F117: 0.6084 | G117: 0.6179182471 | H117: 0.009518247101
A118: 171.9941168 | B118: 6.143456286 | C118: 5.294945257 | D118: 123.378016 | E118: 0.79 | F118: 0.6241 | G118: 0.6337801598 | H118: 0.009680159789
A119: 172.9941168 | B119: 6.160909579 | C119: 5.322859057 | D119: 124.9773589 | E119: 0.8 | F119: 0.64 | G119: 0.6497735891 | H119: 0.009773589144
A120: 173.9941168 | B120: 6.178362871 | C120: 5.350989122 | D120: 126.5890929 | E120: 0.81 | F120: 0.6561 | G120: 0.6658909291 | H120: 0.009790929078
A121: 174.9941168 | B121: 6.195816164 | C121: 5.379321875 | D121: 128.2124401 | E121: 0.82 | F121: 0.6724 | G121: 0.6821244005 | H121: 0.009724400525
A122: 175.9941168 | B122: 6.213269456 | C122: 5.407843495 | D122: 129.8466085 | E122: 0.83 | F122: 0.6889 | G122: 0.6984660851 | H122: 0.009566085075
A123: 176.9941168 | B123: 6.230722749 | C123: 5.43653998 | D123: 131.490796 | E123: 0.84 | F123: 0.7056 | G123: 0.71490796 | H123: 0.00930796001
A124: 177.9941168 | B124: 6.248176041 | C124: 5.465397209 | D124: 133.1441934 | E124: 0.85 | F124: 0.7225 | G124: 0.7314419344 | H124: 0.008941934363
A125: 178.9941168 | B125: 6.265629334 | C125: 5.494401005 | D125: 134.8059886 | E125: 0.86 | F125: 0.7396 | G125: 0.7480598856 | H125: 0.008459885578
A126: 179.9941168 | B126: 6.283082626 | C126: 5.523537202 | D126: 136.4753696 | E126: 0.87 | F126: 0.7569 | G126: 0.7647536964 | H126: 0.007853696355
A127: 180.9941168 | B127: 6.300535919 | C127: -0.7303936037 | D127: =C127/D_R+180 -> 138.1515291 | E127: 0.88 | F127: 0.7744 | G127: 0.7815152913 | H127: 0.007115291265
A128: 181.9941168 | B128: 6.317989211 | C128: -0.7010347546 | D128: =C128/D_R+180 -> 139.8336673 | E128: 0.89 | F128: 0.7921 | G128: 0.7983366727 | H128: 0.006236672708
A129: 182.9941168 | B129: 6.335442504 | C129: -0.67158532 | D129: =C129/D_R+180 -> 141.5209956 | E129: 0.9 | F129: 0.81 | G129: 0.8152099558 | H129: 0.005209955823
A130: 183.9941168 | B130: 6.352895796 | C130: -0.6420588064 | D130: =C130/D_R+180 -> 143.2127402 | E130: 0.91 | F130: 0.8281 | G130: 0.832127402 | H130: 0.004027401959
A131: 184.9941168 | B131: 6.370349089 | C131: -0.6124684097 | D131: =C131/D_R+180 -> 144.908145 | E131: 0.92 | F131: 0.8464 | G131: 0.8490814504 | H131: 0.002681450389
A132: 185.9941168 | B132: 6.387802381 | C132: -0.5828269637 | D132: =C132/D_R+180 -> 146.6064748 | E132: 0.93 | F132: 0.8649 | G132: 0.8660647479 | H132: 0.001164747924
A133: 186.9941168 | B133: 6.405255674 | C133: -0.5531468923 | D133: =C133/D_R+180 -> 148.3070176 | E133: 0.94 | F133: 0.8836 | G133: 0.8830701762 | H133: -0.0005298238071
A134: 187.9941168 | B134: =A134*D_R+PI() -> 6.422708966 | C134: -0.5234401664 | D134: =C134/D_R+180 -> 150.0090876 | E134: 0.95 | F134: 0.9025 | G134: 0.9000908763 | H134: -0.002409123651
A135: 188.9941168 | B135: 6.440162259 | C135: -0.4937182657 | D135: =C135/D_R+180 -> 151.7120271 | E135: 0.96 | F135: 0.9216 | G135: 0.9171202711 | H135: -0.004479728947
A136: 189.9941168 | B136: 6.457615551 | C136: -0.4639921451 | D136: =C136/D_R+180 -> 153.4152084 | E136: 0.97 | F136: 0.9409 | G136: 0.9341520836 | H136: -0.006747916399
A137: 190.9941168 | B137: 6.475068844 | C137: -0.4342722064 | D137: =C137/D_R+180 -> 155.1180354 | E137: 0.98 | F137: 0.9604 | G137: 0.9511803541 | H137: -0.009219645861
A138: 191.9941168 | B138: 6.492522137 | C138: -0.4045682754 | D138: =C138/D_R+180 -> 156.8199453 | E138: 0.99 | F138: 0.9801 | G138: 0.9681994529 | H138: -0.01190054706
A139: 192.9941168 | B139: 6.509975429 | C139: -0.3748895835 | D139: =C139/D_R+180 -> 158.5204091 | E139: 1 | F139: 1 | G139: 0.9852040908 | H139: -0.01479590921

Sheet y=x2_4DVLeast
A1: Synthesize | I1: =PI()/180 -> 0.01745329252
A2: y=x^2 | C2: 0<x<1
B4: qin | C4: 260 | D4: =C4*D_R -> 4.537856055 | E4: =C4+180 -> 440
B5: fin | C5: 228.708441 | D5: =C5*D_R -> 3.991715322 | E5: =C5+180 -> 408.708441 | H5: qin | K5: qin | N5: qin
H6: fin | K6: fin | N6: fin
B7: Dq | C7: 60 | D7: =C7/9 -> 6.666666667 | E7: =D7*D_R -> 0.1163552835 | H7: qin | K7: qin | N7: qin
B8: Df | C8: 40 | D8: =C8/LOG(10) -> 40 | E8: =D8*D_R -> 0.6981317008 | H8: fin | K8: fin | N8: fin | S8: =(SIN(G12)*$C$31-SIN(H12-G12))*($C$30*J12-$C$31*K12+$C$32-L12) -> -6.755451202e-05
B11: x | C11: y(required) | D11: q | E11: f | G11: q | H11: f | J11: cosf | K11: cosq | L11: cos(f-q) | M11: cos2f | N11: cos2q | O11: cosfcosq | P11: cosq*cos(f-q) | Q11: cosf*cos(f-q) | S11: EQ4 | T11: EQ5
B12: 0 | C12: =B12^2 -> 0 | D12: =$C$4+$C$7*C12 -> 260 | E12: =$C$5+$C$8*C12 -> 228.708441 | G12: =D12*D_R -> 4.537856055 | H12: =E12*D_R -> 3.991715322 | I12: 1.904351857 | J12: =COS(H12) -> -0.6598909826 | K12: =COS(G12) -> -0.1736481777 | L12: =COS(H12-G12) -> 0.8545353578 | M12: =J12^2 -> 0.4354561089 | N12: =K12^2 -> 0.03015368961 | O12: =J12*K12 -> 0.1145888666 | P12: =L12*K12 -> -0.1483885076 | Q12: =J12*L12 -> -0.5639001769 | S12: =(SIN(G12)*$C$31-SIN(H12-G12))*($C$30*J12-$C$31*K12+$C$32-L12) -> -6.755451202e-05 | T12: =(-SIN(H12)*$C$30+SIN(H12-G12))*($C$30*J12-$C$31*K12+$C$32-L12) -> -0.0001955457797
B13: 0.1 | C13: =B13^2 -> 0.01 | D13: =$C$4+$C$7*B13 -> 266 | E13: =$C$5+$C$8*C13 -> 229.108441 | G13: =D13*D_R -> 4.64257581 | H13: 3.998696639 | I13: 2.009071612 | J13: =COS(H13) -> -0.6546294523 | K13: =COS(G13) -> -0.06975647374 | L13: =COS(H13-G13) -> 0.7997731053 | M13: =J13^2 -> 0.4285397198 | N13: 0.004865965629 | O13: =J13*K13 -> 0.0456646422 | P13: =L13*K13 -> -0.05578935162 | Q13: =J13*L13 -> -0.5235550299 | S13: =(SIN(G13)*$C$31-SIN(H13-G13))*($C$30*J13-$C$31*K13+$C$32-L13) -> -3.371235878e-05 | T13: =(-SIN(H13)*$C$30+SIN(H13-G13))*($C$30*J13-$C$31*K13+$C$32-L13) -> 0.0003419695284
B14: 0.2 | C14: 0.04 | D14: =$C$4+$C$7*B14 -> 272 | E14: 230.308441 | G14: 4.747295565 | H14: 4.01964059 | I14: 2.113791367 | J14: -0.6386544606 | K14: 0.0348994967 | L14: 0.7467361777 | M14: 0.4078795201 | N14: 0.00121797487 | O14: -0.02228871924 | P14: 0.02606071677 | Q14: -0.4769063908 | S14: -0.000104251923 | T14: 0.0003448779634
B15: 0.3 | C15: 0.09 | D15: 278 | E15: 232.308441 | G15: 4.852015321 | H15: 4.054547175 | I15: 2.218511122 | J15: -0.6114104684 | K15: 0.139173101 | L15: 0.6985207156 | M15: 0.3738227609 | N15: 0.01936915203 | O15: -0.08509189085 | P15: 0.09721529407 | Q15: -0.4270828779 | S15: 7.881606579e-06 | T15: -1.803120374e-05
B16: 0.4 | C16: 0.16 | D16: 284 | E16: 235.108441 | G16: 4.956735076 | H16: 4.103416394 | I16: 2.323230877 | J16: -0.5720250403 | K16: 0.2419218956 | L16: 0.6574862556 | M16: 0.3272126467 | N16: 0.05852620357 | O16: -0.1383853821 | P16: 0.1590603213 | Q16: -0.3760986019 | S16: 0.0001958889535 | T16: -0.0003564657474
B17: 0.5 | C17: 0.25 | D17: 290 | E17: 238.708441 | G17: 5.061454831 | H17: 4.166248247 | I17: 2.427950632 | J17: -0.5193932251 | K17: 0.3420201433 | L17: 0.6253576246 | M17: 0.2697693223 | N17: 0.1169777784 | O17: -0.1776429453 | P17: 0.2138849044 | Q17: -0.3248065135 | S17: 0.000275504615 | T17: -0.0004181497568
B18: 0.6 | C18: 0.36 | D18: 296 | E18: 243.108441 | G18: 5.166174586 | H18: 4.243042734 | I18: 2.532670387 | J18: -0.4523033225 | K18: 0.4383711468 | L18: 0.6033254834 | M18: 0.2045782955 | N18: 0.1921692623 | O18: -0.1982767262 | P18: 0.264480484 | Q18: -0.2728861206 | S18: 0.0001468902477 | T18: -0.0001893527036
B19: 0.7 | C19: 0.49 | D19: 302 | E19: 248.308441 | G19: 5.270894341 | H19: 4.333799855 | I19: 2.637390143 | J19: -0.369609871 | K19: 0.5299192642 | L19: 0.5921319038 | M19: 0.1366114568 | N19: 0.2808144266 | O19: -0.1958633909 | P19: 0.3137821028 | Q19: -0.2188577966 | S19: -0.0001420798611 | T19: 0.0001566096809
B20: 0.8 | C20: 0.64 | D20: 308 | E20: 254.308441 | G20: 5.375614096 | H20: 4.43851961 | I20: 2.742109898 | J20: -0.2704586168 | K20: 0.6156614753 | L20: 0.5921319038 | M20: 0.07314786339 | N20: 0.3790390522 | O20: -0.166510951 | P20: 0.3645528015 | Q20: -0.1601471757 | S20: -0.0003951948402 | T20: 0.000373477219
B21: 0.9 | C21: 0.81 | D21: 314 | E21: =$C$5+$C$8*C21 -> 261.108441 | G21: 5.480333851 | H21: 4.557202 | I21: 2.846829653 | J21: -0.1545648358 | K21: 0.6946583705 | L21: 0.6033254834 | M21: 0.02389028846 | N21: 0.4825502516 | O21: -0.107369757 | P21: 0.4191050971 | Q21: -0.09325290426 | S21: -0.0003134512181 | T21: 0.0002546213365
B22: 1 | C22: 1 | D22: 320 | E22: 268.708441 | G22: 5.585053606 | H22: 4.689847023 | I22: 2.951549408 | J22: -0.02254004863 | K22: 0.7660444431 | L22: 0.6253576246 | M22: 0.0005080537922 | N22: 0.5868240888 | O22: -0.017266679 | P22: 0.4790517333 | Q22: -0.01409559127 | S22: 0.0004189047293 | T22: -0.0002940107076
J24: =SUM(J12:J22) -> -4.925480324 | K24: =SUM(K12:K22) -> 3.559264685 | L24: 7.398681635 | M24: 2.681416037 | N24: 2.152507846 | O24: -0.9484429327 | P24: 2.133015596 | Q24: -3.451589179 | S24: =SUM(S12:S22) -> -1.117456113e-05 | T24: =SUM(T12:T22) -> -1.70701961e-10
C26: =M24 -> 2.681416037 | D26: =-O24 -> 0.9484429327 | E26: =J24 -> -4.925480324 | G26: =Q24 -> -3.451589179
C27: =O24 -> -0.9484429327 | D27: =-N24 -> -2.152507846 | E27: =K24 -> 3.559264685 | G27: =P24 -> 2.133015596
C28: =J24 -> -4.925480324 | D28: =-K24 -> -3.559264685 | E28: 11 | G28: =L24 -> 7.398681635
K29: 4 Design Parameter
B30: K1 | C30: =MMULT(MINVERSE(C26:E28),G26:G28) -> 0.4941539479 | E30: a1 | F30: 1 | I30: d1 | J30: =S24 -> -1.117456113e-05 | L30: fn,
B31: K2 | C31: 0.5793603384 | E31: a2 | F31: =F30/C30 -> 2.023660853 | G31: =-F31 -> -2.023660853 | I31: d2 | J31: =T24 -> -1.70701961e-10
B32: K3 | C32: 1.081338543 | E32: a3 | F32: =SQRT(F30^2+F31^2+F33^2-2*C32*F31*F33) -> 0.7213589851 | I32: d | J32: =SQRT(J30^2+J31^2) -> 1.117456114e-05
E33: a4 | F33: =F30/C31 -> 1.726041522 | G33: =-F33 -> -1.726041522
E37: x | F37: yreq | G37: ygen
A38: =C4 -> 260 | B38: =A38*D_R -> 4.537856055 | C38: =fourbar($F$31,$F$32,$F$33,1,1,B38) -> 4.000971695 | D38: =C38/D_R -> 229.2387921 | E38: =1/$C$7*(A38-$C$4) -> 0 | F38: =E38^2 -> 0 | G38: =1/$C$8*(D38-$C$5) -> 0.01325877778 | H38: =G38-F38 -> 0.01325877778
A39: =A38+1 -> 261 | B39: =A39*D_R -> 4.555309348 | C39: =fourbar($F$31,$F$32,$F$33,1,1,B39) -> 3.995083647 | D39: =C39/D_R -> 228.9014318 | E39: =1/$C$7*(A39-$C$4) -> 0.01666666667 | F39: =E39^2 -> 0.0002777777778 | G39: =1/$C$8*(D39-$C$5) -> 0.004824770202 | H39: =G39-F39 -> 0.004546992424
A40: =A39+1 -> 262 | B40: =A40*D_R -> 4.57276264 | C40: 3.991681252 | D40: =C40/D_R -> 228.7064889 | E40: 0.03333333333 | F40: =E40^2 -> 0.001111111111 | G40: -4.880202071e-05 | H40: -0.001159913132
A41: =A40+1 -> 263 | B41: =A41*D_R -> 4.590215933 | C41: 3.990036087 | D41: =C41/D_R -> 228.6122279 | E41: 0.05 | F41: =E41^2 -> 0.0025 | G41: -0.002405327203 | H41: -0.004905327203
A42: =A40+1 -> 263 | B42: =A42*D_R -> 4.590215933 | C42: 3.990036087 | D42: =C42/D_R -> 228.6122279 | E42: 0.05 | F42: =E42^2 -> 0.0025 | G42: -0.002405327203 | H42: -0.004905327203
A43: =A42+1 -> 264 | B43: =A43*D_R -> 4.607669225 | C43: 3.989729335 | D43: =C43/D_R -> 228.5946523 | E43: 0.06666666667 | F43: 0.004444444444 | G43: -0.002844716999 | H43: -0.007289161444
A44: 265 | B44: =A44*D_R -> 4.625122518 | C44: 3.990494787 | D44: =C44/D_R -> 228.6385095 | E44: 0.08333333333 | F44: 0.006944444444 | G44: -0.00174828767 | H44: -0.008692732115
A45: 266 | B45: =A45*D_R -> 4.64257581 | C45: 3.992151423 | D45: =C45/D_R -> 228.7334277 | E45: 0.1 | F45: 0.01 | G45: 0.0006246683966 | H45: -0.009375331603
A46: 267 | B46: =A46*D_R -> 4.660029103 | C46: 3.994570054 | D46: =C46/D_R -> 228.872005 | E46: 0.1166666667 | F46: 0.01361111111 | G46: 0.004089101869 | H46: -0.009522009242
A47: 268 | B47: =A47*D_R -> 4.677482395 | C47: 3.997655097 | D47: =C47/D_R -> 229.048765 | E47: 0.1333333333 | F47: 0.01777777778 | G47: 0.0085081015 | H47: -0.009269676278
A48: 269 | B48: =A48*D_R -> 4.694935688 | C48: 4.001333859 | D48: =C48/D_R -> 229.2595425 | E48: 0.15 | F48: 0.0225 | G48: 0.0137775396 | H48: -0.008722460399
A49: 270 | B49: =A49*D_R -> 4.71238898 | C49: 4.005549855 | D49: =C49/D_R -> 229.5011013 | E49: 0.1666666667 | F49: 0.02777777778 | G49: 0.01981650879 | H49: -0.007961268985
A50: 271 | B50: =A50*D_R -> 4.729842273 | C50: 4.010258459 | D50: =C50/D_R -> 229.7708844 | E50: 0.1833333333 | F50: 0.03361111111 | G50: 0.02656108682 | H50: -0.007050024295
A51: 272 | B51: =A51*D_R -> 4.747295565 | C51: 4.015423956 | D51: =C51/D_R -> 230.0668456 | E51: 0.2 | F51: 0.04 | G51: 0.03396011604 | H51: -0.006039883957
A52: 273 | B52: =A52*D_R -> 4.764748858 | C52: 4.021017484 | D52: =C52/D_R -> 230.3873312 | E52: 0.2166666667 | F52: 0.04694444444 | G52: 0.04197225612 | H52: -0.004972188326
A53: 274 | B53: =A53*D_R -> 4.78220215 | C53: 4.027015563 | D53: =C53/D_R -> 230.7309958 | E53: 0.2333333333 | F53: 0.05444444444 | G53: 0.0505638706 | H53: -0.003880573847
A54: 275 | B54: =A54*D_R -> 4.799655443 | C54: 4.033399004 | D54: =C54/D_R -> 231.09674 | E54: 0.25 | F54: 0.0625 | G54: 0.05970747696 | H54: -0.002792523039
A55: 276 | B55: =A55*D_R -> 4.817108736 | C55: 4.040152109 | D55: =C55/D_R -> 231.4836645 | E55: 0.2666666667 | F55: 0.07111111111 | G55: 0.06938058741 | H55: -0.001730523702
A56: 277 | B56: =A56*D_R -> 4.834562028 | C56: 4.04726205 | D56: =C56/D_R -> 231.891034 | E56: 0.2833333333 | F56: 0.08027777778 | G56: 0.07956482706 | H56: -0.0007129507221
A57: 278 | B57: =A57*D_R -> 4.852015321 | C57: 4.054718394 | D57: =C57/D_R -> 232.3182511 | E57: 0.3 | F57: 0.09 | G57: 0.09024525308 | H57: 0.0002452530768
A58: 279 | B58: =A58*D_R -> 4.869468613 | C58: 4.062512734 | D58: =C58/D_R -> 232.7648338 | E58: 0.3166666667 | F58: 0.1002777778 | G58: 0.1014098221 | H58: 0.001132044336
A59: 280 | B59: =A59*D_R -> 4.886921906 | C59: 4.070638391 | D59: =C59/D_R -> 233.2303997 | E59: 0.3333333333 | F59: 0.1111111111 | G59: 0.1130489688 | H59: 0.001937857689
A60: 281 | B60: =A60*D_R -> 4.904375198 | C60: 4.079090183 | D60: =C60/D_R -> 233.7146517 | E60: 0.35 | F60: 0.1225 | G60: 0.1251552688 | H60: 0.002655268832
A61: 282 | B61: =A61*D_R -> 4.921828491 | C61: 4.087864231 | D61: =C61/D_R -> 234.2173677 | E61: 0.3666666667 | F61: 0.1344444444 | G61: 0.1377231672 | H61: 0.003278722739
A62: 283 | B62: =A62*D_R -> 4.939281783 | C62: 4.096957808 | D62: =C62/D_R -> 234.7383913 | E62: 0.3833333333 | F62: 0.1469444444 | G62: 0.1507487571 | H62: 0.003804312701
A63: 284 | B63: =A63*D_R -> 4.956735076 | C63: 4.106369211 | D63: =C63/D_R -> 235.2776249 | E63: 0.4 | F63: 0.16 | G63: 0.1642295994 | H63: 0.004229599424
A64: 285 | B64: =A64*D_R -> 4.974188368 | C64: 4.116097658 | D64: =C64/D_R -> 235.8350239 | E64: 0.4166666667 | F64: 0.1736111111 | G64: 0.1781645732 | H64: 0.004553462053
A65: 286 | B65: =A65*D_R -> 4.991641661 | C65: 4.126143201 | D65: =C65/D_R -> 236.4105911 | E65: 0.4333333333 | F65: 0.1877777778 | G65: 0.1925537526 | H65: 0.004775974822
A66: 287 | B66: =A66*D_R -> 5.009094953 | C66: 4.136506653 | D66: =C66/D_R -> 237.0043731 | E66: 0.45 | F66: 0.2025 | G66: 0.2073983045 | H66: 0.00489830449
A67: 288 | B67: =A67*D_R -> 5.026548246 | C67: 4.147189533 | D67: =C67/D_R -> 237.6164571 | E67: 0.4666666667 | F67: 0.2177777778 | G67: 0.2227004025 | H67: 0.00492262474
A68: 289 | B68: =A68*D_R -> 5.044001538 | C68: 4.15819401 | D68: =C68/D_R -> 238.2469672 | E68: 0.4833333333 | F68: 0.2336111111 | G68: 0.2384631556 | H68: 0.004852044514
A69: 290 | B69: =A69*D_R -> 5.061454831 | C69: 4.169522867 | D69: =C69/D_R -> 238.8960629 | E69: 0.5 | F69: 0.25 | G69: 0.2546905479 | H69: 0.004690547861
A70: 291 | B70: =A70*D_R -> 5.078908123 | C70: 4.181179461 | D70: =C70/D_R -> 239.5639365 | E70: 0.5166666667 | F70: 0.2669444444 | G70: 0.2713873878 | H70: 0.004442943371
A71: 292 | B71: =A71*D_R -> 5.096361416 | C71: 4.193167693 | D71: =C71/D_R -> 240.2508116 | E71: 0.5333333333 | F71: 0.2844444444 | G71: 0.288559266 | H71: 0.004114821572
A72: 293 | B72: =A72*D_R -> 5.113814708 | C72: 4.205491989 | D72: =C72/D_R -> 240.9569417 | E72: 0.55 | F72: 0.3025 | G72: 0.306212519 | H72: 0.003712519009
A73: 294 | B73: =A73*D_R -> 5.131268001 | C73: 4.218157271 | D73: =C73/D_R -> 241.6826089 | E73: 0.5666666667 | F73: 0.3211111111 | G73: 0.324354199 | H73: 0.003243087907
A74: 295 | B74: =A74*D_R -> 5.148721293 | C74: 4.231168944 | D74: =C74/D_R -> 242.4281229 | E74: 0.5833333333 | F74: 0.3402777778 | G74: 0.3429920483 | H74: 0.002714270493
A75: 296 | B75: =A75*D_R -> 5.166174586 | C75: 4.24453288 | D75: =C75/D_R -> 243.1938201 | E75: 0.6 | F75: 0.36 | G75: 0.3621344772 | H75: 0.002134477225
A76: 297 | B76: =A76*D_R -> 5.183627878 | C76: 4.258255405 | D76: =C76/D_R -> 243.9800628 | E76: 0.6166666667 | F76: 0.3802777778 | G76: 0.381790546 | H76: 0.001512768232
A77: 298 | B77: =A77*D_R -> 5.201081171 | C77: 4.272343286 | D77: =C77/D_R -> 244.7872389 | E77: 0.6333333333 | F77: 0.4011111111 | G77: 0.4019699485 | H77: 0.0008588373931
A78: 299 | B78: =A78*D_R -> 5.218534463 | C78: 4.286803723 | D78: =C78/D_R -> 245.6157609 | E78: 0.65 | F78: 0.4225 | G78: 0.4226829985 | H78: 0.0001829985316
A79: 300 | B79: =A79*D_R -> 5.235987756 | C79: 4.30164434 | D79: =C79/D_R -> 246.4660657 | E79: 0.6666666667 | F79: 0.4444444444 | G79: 0.4439406177 | H79: -0.0005038267522
A80: 301 | B80: =A80*D_R -> 5.253441049 | C80: 4.316873181 | D80: =C80/D_R -> 247.3386139 | E80: 0.6833333333 | F80: 0.4669444444 | G80: 0.4657543244 | H80: -0.001190120038
A81: 302 | B81: =A81*D_R -> 5.270894341 | C81: 4.332498694 | D81: =C81/D_R -> 248.2338899 | E81: 0.7 | F81: 0.49 | G81: 0.4881362238 | H81: -0.001863776246
A82: 303 | B82: =A82*D_R -> 5.288347634 | C82: 4.348529734 | D82: =C82/D_R -> 249.1524009 | E82: 0.7166666667 | F82: 0.5136111111 | G82: 0.5110989977 | H82: -0.00251211339
A83: 304 | B83: =A83*D_R -> 5.305800926 | C83: 4.364975552 | D83: =C83/D_R -> 250.0946768 | E83: 0.7333333333 | F83: 0.5377777778 | G83: 0.5346558955 | H83: -0.003121882306
A84: 305 | B84: =A84*D_R -> 5.323254219 | C84: 4.381845784 | D84: =C84/D_R -> 251.0612699 | E84: 0.75 | F84: 0.5625 | G84: 0.5588207233 | H84: -0.003679276743
A85: 306 | B85: =A85*D_R -> 5.340707511 | C85: 4.399150451 | D85: =C85/D_R -> 252.0527543 | E85: 0.7666666667 | F85: 0.5877777778 | G85: 0.5836078336 | H85: -0.004169944193
A86: 307 | B86: =A86*D_R -> 5.358160804 | C86: 4.416899947 | D86: =C86/D_R -> 253.0697255 | E86: 0.7833333333 | F86: 0.6136111111 | G86: 0.6090321133 | H86: -0.004578997858
A87: 308 | B87: =A87*D_R -> 5.375614096 | C87: 4.435105027 | D87: =C87/D_R -> 254.1127998 | E87: 0.8 | F87: 0.64 | G87: 0.6351089698 | H87: -0.004891030173
A88: 309 | B88: =A88*D_R -> 5.393067389 | C88: 4.453776801 | D88: =C88/D_R -> 255.1826136 | E88: 0.8166666667 | F88: 0.6669444444 | G88: 0.6618543161 | H88: -0.005090128306
A89: 310 | B89: =A89*D_R -> 5.410520681 | C89: 4.472926719 | D89: =C89/D_R -> 256.2798231 | E89: 0.8333333333 | F89: 0.6944444444 | G89: 0.6892845523 | H89: -0.005159892097
A90: 311 | B90: =A90*D_R -> 5.427973974 | C90: 4.492566555 | D90: =C90/D_R -> 257.4051028 | E90: 0.85 | F90: 0.7225 | G90: 0.7174165451 | H90: -0.005083454921
A91: 312 | B91: =A91*D_R -> 5.445427266 | C91: 4.512708393 | D91: =C91/D_R -> 258.5591451 | E91: 0.8666666667 | F91: 0.7511111111 | G91: 0.7462676031 | H91: -0.004843507997
A92: 313 | B92: =A92*D_R -> 5.462880559 | C92: 4.533364606 | D92: =C92/D_R -> 259.7426589 | E92: 0.8833333333 | F92: 0.7802777778 | G92: 0.7758554491 | H92: -0.004422328697
A93: 314 | B93: =A93*D_R -> 5.480333851 | C93: 4.554547833 | D93: =C93/D_R -> 260.9563684 | E93: 0.9 | F93: 0.81 | G93: 0.8061981865 | H93: -0.003801813461
A94: 315 | B94: =A94*D_R -> 5.497787144 | C94: 4.576270952 | D94: =C94/D_R -> 262.2010114 | E94: 0.9166666667 | F94: 0.8402777778 | G94: 0.8373142618 | H94: -0.002963515957
A95: 316 | B95: =A95*D_R -> 5.515240436 | C95: 4.598547048 | D95: =C95/D_R -> 263.4773378 | E95: 0.9333333333 | F95: 0.8711111111 | G95: 0.8692224199 | H95: -0.001888691181
A96: 317 | B96: =A96*D_R -> 5.532693729 | C96: 4.621389383 | D96: =C96/D_R -> 264.7861071 | E96: 0.95 | F96: 0.9025 | G96: 0.9019416538 | H96: -0.00055834625
A97: 318 | B97: =A97*D_R -> 5.550147021 | C97: 4.644811347 | D97: =C97/D_R -> 266.1280868 | E97: 0.9666666667 | F97: 0.9344444444 | G97: 0.9354911458 | H97: 0.001046701317
A98: 319 | B98: =A98*D_R -> 5.567600314 | C98: 4.668826418 | D98: =C98/D_R -> 267.504049 | E98: 0.9833333333 | F98: 0.9669444444 | G98: 0.9698902014 | H98: 0.002945756979
A99: 320 | B99: =A99*D_R -> 5.585053606 | C99: 4.693448107 | D99: =C99/D_R -> 268.9147679 | E99: 1 | F99: 1 | G99: 1.005158173 | H99: 0.00515817328

Sheet y=x2_5DVLeast
A1: Synthesize | I1: =PI()/180 -> 0.01745329252
A2: y=x^2 | C2: 0<x<1
B4: qin | C4: 290.3169897 | D4: =C4*D_R -> 5.066987345
B5: fin | C5: 231.3799527 | D5: =C5*D_R -> 4.038341998 | H5: qin | K5: qin | N5: qin
H6: fin | K6: fin | N6: fin
B7: Dq | C7: 100 | D7: =C7/9 -> 11.11111111 | E7: =D7*D_R -> 0.1939254724 | H7: qin | K7: qin | N7: qin
B8: Df | C8: 100 | D8: =C8/LOG(10) -> 100 | E8: =D8*D_R -> 1.745329252 | H8: fin | K8: fin | N8: fin
S9: =(SIN(G12)*$C$31-SIN(H12-G12))*($C$30*J12-$C$31*K12+$C$32-L12) -> -4.08113644e-05
B11: x | C11: y(required) | D11: q | E11: f | G11: q | H11: f | J11: cosf | K11: cosq | L11: cos(f-q) | M11: cos2f | N11: cos2q | O11: cosfcosq | P11: cosq*cos(f-q) | Q11: cosf*cos(f-q) | S11: EQ4 | T11: EQ5
B12: 0 | C12: =B12^2 -> 0 | D12: =$C$4+$C$7*B12 -> 290.3169897 | E12: =$C$5+$C$8*C12 -> 231.3799527 | G12: =D12*D_R -> 5.066987345 | H12: 4.038341998 | J12: =COS(H12) -> -0.6241530059 | K12: =COS(G12) -> 0.3472137449 | L12: =COS(H12-G12) -> 0.5159797148 | M12: =J12^2 -> 0.3895669748 | N12: =K12^2 -> 0.1205573847 | O12: =J12*K12 -> -0.2167145026 | P12: =L12*K12 -> 0.1791552491 | Q12: =J12*L12 -> -0.32205029 | S12: =(SIN(G12)*$C$31-SIN(H12-G12))*($C$30*J12-$C$31*K12+$C$32-L12) -> -4.08113644e-05 | T12: =(-SIN(H12)*$C$30+SIN(H12-G12))*($C$30*J12-$C$31*K12+$C$32-L12) -> 0.001306256412
B13: 0.1 | C13: =B13^2 -> 0.01 | D13: =$C$4+$C$7*B13 -> 300.3169897 | E13: =$C$5+$C$8*C13 -> 232.3799527 | G13: 5.24152027 | H13: 4.05579529 | J13: =COS(H13) -> -0.610422342 | K13: =COS(G13) -> 0.504783621 | L13: =COS(H13-G13) -> 0.3756252601 | M13: =J13^2 -> 0.3726154356 | N13: 0.254806504 | O13: =J13*K13 -> -0.3081312001 | P13: =L13*K13 -> 0.1896094789 | Q13: =J13*L13 -> -0.229290051 | S13: =(SIN(G13)*$C$31-SIN(H13-G13))*($C$30*J13-$C$31*K13+$C$32-L13) -> 0.0002713269449 | T13: =(-SIN(H13)*$C$30+SIN(H13-G13))*($C$30*J13-$C$31*K13+$C$32-L13) -> -0.001192821935
B14: 0.2 | C14: 0.04 | D14: 310.3169897 | E14: 235.3799527 | G14: 5.416053195 | H14: 4.108155168 | J14: -0.5681317187 | K14: 0.6470159022 | L14: 0.2598803557 | M14: 0.3227736498 | N14: 0.4186295777 | O14: -0.3675902565 | P14: 0.1681467228 | Q14: -0.1476462731 | S14: 0.0009539010574 | T14: -0.002395945498
B15: 0.3 | C15: 0.09 | D15: 320.3169897 | E15: 240.3799527 | G15: 5.59058612 | H15: 4.19542163 | J15: -0.4942460652 | K15: 0.7695889326 | L15: 0.1747302892 | M15: 0.244279173 | N15: 0.5922671252 | O15: -0.3803663018 | P15: 0.1344704968 | Q15: -0.08635975793 | S15: 0.00062784636 | T15: -0.00109124242
B16: 0.4 | C16: 0.16 | D16: 330.3169897 | E16: 247.3799527 | G16: 5.765119046 | H16: 4.317594678 | J16: -0.3846183225 | K16: 0.8687783927 | L16: 0.1229599901 | M16: 0.147931254 | N16: 0.7547758956 | O16: -0.3341480881 | P16: 0.1068249825 | Q16: -0.04729266511 | S16: -0.001079666576 | T16: 0.001396813331
B17: 0.5 | C17: 0.25 | D17: 340.3169897 | E17: 256.3799527 | G17: 5.939651971 | H17: 4.474674311 | J17: -0.2354821796 | K17: 0.941570461 | L17: 0.1056212916 | M17: 0.05545185691 | N17: 0.886554933 | O17: -0.2217230644 | P17: 0.09944988818 | Q17: -0.02487193195 | S17: -0.002981714865 | T17: 0.00300497922
B18: 0.6 | C18: 0.36 | D18: 350.3169897 | E18: 267.3799527 | G18: 6.114184896 | H18: 4.666660528 | J18: -0.04571251666 | K18: 0.9857533873 | L18: 0.1229599901 | M18: 0.002089634179 | N18: 0.9717097405 | O18: -0.04506126813 | P18: 0.1212082267 | Q18: -0.005620810593 | S18: -0.002883553391 | T18: 0.002358511747
B19: 0.7 | C19: 0.49 | D19: 360.3169897 | E19: 280.3799527 | G19: 6.288717821 | H19: 4.893553331 | J19: 0.1801749909 | K19: 0.9999846957 | L19: 0.1747302892 | M19: 0.03246302735 | N19: 0.9999693916 | O19: 0.1801722335 | P19: 0.1747276151 | Q19: 0.03148202828 | S19: 0.0007266011376 | T19: -0.0005035239664
B20: 0.8 | C20: 0.64 | D20: 370.3169897 | E20: 295.3799527 | G20: 6.463250746 | H20: 5.155352719 | J20: 0.4286190378 | K20: 0.9838319751 | L20: 0.2598803557 | M20: 0.1837142796 | N20: 0.9679253553 | O20: 0.4216891146 | P20: 0.2556786036 | Q20: 0.111389668 | S20: 0.006182425229 | T20: -0.003796260678
B21: 0.9 | C21: 0.81 | D21: 380.3169897 | E21: 312.3799527 | G21: 6.637783672 | H21: 5.452058692 | J21: 0.6740439671 | K21: 0.9377860179 | L21: 0.3756252601 | M21: 0.4543352695 | N21: 0.8794426153 | O21: 0.6321090078 | P21: 0.3522561169 | Q21: 0.2531879404 | S21: 0.00671311906 | T21: -0.003812209998
B22: 1 | C22: 1 | D22: 390.3169897 | E22: 331.3799527 | G22: 6.812316597 | H22: 5.78367125 | J22: 0.8778154315 | K22: 0.863245907 | L22: 0.5159797148 | M22: 0.7705599317 | N22: 0.745193496 | O22: 0.7577705783 | P22: 0.4454173769 | Q22: 0.452934956 | S22: -0.008448832729 | T22: 0.004595554673
J24: =SUM(J12:J22) -> -0.8021127233 | K24: =SUM(K12:K22) -> 8.849553037 | L24: 3.003972511 | M24: 2.975780486 | N24: 7.591832019 | O24: 0.1180062525 | P24: 2.226944758 | Q24: -0.01413718695 | S24: =SUM(S12:S22) -> 4.064086299e-05 | T24: =SUM(T12:T22) -> -0.0001298891106
C26: =M24 -> 2.975780486 | D26: =-O24 -> -0.1180062525 | E26: =J24 -> -0.8021127233 | G26: =Q24 -> -0.01413718695
C27: =O24 -> 0.1180062525 | D27: =-N24 -> -7.591832019 | E27: =K24 -> 8.849553037 | G27: =P24 -> 2.226944758
C28: =J24 -> -0.8021127233 | D28: =-K24 -> -8.849553037 | E28: 11 | G28: =L24 -> 3.003972511
K29: 5 Design Parameter
B30: K1 | C30: =MMULT(MINVERSE(C26:E28),G26:G28) -> 0.3038411668 | E30: a1 | F30: 1 | I30: d1 | J30: =S24 -> 4.064086299e-05
B31: K2 | C31: 0.8927994658 | E31: a2 | F31: =F30/C30 -> 3.291193259 | G31: =-F31 -> -3.291193259 | I31: d2 | J31: =T24 -> -0.0001298891106
B32: K3 | C32: 1.013505782 | E32: a3 | F32: =SQRT(F30^2+F31^2+F33^2-2*C32*F31*F33) -> 2.369428463 | I32: d | J32: =SQRT(J30^2+J31^2) -> 0.0001360987171
E33: a4 | F33: =F30/C31 -> 1.120072355 | G33: =-F33 -> -1.120072355
E37: x | F37: yreq | G37: ygen
A38: =C4 -> 290.3169897 | B38: =A38*D_R -> 5.066987345 | C38: =fourbar($F$31,$F$32,$G$33,1,-1,B38) -> 7.176534376 | D38: =C38/D_R-180 -> 231.1851313 | E38: =1/$C$7*(A38-$C$4) -> 0 | F38: =E38^2 -> 0 | G38: =1/$C$8*(D38-$C$5) -> -0.001948214293 | H38: =G38-F38 -> -0.001948214293
A39: =A38+1 -> 291.3169897 | B39: 5.084440637 | C39: =fourbar($F$31,$F$32,$G$33,1,-1,B39) -> 7.177317547 | D39: =C39/D_R-180 -> 231.2300037 | E39: =1/$C$7*(A39-$C$4) -> 0.01 | F39: =E39^2 -> 0.0001 | G39: =1/$C$8*(D39-$C$5) -> -0.001499490242 | H39: =G39-F39 -> -0.001599490242
A40: =A39+1 -> 292.3169897 | B40: 5.10189393 | C40: 7.178473179 | D40: =C40/D_R-180 -> 231.2962165 | E40: 0.02 | F40: =E40^2 -> 0.0004 | G40: -0.0008373621448 | H40: -0.001237362145
A41: =A40+1 -> 293.3169897 | B41: 5.119347222 | C41: 7.179988755 | D41: =C41/D_R-180 -> 231.3830526 | E41: 0.03 | F41: =E41^2 -> 0.0009 | G41: 3.099914228e-05 | H41: -0.0008690008577
A42: =A40+1 -> 293.3169897 | B42: 5.119347222 | C42: 7.179988755 | D42: =C42/D_R-180 -> 231.3830526 | E42: 0.03 | F42: =E42^2 -> 0.0009 | G42: 3.099914228e-05 | H42: -0.0008690008577
A43: =A42+1 -> 294.3169897 | B43: 5.136800515 | C43: 7.181853397 | D43: =C43/D_R-180 -> 231.4898887 | E43: 0.04 | F43: 0.0016 | G43: 0.001099360207 | H43: -0.0005006397929
A44: 295.3169897 | B44: 5.154253807 | C44: 7.184057662 | D44: =C44/D_R-180 -> 231.6161838 | E44: 0.05 | F44: 0.0025 | G44: 0.002362311339 | H44: -0.0001376886608
A45: 296.3169897 | B45: 5.1717071 | C45: 7.186593381 | D45: =C45/D_R-180 -> 231.7614698 | E45: 0.06 | F45: 0.0036 | G45: 0.003815170933 | H45: 0.0002151709327
A46: 297.3169897 | B46: 5.189160392 | C46: 7.18945351 | D46: =C46/D_R-180 -> 231.9253432 | E46: 0.07 | F46: 0.0049 | G46: 0.005453904622 | H46: 0.0005539046223
A47: 298.3169897 | B47: 5.206613685 | C47: 7.19263202 | D47: =C47/D_R-180 -> 232.1074583 | E47: 0.08 | F47: 0.0064 | G47: 0.007275056468 | H47: 0.0008750564679
A48: 299.3169897 | B48: 5.224066977 | C48: 7.196123784 | D48: =C48/D_R-180 -> 232.3075217 | E48: 0.09 | F48: 0.0081 | G48: 0.009275690058 | H48: 0.001175690058
A49: 300.3169897 | B49: 5.24152027 | C49: 7.199924497 | D49: =C49/D_R-180 -> 232.5252865 | E49: 0.1 | F49: 0.01 | G49: 0.01145333782 | H49: 0.00145333782
A50: 301.3169897 | B50: 5.258973562 | C50: 7.204030592 | D50: =C50/D_R-180 -> 232.7605484 | E50: 0.11 | F50: 0.0121 | G50: 0.01380595717 | H50: 0.00170595717
A51: 302.3169897 | B51: 5.276426855 | C51: 7.208439181 | D51: =C51/D_R-180 -> 233.0131419 | E51: 0.12 | F51: 0.0144 | G51: 0.01633189237 | H51: 0.001931892369
A52: 303.3169897 | B52: 5.293880147 | C52: 7.21314799 | D52: =C52/D_R-180 -> 233.2829368 | E52: 0.13 | F52: 0.0169 | G52: 0.01902984118 | H52: 0.002129841176
A53: 304.3169897 | B53: 5.31133344 | C53: 7.218155312 | D53: =C53/D_R-180 -> 233.5698352 | E53: 0.14 | F53: 0.0196 | G53: 0.02189882555 | H53: 0.00229882555
A54: 305.3169897 | B54: 5.328786733 | C54: 7.223459961 | D54: =C54/D_R-180 -> 233.8737693 | E54: 0.15 | F54: 0.0225 | G54: 0.02493816575 | H54: 0.002438165748
A55: 306.3169897 | B55: 5.346240025 | C55: 7.229061232 | D55: =C55/D_R-180 -> 234.1946984 | E55: 0.16 | F55: 0.0256 | G55: 0.02814745733 | H55: 0.002547457327
A56: 307.3169897 | B56: 5.363693318 | C56: 7.234958862 | D56: =C56/D_R-180 -> 234.5326078 | E56: 0.17 | F56: 0.0289 | G56: 0.03152655058 | H56: 0.002626550583
A57: 308.3169897 | B57: 5.38114661 | C57: 7.241153003 | D57: =C57/D_R-180 -> 234.8875059 | E57: 0.18 | F57: 0.0324 | G57: 0.03507553207 | H57: 0.002675532066
A58: 309.3169897 | B58: 5.398599903 | C58: 7.24764419 | D58: =C58/D_R-180 -> 235.2594235 | E58: 0.19 | F58: 0.0361 | G58: 0.03879470785 | H58: 0.002694707852
A59: 310.3169897 | B59: 5.416053195 | C59: 7.254433312 | D59: =C59/D_R-180 -> 235.6484115 | E59: 0.2 | F59: 0.04 | G59: 0.04268458829 | H59: 0.002684588294
A60: 311.3169897 | B60: 5.433506488 | C60: 7.261521593 | D60: =C60/D_R-180 -> 236.0545401 | E60: 0.21 | F60: 0.0441 | G60: 0.04674587403 | H60: 0.002645874032
A61: 312.3169897 | B61: 5.45095978 | C61: 7.268910564 | D61: =C61/D_R-180 -> 236.477897 | E61: 0.22 | F61: 0.0484 | G61: 0.05097944303 | H61: 0.002579443032
A62: 313.3169897 | B62: 5.468413073 | C62: 7.276602048 | D62: =C62/D_R-180 -> 236.9185865 | E62: 0.23 | F62: 0.0529 | G62: 0.05538633851 | H62: 0.00248633851
A63: 314.3169897 | B63: 5.485866365 | C63: 7.284598133 | D63: =C63/D_R-180 -> 237.3767284 | E63: 0.24 | F63: 0.0576 | G63: 0.05996775755 | H63: 0.00236775755
A64: 315.3169897 | B64: 5.503319658 | C64: 7.292901157 | D64: =C64/D_R-180 -> 237.8524567 | E64: 0.25 | F64: 0.0625 | G64: 0.06472504031 | H64: 0.002225040309
A65: 316.3169897 | B65: 5.52077295 | C65: 7.301513693 | D65: =C65/D_R-180 -> 238.3459187 | E65: 0.26 | F65: 0.0676 | G65: 0.06965965967 | H65: 0.002059659667
A66: 317.3169897 | B66: 5.538226243 | C66: 7.310438524 | D66: =C66/D_R-180 -> 238.8572738 | E66: 0.27 | F66: 0.0729 | G66: 0.07477321122 | H66: 0.00187321122
A67: 318.3169897 | B67: 5.555679535 | C67: 7.319678633 | D67: =C67/D_R-180 -> 239.386693 | E67: 0.28 | F67: 0.0784 | G67: 0.08006740352 | H67: 0.00166740352
A68: 319.3169897 | B68: 5.573132828 | C68: 7.329237181 | D68: =C68/D_R-180 -> 239.9343575 | E68: 0.29 | F68: 0.0841 | G68: 0.08554404847 | H68: 0.001444048474
A69: 320.3169897 | B69: 5.59058612 | C69: 7.339117496 | D69: =C69/D_R-180 -> 240.5004579 | E69: 0.3 | F69: 0.09 | G69: 0.09120505182 | H69: 0.001205051818
A70: 321.3169897 | B70: =A70*D_R -> 5.608039413 | C70: 7.34932305 | D70: =C70/D_R-180 -> 241.0851931 | E70: 0.31 | F70: 0.0961 | G70: 0.09705240361 | H70: 0.0009524036101
A71: 322.3169897 | B71: 5.625492705 | C71: 7.359857448 | D71: =C71/D_R-180 -> 241.6887696 | E71: 0.32 | F71: 0.1024 | G71: 0.1030881687 | H71: 0.0006881686598
A72: 323.3169897 | B72: 5.642945998 | C72: 7.370724405 | D72: =C72/D_R-180 -> 242.3114004 | E72: 0.33 | F72: 0.1089 | G72: 0.1093144769 | H72: 0.0004144768579
A73: 324.3169897 | B73: 5.66039929 | C73: 7.381927737 | D73: =C73/D_R-180 -> 242.953304 | E73: 0.34 | F73: 0.1156 | G73: 0.1157335133 | H73: 0.0001335133426
A74: 325.3169897 | B74: 5.677852583 | C74: 7.393471337 | D74: =C74/D_R-180 -> 243.6147035 | E74: 0.35 | F74: 0.1225 | G74: 0.1223475085 | H74: -0.0001524915342
A75: 326.3169897 | B75: 5.695305875 | C75: 7.405359156 | D75: =C75/D_R-180 -> 244.2958254 | E75: 0.36 | F75: 0.1296 | G75: 0.1291587275 | H75: -0.0004412724783
A76: 327.3169897 | B76: 5.712759168 | C76: 7.417595193 | D76: =C76/D_R-180 -> 244.9968987 | E76: 0.37 | F76: 0.1369 | G76: 0.1361694602 | H76: -0.0007305397944
A77: 328.3169897 | B77: 5.73021246 | C77: 7.430183467 | D77: =C77/D_R-180 -> 245.7181537 | E77: 0.38 | F77: 0.1444 | G77: 0.1433820098 | H77: -0.001017990219
A78: 329.3169897 | B78: 5.747665753 | C78: 7.443128002 | D78: =C78/D_R-180 -> 246.4598209 | E78: 0.39 | F78: 0.1521 | G78: 0.1507986819 | H78: -0.001301318064
A79: 330.3169897 | B79: 5.765119046 | C79: 7.456432806 | D79: =C79/D_R-180 -> 247.22213 | E79: 0.4 | F79: 0.16 | G79: 0.1584217733 | H79: -0.001578226684
A80: 331.3169897 | B80: 5.782572338 | C80: 7.470101852 | D80: =C80/D_R-180 -> 248.0053087 | E80: 0.41 | F80: 0.1681 | G80: 0.1662535597 | H80: -0.001846440264
A81: 332.3169897 | B81: 5.800025631 | C81: 7.484139054 | D81: =C81/D_R-180 -> 248.8095811 | E81: 0.42 | F81: 0.1764 | G81: 0.1742962841 | H81: -0.00210371593
A82: 333.3169897 | B82: 5.817478923 | C82: 7.498548248 | D82: =C82/D_R-180 -> 249.6351671 | E82: 0.43 | F82: 0.1849 | G82: 0.1825521438 | H82: -0.002347856177
A83: 334.3169897 | B83: 5.834932216 | C83: 7.513333167 | D83: =C83/D_R-180 -> 250.4822805 | E83: 0.44 | F83: 0.1936 | G83: 0.1910232784 | H83: -0.002576721574
A84: 335.3169897 | B84: 5.852385508 | C84: 7.528497421 | D84: =C84/D_R-180 -> 251.3511283 | E84: 0.45 | F84: 0.2025 | G84: 0.1997117563 | H84: -0.002788243746
A85: 336.3169897 | B85: 5.869838801 | C85: 7.544044474 | D85: =C85/D_R-180 -> 252.2419088 | E85: 0.46 | F85: 0.2116 | G85: 0.2086195614 | H85: -0.00298043858
A86: 337.3169897 | B86: 5.887292093 | C86: 7.559977618 | D86: =C86/D_R-180 -> 253.1548107 | E86: 0.47 | F86: 0.2209 | G86: 0.2177485804 | H86: -0.003151419608
A87: 338.3169897 | B87: 5.904745386 | C87: 7.576299951 | D87: =C87/D_R-180 -> 254.0900115 | E87: 0.48 | F87: 0.2304 | G87: 0.2271005885 | H87: -0.003299411536
A88: 339.3169897 | B88: 5.922198678 | C88: 7.593014355 | D88: =C88/D_R-180 -> 255.0476763 | E88: 0.49 | F88: 0.2401 | G88: 0.2366772362 | H88: -0.003422763832
A89: 340.3169897 | B89: 5.939651971 | C89: 7.610123468 | D89: =C89/D_R-180 -> 256.0279563 | E89: 0.5 | F89: 0.25 | G89: 0.2464800357 | H89: -0.003519964314
A90: 341.3169897 | B90: 5.957105263 | C90: 7.627629664 | D90: =C90/D_R-180 -> 257.0309874 | E90: 0.51 | F90: 0.2601 | G90: 0.2565103473 | H90: -0.003589652674
A91: 342.3169897 | B91: 5.974558556 | C91: 7.64553503 | D91: =C91/D_R-180 -> 258.0568893 | E91: 0.52 | F91: 0.2704 | G91: 0.2667693662 | H91: -0.003630633825
A92: 343.3169897 | B92: 5.992011848 | C92: 7.663841339 | D92: =C92/D_R-180 -> 259.1057636 | E92: 0.53 | F92: 0.2809 | G92: 0.277258109 | H92: -0.003641891008
A93: 344.3169897 | B93: 6.009465141 | C93: 7.682550034 | D93: =C93/D_R-180 -> 260.1776928 | E93: 0.54 | F93: 0.2916 | G93: 0.2879774015 | H93: -0.003622598535
A94: 345.3169897 | B94: 6.026918433 | C94: 7.7016622 | D94: =C94/D_R-180 -> 261.2727393 | E94: 0.55 | F94: 0.3025 | G94: 0.2989278659 | H94: -0.003572134089
A95: 346.3169897 | B95: 6.044371726 | C95: 7.721178548 | D95: =C95/D_R-180 -> 262.3909436 | E95: 0.56 | F95: 0.3136 | G95: 0.3101099095 | H95: -0.003490090454
A96: 347.3169897 | B96: 6.061825018 | C96: 7.741099393 | D96: =C96/D_R-180 -> 263.532324 | E96: 0.57 | F96: 0.3249 | G96: 0.3215237134 | H96: -0.003376286574
A97: 348.3169897 | B97: 6.079278311 | C97: 7.761424641 | D97: =C97/D_R-180 -> 264.6968749 | E97: 0.58 | F97: 0.3364 | G97: 0.3331692222 | H97: -0.003230777834
A98: 349.3169897 | B98: 6.096731603 | C98: 7.782153763 | D98: =C98/D_R-180 -> 265.8845661 | E98: 0.59 | F98: 0.3481 | G98: 0.3450461346 | H98: -0.003053865442
A99: 350.3169897 | B99: 6.114184896 | C99: 7.803285792 | D99: =C99/D_R-180 -> 267.0953422 | E99: 0.6 | F99: 0.36 | G99: 0.3571538952 | H99: -0.002846104806
A100: 351.3169897 | B100: 6.131638188 | C100: 7.824819301 | D100: =C100/D_R-180 -> 268.3291214 | E100: =1/$C$7*(A100-$C$4) -> 0.61 | F100: =E100^2 -> 0.3721 | G100: =1/$C$8*(D100-$C$5) -> 0.3694916872 | H100: =G100-F100 -> -0.002608312814
A101: 352.3169897 | B101: 6.149091481 | C101: 7.846752398 | D101: =C101/D_R-180 -> 269.5857953 | E101: 0.62 | F101: 0.3844 | G101: 0.3820584261 | H101: -0.002341573892
A102: 353.3169897 | B102: 6.166544773 | C102: 7.869082715 | D102: =C102/D_R-180 -> 270.8652282 | E102: 0.63 | F102: 0.3969 | G102: 0.3948527552 | H102: -0.002047244775
A103: 354.3169897 | B103: 6.183998066 | C103: =fourbar($F$31,$F$32,$G$33,1,-1,B103) -> 7.891807403 | D103: =C103/D_R-180 -> 272.1672569 | E103: 0.64 | F103: 0.4096 | G103: 0.4078730421 | H103: -0.001726957897
A104: 355.3169897 | B104: 6.201451359 | C104: 7.914923127 | D104: =C104/D_R-180 -> 273.4916904 | E104: 0.65 | F104: 0.4225 | G104: 0.4211173767 | H104: -0.001382623316
A105: 356.3169897 | B105: 6.218904651 | C105: 7.93842607 | D105: =C105/D_R-180 -> 274.8383098 | E105: 0.66 | F105: 0.4356 | G105: 0.4345835709 | H105: -0.001016429148
A106: 357.3169897 | B106: 6.236357944 | C106: 7.962311928 | D106: =C106/D_R-180 -> 276.2068687 | E106: 0.67 | F106: 0.4489 | G106: 0.4482691596 | H106: -0.0006308404296
A107: =A106+1 -> 358.3169897 | B107: 6.253811236 | C107: 7.986575921 | D107: =C107/D_R-180 -> 277.5970931 | E107: 0.68 | F107: 0.4624 | G107: 0.4621714036 | H107: -0.0002285964086
A108: 359.3169897 | B108: 6.271264529 | C108: 8.011212797 | D108: =C108/D_R-180 -> 279.0086821 | E108: 0.69 | F108: 0.4761 | G108: 0.4762872938 | H108: 0.0001872937686
A109: 360.3169897 | B109: 6.288717821 | C109: 1.753031536 | D109: =C109/D_R+180 -> 280.4413084 | E109: 0.7 | F109: 0.49 | G109: 0.490613557 | H109: 0.0006135569562
A110: 361.3169897 | B110: 6.306171114 | C110: 1.778396592 | D110: =C110/D_R+180 -> 281.894619 | E110: 0.71 | F110: 0.5041 | G110: 0.5051466635 | H110: 0.00104666348
A111: 362.3169897 | B111: 6.323624406 | C111: 1.804116066 | D111: =C111/D_R+180 -> 283.3682363 | E111: 0.72 | F111: 0.5184 | G111: 0.5198828361 | H111: 0.001482836135
A112: 363.3169897 | B112: 6.341077699 | C112: 1.83018295 | D112: =C112/D_R+180 -> 284.8617588 | E112: 0.73 | F112: 0.5329 | G112: 0.5348180607 | H112: 0.001918060665
A113: 364.3169897 | B113: 6.358530991 | C113: 1.856589846 | D113: =C113/D_R+180 -> 286.3747625 | E113: 0.74 | F113: 0.5476 | G113: 0.5499480976 | H113: 0.002348097627
A114: 365.3169897 | B114: 6.375984284 | C114: 1.883328985 | D114: =C114/D_R+180 -> 287.9068023 | E114: 0.75 | F114: 0.5625 | G114: 0.5652684956 | H114: 0.002768495586
A115: 366.3169897 | B115: 6.393437576 | C115: 1.910392252 | D115: =C115/D_R+180 -> 289.4574132 | E115: 0.76 | F115: 0.5776 | G115: 0.5807746055 | H115: 0.003174605505
A116: 367.3169897 | B116: 6.410890869 | C116: 1.937771216 | D116: =C116/D_R+180 -> 291.0261123 | E116: 0.77 | F116: 0.5929 | G116: 0.5964615962 | H116: 0.003561596234
A117: 368.3169897 | B117: 6.428344161 | C117: 1.965457155 | D117: =C117/D_R+180 -> 292.6123998 | E117: 0.78 | F117: 0.6084 | G117: 0.612324471 | H117: 0.003924470971
A118: 369.3169897 | B118: 6.445797454 | C118: 1.99344109 | D118: =C118/D_R+180 -> 294.2157611 | E118: 0.79 | F118: 0.6241 | G118: 0.6283580845 | H118: 0.004258084547
A119: 370.3169897 | B119: 6.463250746 | C119: 2.021713812 | D119: =C119/D_R+180 -> 295.8356688 | E119: 0.8 | F119: 0.64 | G119: 0.6445571614 | H119: 0.004557161413
A120: 371.3169897 | B120: 6.480704039 | C120: 2.05026592 | D120: =C120/D_R+180 -> 297.4715841 | E120: 0.81 | F120: 0.6561 | G120: 0.6609163142 | H120: 0.004816314162
A121: 372.3169897 | B121: 6.498157331 | C121: 2.079087848 | D121: =C121/D_R+180 -> 299.1229589 | E121: =1/$C$7*(A121-$C$4) -> 0.82 | F121: =E121^2 -> 0.6724 | G121: =1/$C$8*(D121-$C$5) -> 0.6774300625 | H121: =G121-F121 -> 0.005030062458
A122: 373.3169897 | B122: 6.515610624 | C122: 2.108169903 | D122: =C122/D_R+180 -> 300.7892379 | E122: 0.83 | F122: 0.6889 | G122: 0.6940928522 | H122: 0.005192852203
A123: 374.3169897 | B123: 6.533063916 | C123: 2.137502295 | D123: =C123/D_R+180 -> 302.4698602 | E123: 0.84 | F123: 0.7056 | G123: 0.7108990748 | H123: 0.005299074812
A124: 375.3169897 | B124: 6.550517209 | C124: 2.167075174 | D124: =C124/D_R+180 -> 304.1642613 | E124: 0.85 | F124: 0.7225 | G124: 0.7278430865 | H124: 0.005343086452
A125: 376.3169897 | B125: 6.567970501 | C125: 2.196878661 | D125: =C125/D_R+180 -> 305.8718754 | E125: 0.86 | F125: 0.7396 | G125: 0.7449192271 | H125: 0.005319227092
A126: 377.3169897 | B126: 6.585423794 | C126: 2.226902884 | D126: =C126/D_R+180 -> 307.5921366 | E126: 0.87 | F126: 0.7569 | G126: 0.7621218393 | H126: 0.005221839266
A127: 378.3169897 | B127: 6.602877086 | C127: 2.257138003 | D127: =C127/D_R+180 -> 309.3244813 | E127: 0.88 | F127: 0.7744 | G127: 0.7794452864 | H127: 0.005045286395
A128: 379.3169897 | B128: 6.620330379 | C128: 2.287574248 | D128: =C128/D_R+180 -> 311.0683498 | E128: 0.89 | F128: 0.7921 | G128: 0.7968839706 | H128: 0.004783970592
A129: 380.3169897 | B129: 6.637783672 | C129: 2.318201948 | D129: =C129/D_R+180 -> 312.8231877 | E129: 0.9 | F129: 0.81 | G129: 0.8144323498 | H129: 0.004432349831
A130: 381.3169897 | B130: 6.655236964 | C130: 2.349011555 | D130: =C130/D_R+180 -> 314.5884481 | E130: 0.91 | F130: 0.8281 | G130: 0.8320849544 | H130: 0.003984954403
A131: 382.3169897 | B131: 6.672690257 | C131: 2.379993677 | D131: =C131/D_R+180 -> 316.363593 | E131: 0.92 | F131: 0.8464 | G131: 0.8498364026 | H131: 0.00343640259
A132: 383.3169897 | B132: 6.690143549 | C132: 2.4111391 | D132: =C132/D_R+180 -> 318.1480942 | E132: 0.93 | F132: 0.8649 | G132: 0.8676814155 | H132: 0.002781415493
A133: 384.3169897 | B133: 6.707596842 | C133: 2.442438815 | D133: =C133/D_R+180 -> 319.9414358 | E133: =1/$C$7*(A133-$C$4) -> 0.94 | F133: =E133^2 -> 0.8836 | G133: =1/$C$8*(D133-$C$5) -> 0.885614831 | H133: =G133-F133 -> 0.002014830967
A134: 385.3169897 | B134: =A134*D_R -> 6.725050134 | C134: 2.473884038 | D134: =C134/D_R+180 -> 321.7431144 | E134: 0.95 | F134: 0.9025 | G134: 0.9036316166 | H134: 0.001131616645
A135: 386.3169897 | B135: 6.742503427 | C135: 2.505466234 | D135: =C135/D_R+180 -> 323.5526409 | E135: 0.96 | F135: 0.9216 | G135: 0.921726882 | H135: 0.0001268820033
A136: 387.3169897 | B136: 6.759956719 | C136: 2.537177134 | D136: =C136/D_R+180 -> 325.3695416 | E136: 0.97 | F136: 0.9409 | G136: 0.9398958895 | H136: -0.001004110513
A137: 388.3169897 | B137: 6.777410012 | C137: 2.569008754 | D137: =C137/D_R+180 -> 327.1933592 | E137: 0.98 | F137: 0.9604 | G137: 0.9581340647 | H137: -0.002265935315
A138: 389.3169897 | B138: 6.794863304 | C138: 2.600953413 | D138: =C138/D_R+180 -> 329.0236533 | E138: 0.99 | F138: 0.9801 | G138: 0.9764370056 | H138: -0.003662994431
A139: 390.3169897 | B139: 6.812316597 | C139: 2.633003741 | D139: =C139/D_R+180 -> 330.8600018 | E139: 1 | F139: 1 | G139: 0.9948004908 | H139: -0.005199509178

Sheet result
A1: r
C2: y=x2, 0≤ x ≤ 1, Dq=100o, Df=100o
C3: Least Squaret 4 Design Variables
F4: a2= | G4: 2.023660853
D5: xj= | E5: 0.1j | F5: a3= | G5: 0.7213589851
D6: j=0,1,2,..10 | F6: a4= | G6: 1.726041522
D7: qin= | E7: 260o | F7: fin | G7: 228,708441o
C9: Least Squaret 5 Design Variables
F10: a2= | G10: 3.291193259
D11: xj= | E11: 0.1j | F11: a3= | G11: 2.369428463
D12: j=0,1,2,..10 | F12: a4= | G12: 1.120072355
F13: fin | G13: 290,316990o
F14: qin | G14: 231,379953o
C16: y=ex, 0≤x≤1, Dq=120o Df=100o
C17: Least Squaret 4 Design Variables
F18: a2= | G18: 9.297606053
D19: xj= | E19: 0.1j | F19: a3= | G19: 8.129145308
D20: j=0,1,2,..10 | F20: a4= | G20: 2.355147518
D21: qin= | E21: 260o | F21: fin | G21: 206,381873o
C23: Least Squaret 5 Design Variables
F24: a2= | G24: 8.675514786
D25: xj= | E25: 0.1j | F25: a3= | G25: 7.480043737
D26: j=0,1,2,..10 | F26: a4= | G26: 2.373017639
F27: fin | G27: 258,800424o
F28: qin | G28: 206,396663o
